Workbook

Sheet Comparison
B1: TheMortgageGeek.com
B4: Purchase Price | C4: $2,000,000 | E4: Purchase Price | F4: $2,000,000
B5: Down Payment | C5: 30% | E5: Down Payment | F5: 30%
B6: Loan Amount | C6: =IF(C5<1,C4*(1-C5),C4-C5) -> $1,400,000 | E6: Loan Amount | F6: =IF(F5<1,F4*(1-F5),F4-F5) -> $1,400,000
B7: Interest Rate | C7: 6.25% | E7: Interest Rate | F7: 6.50%
B8: Loan Term (Years) | C8: 30 | E8: Loan Term (Years) | F8: 30
B9: Points | C9: 1.00 | E9: Points | F9: 0.00
B10: Cost of Points | C10: =C6*C9/100 -> $14,000 | E10: Cost of Points | F10: =F6*F9/100 -> $0 | H10: Difference
B11: Closing Costs | C11: $0 | E11: Closing Costs | F11: $0
B12: Mortgage Payment | C12: =-PMT(C7/12,C8*12,C6) -> $8,620.04 | E12: Mortgage Payment | F12: =-PMT(F7/12,F8*12,F6) -> $8,848.95 | H12: =ABS(C12-F12) -> $229
B13: Preferred Payment | C13: $5,000.00 | E13: Preferred Payment | F13: $0.00
B14: Adjusted Term (Years) | C14: =ROUND(MIN(Sheet1!E4,Sheet1!F4),2) -> 30.00 | E14: Adjusted Term (Years) | F14: =ROUND(MIN('Sheet 2'!E4,'Sheet 2'!F4),2) -> 30.00
B16: Total Payments | C16: =MAX(Sheet1!E15:E374) -> $3,103,215 | E16: Total Payments | F16: =MAX('Sheet 2'!E15:E374) -> $3,185,623 | H16: =ABS(C16-F16) -> $82,408
B17: Total Interest + Fees | C17: =MAX(Sheet1!G15:G374) -> $1,717,215 | E17: Total Interest + Fees | F17: =MAX('Sheet 2'!G15:G374) -> $1,785,623 | H17: =ABS(C17-F17) -> $68,408
C19: Interest + Fees After Year X | F19: Interest + Fees After Year X
B20: Year | E20: Year
B21: =IF(Sheet1!AK18>Sheet1!AL18,Sheet1!AL18,Sheet1!AK18) -> 1 | C21: =VLOOKUP(B21*12,Sheet1!A$15:G$374,7) -> $101,035.35 | E21: =IF('Sheet 2'!AK18>'Sheet 2'!AL18,'Sheet 2'!AL18,'Sheet 2'!AK18) -> 1 | F21: =VLOOKUP(E21*12,'Sheet 2'!A$15:G$374,7) -> $90,539.27 | H21: =IF(ISERROR(BA21),"",C21-F21) -> $10,496 | BA21: =C21-F21 -> $10,496
B22: =IF(Sheet1!AK19-Sheet1!AL19>1,"",Sheet1!AK19) -> 2 | C22: =IF(C$14<B22,"",VLOOKUP(ROUND(B22*12,0),Sheet1!A$15:G$374,7)) -> $187,015.49 | E22: =IF('Sheet 2'!AK19-'Sheet 2'!AL19>1,"",'Sheet 2'!AK19) -> 2 | F22: =IF(F$14<E22,"",VLOOKUP(ROUND(E22*12,0),'Sheet 2'!A$15:G$374,7)) -> $180,030.56 | H22: $6,985 | BA22: $6,985
B23: =IF(Sheet1!AK20-Sheet1!AL20>1,"",Sheet1!AK20) -> 3 | C23: =IF(C$14<B23,"",VLOOKUP(ROUND(B23*12,0),Sheet1!A$15:G$374,7)) -> $271,872.55 | E23: =IF('Sheet 2'!AK20-'Sheet 2'!AL20>1,"",'Sheet 2'!AK20) -> 3 | F23: =IF(F$14<E23,"",VLOOKUP(ROUND(E23*12,0),'Sheet 2'!A$15:G$374,7)) -> $268,403.67 | H23: $3,469 | BA23: $3,469
B24: =IF(Sheet1!AK21-Sheet1!AL21>1,"",Sheet1!AK21) -> 4 | C24: =IF(C$14<B24,"",VLOOKUP(ROUND(B24*12,0),Sheet1!A$15:G$374,7)) -> $355,534.29 | E24: =IF('Sheet 2'!AK21-'Sheet 2'!AL21>1,"",'Sheet 2'!AK21) -> 4 | F24: =IF(F$14<E24,"",VLOOKUP(ROUND(E24*12,0),'Sheet 2'!A$15:G$374,7)) -> $355,583.73 | H24: ($49) | BA24: -$49
B25: =IF(Sheet1!AK22-Sheet1!AL22>1,"",Sheet1!AK22) -> 5 | C25: =IF(C$14<B25,"",VLOOKUP(ROUND(B25*12,0),Sheet1!A$15:G$374,7)) -> $437,923.83 | E25: =IF('Sheet 2'!AK22-'Sheet 2'!AL22>1,"",'Sheet 2'!AK22) -> 5 | F25: =IF(F$14<E25,"",VLOOKUP(ROUND(E25*12,0),'Sheet 2'!A$15:G$374,7)) -> $441,490.82 | H25: ($3,567) | BA25: -$3,567
B26: =IF(Sheet1!AK23-Sheet1!AL23>1,"",Sheet1!AK23) -> 6 | C26: =IF(C$14<B26,"",VLOOKUP(ROUND(B26*12,0),Sheet1!A$15:G$374,7)) -> $518,959.33 | E26: =IF('Sheet 2'!AK23-'Sheet 2'!AL23>1,"",'Sheet 2'!AK23) -> 6 | F26: =IF(F$14<E26,"",VLOOKUP(ROUND(E26*12,0),'Sheet 2'!A$15:G$374,7)) -> $526,039.71 | H26: ($7,080) | BA26: -$7,080
B27: =IF(Sheet1!AK24-Sheet1!AL24>1,"",Sheet1!AK24) -> 7 | C27: =IF(C$14<B27,"",VLOOKUP(ROUND(B27*12,0),Sheet1!A$15:G$374,7)) -> $598,553.70 | E27: =IF('Sheet 2'!AK24-'Sheet 2'!AL24>1,"",'Sheet 2'!AK24) -> 7 | F27: =IF(F$14<E27,"",VLOOKUP(ROUND(E27*12,0),'Sheet 2'!A$15:G$374,7)) -> $609,139.42 | H27: ($10,586) | BA27: -$10,586
B28: =IF(Sheet1!AK25-Sheet1!AL25>1,"",Sheet1!AK25) -> 8 | C28: =IF(C$14<B28,"",VLOOKUP(ROUND(B28*12,0),Sheet1!A$15:G$374,7)) -> $676,614.24 | E28: =IF('Sheet 2'!AK25-'Sheet 2'!AL25>1,"",'Sheet 2'!AK25) -> 8 | F28: =IF(F$14<E28,"",VLOOKUP(ROUND(E28*12,0),'Sheet 2'!A$15:G$374,7)) -> $690,692.91 | H28: ($14,079) | BA28: -$14,079
B29: =IF(Sheet1!AK26-Sheet1!AL26>1,"",Sheet1!AK26) -> 9 | C29: =IF(C$14<B29,"",VLOOKUP(ROUND(B29*12,0),Sheet1!A$15:G$374,7)) -> $753,042.30 | E29: =IF('Sheet 2'!AK26-'Sheet 2'!AL26>1,"",'Sheet 2'!AK26) -> 9 | F29: =IF(F$14<E29,"",VLOOKUP(ROUND(E29*12,0),'Sheet 2'!A$15:G$374,7)) -> $770,596.61 | H29: ($17,554) | BA29: -$17,554
B30: =IF(Sheet1!AK27-Sheet1!AL27>1,"",Sheet1!AK27) -> 10 | C30: =IF(C$14<B30,"",VLOOKUP(ROUND(B30*12,0),Sheet1!A$15:G$374,7)) -> $827,732.88 | E30: =IF('Sheet 2'!AK27-'Sheet 2'!AL27>1,"",'Sheet 2'!AK27) -> 10 | F30: =IF(F$14<E30,"",VLOOKUP(ROUND(E30*12,0),'Sheet 2'!A$15:G$374,7)) -> $848,740.05 | H30: ($21,007) | BA30: -$21,007
B31: =IF(Sheet1!AK28-Sheet1!AL28>1,"",Sheet1!AK28) -> 11 | C31: =IF(C$14<B31,"",VLOOKUP(ROUND(B31*12,0),Sheet1!A$15:G$374,7)) -> $900,574.20 | E31: =IF('Sheet 2'!AK28-'Sheet 2'!AL28>1,"",'Sheet 2'!AK28) -> 11 | F31: =IF(F$14<E31,"",VLOOKUP(ROUND(E31*12,0),'Sheet 2'!A$15:G$374,7)) -> $925,005.33 | H31: ($24,431) | BA31: -$24,431
B32: =IF(Sheet1!AK29-Sheet1!AL29>1,"",Sheet1!AK29) -> 12 | C32: =IF(C$14<B32,"",VLOOKUP(ROUND(B32*12,0),Sheet1!A$15:G$374,7)) -> $971,447.33 | E32: =IF('Sheet 2'!AK29-'Sheet 2'!AL29>1,"",'Sheet 2'!AK29) -> 12 | F32: =IF(F$14<E32,"",VLOOKUP(ROUND(E32*12,0),'Sheet 2'!A$15:G$374,7)) -> $999,266.66 | H32: ($27,819) | BA32: -$27,819
B33: =IF(Sheet1!AK30-Sheet1!AL30>1,"",Sheet1!AK30) -> 13 | C33: =IF(C$14<B33,"",VLOOKUP(ROUND(B33*12,0),Sheet1!A$15:G$374,7)) -> $1,040,225.67 | E33: =IF('Sheet 2'!AK30-'Sheet 2'!AL30>1,"",'Sheet 2'!AK30) -> 13 | F33: =IF(F$14<E33,"",VLOOKUP(ROUND(E33*12,0),'Sheet 2'!A$15:G$374,7)) -> $1,071,389.85 | H33: ($31,164) | BA33: -$31,164
B34: =IF(Sheet1!AK31-Sheet1!AL31>1,"",Sheet1!AK31) -> 14 | C34: =IF(C$14<B34,"",VLOOKUP(ROUND(B34*12,0),Sheet1!A$15:G$374,7)) -> $1,106,774.48 | E34: =IF('Sheet 2'!AK31-'Sheet 2'!AL31>1,"",'Sheet 2'!AK31) -> 14 | F34: =IF(F$14<E34,"",VLOOKUP(ROUND(E34*12,0),'Sheet 2'!A$15:G$374,7)) -> $1,141,231.69 | H34: ($34,457) | BA34: -$34,457
B35: =IF(Sheet1!AK32-Sheet1!AL32>1,"",Sheet1!AK32) -> 15 | C35: =IF(C$14<B35,"",VLOOKUP(ROUND(B35*12,0),Sheet1!A$15:G$374,7)) -> $1,170,950.35 | E35: =IF('Sheet 2'!AK32-'Sheet 2'!AL32>1,"",'Sheet 2'!AK32) -> 15 | F35: =IF(F$14<E35,"",VLOOKUP(ROUND(E35*12,0),'Sheet 2'!A$15:G$374,7)) -> $1,208,639.40 | H35: ($37,689) | BA35: -$37,689
B36: =IF(Sheet1!AK33-Sheet1!AL33>1,"",Sheet1!AK33) -> 16 | C36: =IF(C$14<B36,"",VLOOKUP(ROUND(B36*12,0),Sheet1!A$15:G$374,7)) -> $1,232,600.65 | E36: =IF('Sheet 2'!AK33-'Sheet 2'!AL33>1,"",'Sheet 2'!AK33) -> 16 | F36: =IF(F$14<E36,"",VLOOKUP(ROUND(E36*12,0),'Sheet 2'!A$15:G$374,7)) -> $1,273,449.96 | H36: ($40,849) | BA36: -$40,849
B37: =IF(Sheet1!AK34-Sheet1!AL34>1,"",Sheet1!AK34) -> 17 | C37: =IF(C$14<B37,"",VLOOKUP(ROUND(B37*12,0),Sheet1!A$15:G$374,7)) -> $1,291,562.92 | E37: =IF('Sheet 2'!AK34-'Sheet 2'!AL34>1,"",'Sheet 2'!AK34) -> 17 | F37: =IF(F$14<E37,"",VLOOKUP(ROUND(E37*12,0),'Sheet 2'!A$15:G$374,7)) -> $1,335,489.43 | H37: ($43,927) | BA37: -$43,927
B38: =IF(Sheet1!AK35-Sheet1!AL35>1,"",Sheet1!AK35) -> 18 | C38: =IF(C$14<B38,"",VLOOKUP(ROUND(B38*12,0),Sheet1!A$15:G$374,7)) -> $1,347,664.28 | E38: =IF('Sheet 2'!AK35-'Sheet 2'!AL35>1,"",'Sheet 2'!AK35) -> 18 | F38: =IF(F$14<E38,"",VLOOKUP(ROUND(E38*12,0),'Sheet 2'!A$15:G$374,7)) -> $1,394,572.23 | H38: ($46,908) | BA38: -$46,908
B39: =IF(Sheet1!AK36-Sheet1!AL36>1,"",Sheet1!AK36) -> 19 | C39: =IF(C$14<B39,"",VLOOKUP(ROUND(B39*12,0),Sheet1!A$15:G$374,7)) -> $1,400,720.69 | E39: =IF('Sheet 2'!AK36-'Sheet 2'!AL36>1,"",'Sheet 2'!AK36) -> 19 | F39: =IF(F$14<E39,"",VLOOKUP(ROUND(E39*12,0),'Sheet 2'!A$15:G$374,7)) -> $1,450,500.35 | H39: ($49,780) | BA39: -$49,780
B40: =IF(Sheet1!AK37-Sheet1!AL37>1,"",Sheet1!AL37) -> 20 | C40: =IF(C$14<B40,"",VLOOKUP(ROUND(B40*12,0),Sheet1!A$15:G$374,7)) -> $1,450,536.31 | E40: =IF('Sheet 2'!AK37-'Sheet 2'!AL37>1,"",'Sheet 2'!AK37) -> 20 | F40: =IF(F$14<E40,"",VLOOKUP(ROUND(E40*12,0),'Sheet 2'!A$15:G$374,7)) -> $1,503,062.51 | H40: ($52,526) | BA40: -$52,526
B41: =IF(Sheet1!AK38-Sheet1!AL38>1,"",Sheet1!AL38) -> 21 | C41: =IF(C$14<B41,"",VLOOKUP(ROUND(B41*12,0),Sheet1!A$15:G$374,7)) -> $1,496,902.69 | E41: =IF('Sheet 2'!AK38-'Sheet 2'!AL38>1,"",'Sheet 2'!AK38) -> 21 | F41: =IF(F$14<E41,"",VLOOKUP(ROUND(E41*12,0),'Sheet 2'!A$15:G$374,7)) -> $1,552,033.29 | H41: ($55,131) | BA41: -$55,131
B42: =IF(Sheet1!AK39-Sheet1!AL39>1,"",Sheet1!AL39) -> 22 | C42: =IF(C$14<B42,"",VLOOKUP(ROUND(B42*12,0),Sheet1!A$15:G$374,7)) -> $1,539,597.95 | E42: =IF('Sheet 2'!AK39-'Sheet 2'!AL39>1,"",'Sheet 2'!AK39) -> 22 | F42: =IF(F$14<E42,"",VLOOKUP(ROUND(E42*12,0),'Sheet 2'!A$15:G$374,7)) -> $1,597,172.16 | H42: ($57,574) | BA42: -$57,574
B43: =IF(Sheet1!AK40-Sheet1!AL40>1,"",Sheet1!AL40) -> 23 | C43: =IF(C$14<B43,"",VLOOKUP(ROUND(B43*12,0),Sheet1!A$15:G$374,7)) -> $1,578,385.97 | E43: =IF('Sheet 2'!AK40-'Sheet 2'!AL40>1,"",'Sheet 2'!AK40) -> 23 | F43: =IF(F$14<E43,"",VLOOKUP(ROUND(E43*12,0),'Sheet 2'!A$15:G$374,7)) -> $1,638,222.50 | H43: ($59,837) | BA43: -$59,837
B44: =IF(Sheet1!AK41-Sheet1!AL41>1,"",Sheet1!AL41) -> 24 | C44: =IF(C$14<B44,"",VLOOKUP(ROUND(B44*12,0),Sheet1!A$15:G$374,7)) -> $1,613,015.42 | E44: =IF('Sheet 2'!AK41-'Sheet 2'!AL41>1,"",'Sheet 2'!AK41) -> 24 | F44: =IF(F$14<E44,"",VLOOKUP(ROUND(E44*12,0),'Sheet 2'!A$15:G$374,7)) -> $1,674,910.49 | H44: ($61,895) | BA44: -$61,895
B45: =IF(Sheet1!AK42-Sheet1!AL42>1,"",Sheet1!AL42) -> 25 | C45: =IF(C$14<B45,"",VLOOKUP(ROUND(B45*12,0),Sheet1!A$15:G$374,7)) -> $1,643,218.82 | E45: =IF('Sheet 2'!AK42-'Sheet 2'!AL42>1,"",'Sheet 2'!AK42) -> 25 | F45: =IF(F$14<E45,"",VLOOKUP(ROUND(E45*12,0),'Sheet 2'!A$15:G$374,7)) -> $1,706,943.97 | H45: ($63,725) | BA45: -$63,725
B46: =IF(Sheet1!AK43-Sheet1!AL43>1,"",Sheet1!AL43) -> 26 | C46: =IF(C$14<B46,"",VLOOKUP(ROUND(B46*12,0),Sheet1!A$15:G$374,7)) -> $1,668,711.49 | E46: =IF('Sheet 2'!AK43-'Sheet 2'!AL43>1,"",'Sheet 2'!AK43) -> 26 | F46: =IF(F$14<E46,"",VLOOKUP(ROUND(E46*12,0),'Sheet 2'!A$15:G$374,7)) -> $1,734,011.22 | H46: ($65,300) | BA46: -$65,300
B47: =IF(Sheet1!AK44-Sheet1!AL44>1,"",Sheet1!AL44) -> 27 | C47: =IF(C$14<B47,"",VLOOKUP(ROUND(B47*12,0),Sheet1!A$15:G$374,7)) -> $1,689,190.40 | E47: =IF('Sheet 2'!AK44-'Sheet 2'!AL44>1,"",'Sheet 2'!AK44) -> 27 | F47: =IF(F$14<E47,"",VLOOKUP(ROUND(E47*12,0),'Sheet 2'!A$15:G$374,7)) -> $1,755,779.65 | H47: ($66,589) | BA47: -$66,589
B48: =IF(Sheet1!AK45-Sheet1!AL45>1,"",Sheet1!AL45) -> 28 | C48: =IF(C$14<B48,"",VLOOKUP(ROUND(B48*12,0),Sheet1!A$15:G$374,7)) -> $1,704,333.08 | E48: =IF('Sheet 2'!AK45-'Sheet 2'!AL45>1,"",'Sheet 2'!AK45) -> 28 | F48: =IF(F$14<E48,"",VLOOKUP(ROUND(E48*12,0),'Sheet 2'!A$15:G$374,7)) -> $1,771,894.38 | H48: ($67,561) | BA48: -$67,561
B49: =IF(Sheet1!AK46-Sheet1!AL46>1,"",Sheet1!AL46) -> 29 | C49: =IF(C$14<B49,"",VLOOKUP(ROUND(B49*12,0),Sheet1!A$15:G$374,7)) -> $1,713,796.28 | E49: =IF('Sheet 2'!AK46-'Sheet 2'!AL46>1,"",'Sheet 2'!AK46) -> 29 | F49: =IF(F$14<E49,"",VLOOKUP(ROUND(E49*12,0),'Sheet 2'!A$15:G$374,7)) -> $1,781,976.77 | H49: ($68,180) | BA49: -$68,180
B50: =IF(Sheet1!AK47-Sheet1!AL47>1,"",Sheet1!AL47) -> 30 | C50: =IF(C$14<B50,"",VLOOKUP(ROUND(B50*12,0),Sheet1!A$15:G$374,7)) -> $1,717,214.69 | E50: =IF('Sheet 2'!AK47-'Sheet 2'!AL47>1,"",'Sheet 2'!AK47) -> 30 | F50: =IF(F$14<E50,"",VLOOKUP(ROUND(E50*12,0),'Sheet 2'!A$15:G$374,7)) -> $1,785,622.84 | H50: ($68,408) | BA50: -$68,408

Sheet Sheet1
E1: Required Pmt | F1: My Payment | G1: Difference
A2: Loan Amount | B2: =Comparison!C6 -> $1,400,000 | D2: Monthly Pmt | E2: =-PMT(B3/12,E3,B2) -> $8,620.04 | F2: =Comparison!C13 -> $5,000.00 | G2: =IF(E2<F2,E2-F2,"") ->  | H2: Closing Costs | J2: =Comparison!C11 -> $0
A3: Rate | B3: =Comparison!C7 -> 6.25% | D3: Term (Months) | E3: =ROUND(B4*12,2) -> 360 | F3: =IF(F2>E2,MAX(A15:A374),"") ->  | G3: =IF(ISNUMBER(F3),E3-F3,"") ->  | H3: Points | I3: =Comparison!C9 -> 1.000 | J3: =Comparison!C10 -> $14,000
A4: Term (Years) | B4: =Comparison!C8 -> 30 | D4: Term (Years) | E4: =E3/12 -> 30 | F4: =IF(F2>E2,F3/12,"") ->  | G4: =IF(ISNUMBER(F4),E4-F4,"") -> 
D5: Final Payment | E5: =VLOOKUP(E3,X15:Y374,2) -> 2053-04-01 | F5: =IF(F2>E2,VLOOKUP(E3,A15:B374,2),"") -> 
A6: First Payment | B6: 2023-05-01
A7: Last Payment | B7: =VLOOKUP(MAX(A15:A374),M15:N374,2) -> 2053-04-01 | D7: Total Interest | E7: =VLOOKUP(E5,Y15:AD374,6) -> $1,717,214.69 | F7: =IF(F2>E2,VLOOKUP(F5,B15:I374,6),"") ->  | G7: =IF(ISNUMBER(F7),E7-F7,"") -> 
A9: Todays Date | B9: =TODAY() -> 2023-09-25
M10: My Payment | X10: Required Payment
A13: Payment | B13: Payment | C13: Beginning | E13: Cumulitive | G13: Cumulitive | I13: Cumulitive | J13: End | O13: Beginning | S13: Cumulitive | V13: End | Z13: Beginning | AD13: Cumulitive | AG13: End
A14: Number | B14: Date | C14: Balance | D14: Payment | E14: Payments | F14: Interest | G14: Interest | H14: Principal | I14: Principal | J14: Balance | O14: Balance | P14: Payment | R14: Interest | S14: Interest | T14: Principal | V14: Balance | Z14: Balance | AA14: Payment | AC14: Interest | AD14: Interest | AE14: Principal | AG14: Balance
A15: =IF($O15<=0,"",M15) -> 1 | B15: 2023-05-01 | C15: $1,400,000.00 | D15: =IF($O15<=0,"",P15) -> $8,620.04 | E15: =IF($O15<=0,"",Q15) -> $8,620.04 | F15: $7,291.67 | G15: $21,291.67 | H15: =IF($O15<=0,"",T15) -> $1,328.37 | I15: =IF($O15<=0,"",U15) -> $1,328.37 | J15: =IF($O15<=0,"",V15) -> $1,398,671.63 | M15: 1 | N15: =B6 -> 2023-05-01 | O15: =$B$2 -> $1,400,000.00 | P15: =IF(N15>$B$9,MIN(MAX($E$2,$F$2),O15*(1+$B$3/12)),$E$2) -> $8,620.04 | Q15: =P15 -> $8,620.04 | R15: =$B$3*O15/12 -> $7,291.67 | S15: =R15+$J2+$J3 -> $21,291.67 | T15: =P15-R15 -> $1,328.37 | U15: =T15 -> $1,328.37 | V15: =O15-T15 -> $1,398,671.63 | X15: 1 | Y15: =B6 -> 2023-05-01 | Z15: =$B$2 -> $1,400,000.00 | AA15: =E$2 -> $8,620.04 | AB15: =AA15 -> $8,620.04 | AC15: =$B$3*Z15/12 -> $7,291.67 | AD15: =AC15+$J2+$J3 -> $21,291.67 | AE15: =AA15-AC15 -> $1,328.37 | AF15: =AE15 -> $1,328.37 | AG15: =Z15-AE15 -> $1,398,671.63
A16: =IF($O16<=0,"",M16) -> 2 | B16: =IF(ISNUMBER(A16),EOMONTH(B15,0)+1,"") -> 2023-06-01 | C16: =IF($O16<=0,"",O16) -> $1,398,671.63 | D16: $8,620.04 | E16: $17,240.08 | F16: =IF($O16<=0,"",R16) -> $7,284.75 | G16: =IF($O16<=0,"",S16) -> $28,576.41 | H16: $1,335.29 | I16: $2,663.67 | J16: $1,397,336.33 | M16: 2 | N16: =EOMONTH(N15,0)+1 -> 2023-06-01 | O16: =V15 -> $1,398,671.63 | P16: =IF(N16>$B$9,MIN(MAX(E$2,$F$2),O16*(1+$B$3/12)),$E$2) -> $8,620.04 | Q16: =Q15+P16 -> $17,240.08 | R16: =$B$3*O16/12 -> $7,284.75 | S16: =S15+R16 -> $28,576.41 | T16: $1,335.29 | U16: =U15+T16 -> $2,663.67 | V16: $1,397,336.33 | X16: 2 | Y16: =EOMONTH(Y15,0)+1 -> 2023-06-01 | Z16: =AG15 -> $1,398,671.63 | AA16: =E$2 -> $8,620.04 | AB16: =AB15+AA16 -> $17,240.08 | AC16: =$B$3*Z16/12 -> $7,284.75 | AD16: =AD15+AC16 -> $28,576.41 | AE16: $1,335.29 | AF16: =AF15+AE16 -> $2,663.67 | AG16: $1,397,336.33
A17: 3 | B17: 2023-07-01 | C17: $1,397,336.33 | D17: $8,620.04 | E17: $25,860.12 | F17: $7,277.79 | G17: $35,854.21 | H17: $1,342.25 | I17: $4,005.91 | J17: $1,395,994.09 | M17: 3 | N17: =EOMONTH(N16,0)+1 -> 2023-07-01 | O17: $1,397,336.33 | P17: =IF(N17>B$9,MIN(MAX(E$2,F$2),O17*(1+B$3/12)),E$2) -> $8,620.04 | Q17: $25,860.12 | R17: $7,277.79 | S17: $35,854.21 | T17: $1,342.25 | U17: $4,005.91 | V17: $1,395,994.09 | X17: 3 | Y17: =EOMONTH(Y16,0)+1 -> 2023-07-01 | Z17: $1,397,336.33 | AA17: $8,620.04 | AB17: =AB16+AA17 -> $25,860.12 | AC17: =$B$3*Z17/12 -> $7,277.79 | AD17: =AD16+AC17 -> $35,854.21 | AE17: $1,342.25 | AF17: =AF16+AE17 -> $4,005.91 | AG17: $1,395,994.09
A18: 4 | B18: 2023-08-01 | C18: $1,395,994.09 | D18: $8,620.04 | E18: $34,480.16 | F18: $7,270.80 | G18: $43,125.01 | H18: $1,349.24 | I18: $5,355.15 | J18: $1,394,644.85 | M18: 4 | N18: 2023-08-01 | O18: $1,395,994.09 | P18: $8,620.04 | Q18: $34,480.16 | R18: $7,270.80 | S18: $43,125.01 | T18: $1,349.24 | U18: $5,355.15 | V18: $1,394,644.85 | X18: 4 | Y18: 2023-08-01 | Z18: $1,395,994.09 | AA18: $8,620.04 | AB18: $34,480.16 | AC18: $7,270.80 | AD18: $43,125.01 | AE18: $1,349.24 | AF18: $5,355.15 | AG18: $1,394,644.85 | AK18: 1 | AL18: =MIN(AK18,Comparison!$C$14) -> 1.00
A19: 5 | B19: 2023-09-01 | C19: $1,394,644.85 | D19: $8,620.04 | E19: $43,100.20 | F19: $7,263.78 | G19: $50,388.79 | H19: $1,356.27 | I19: $6,711.42 | J19: $1,393,288.58 | M19: 5 | N19: 2023-09-01 | O19: $1,394,644.85 | P19: $8,620.04 | Q19: $43,100.20 | R19: $7,263.78 | S19: $50,388.79 | T19: $1,356.27 | U19: $6,711.42 | V19: $1,393,288.58 | X19: 5 | Y19: 2023-09-01 | Z19: $1,394,644.85 | AA19: $8,620.04 | AB19: $43,100.20 | AC19: $7,263.78 | AD19: $50,388.79 | AE19: $1,356.27 | AF19: $6,711.42 | AG19: $1,393,288.58 | AK19: 2 | AL19: =MIN(AK19,Comparison!$C$14) -> 2.00
A20: 6 | B20: 2023-10-01 | C20: $1,393,288.58 | D20: $8,620.04 | E20: $51,720.24 | F20: $7,256.71 | G20: $57,645.50 | H20: $1,363.33 | I20: $8,074.75 | J20: $1,391,925.25 | M20: 6 | N20: 2023-10-01 | O20: $1,393,288.58 | P20: $8,620.04 | Q20: $51,720.24 | R20: $7,256.71 | S20: $57,645.50 | T20: $1,363.33 | U20: $8,074.75 | V20: $1,391,925.25 | X20: 6 | Y20: 2023-10-01 | Z20: $1,393,288.58 | AA20: $8,620.04 | AB20: $51,720.24 | AC20: $7,256.71 | AD20: $57,645.50 | AE20: $1,363.33 | AF20: $8,074.75 | AG20: $1,391,925.25 | AK20: 3 | AL20: =MIN(AK20,Comparison!$C$14) -> 3.00
A21: 7 | B21: 2023-11-01 | C21: $1,391,925.25 | D21: $8,620.04 | E21: $60,340.29 | F21: $7,249.61 | G21: $64,895.11 | H21: $1,370.43 | I21: $9,445.18 | J21: $1,390,554.82 | M21: 7 | N21: 2023-11-01 | O21: $1,391,925.25 | P21: $8,620.04 | Q21: $60,340.29 | R21: $7,249.61 | S21: $64,895.11 | T21: $1,370.43 | U21: $9,445.18 | V21: $1,390,554.82 | X21: 7 | Y21: 2023-11-01 | Z21: $1,391,925.25 | AA21: $8,620.04 | AB21: $60,340.29 | AC21: $7,249.61 | AD21: $64,895.11 | AE21: $1,370.43 | AF21: $9,445.18 | AG21: $1,390,554.82 | AK21: 4 | AL21: =MIN(AK21,Comparison!$C$14) -> 4.00
A22: 8 | B22: 2023-12-01 | C22: $1,390,554.82 | D22: $8,620.04 | E22: $68,960.33 | F22: $7,242.47 | G22: $72,137.58 | H22: $1,377.57 | I22: $10,822.75 | J22: $1,389,177.25 | M22: 8 | N22: 2023-12-01 | O22: $1,390,554.82 | P22: $8,620.04 | Q22: $68,960.33 | R22: $7,242.47 | S22: $72,137.58 | T22: $1,377.57 | U22: $10,822.75 | V22: $1,389,177.25 | X22: 8 | Y22: 2023-12-01 | Z22: $1,390,554.82 | AA22: $8,620.04 | AB22: $68,960.33 | AC22: $7,242.47 | AD22: $72,137.58 | AE22: $1,377.57 | AF22: $10,822.75 | AG22: $1,389,177.25 | AK22: 5 | AL22: =MIN(AK22,Comparison!$C$14) -> 5.00
A23: 9 | B23: 2024-01-01 | C23: $1,389,177.25 | D23: $8,620.04 | E23: $77,580.37 | F23: $7,235.30 | G23: $79,372.88 | H23: $1,384.74 | I23: $12,207.49 | J23: $1,387,792.51 | M23: 9 | N23: 2024-01-01 | O23: $1,389,177.25 | P23: $8,620.04 | Q23: $77,580.37 | R23: $7,235.30 | S23: $79,372.88 | T23: $1,384.74 | U23: $12,207.49 | V23: $1,387,792.51 | X23: 9 | Y23: 2024-01-01 | Z23: $1,389,177.25 | AA23: $8,620.04 | AB23: $77,580.37 | AC23: $7,235.30 | AD23: $79,372.88 | AE23: $1,384.74 | AF23: $12,207.49 | AG23: $1,387,792.51 | AK23: 6 | AL23: =MIN(AK23,Comparison!$C$14) -> 6.00
A24: 10 | B24: 2024-02-01 | C24: $1,387,792.51 | D24: $8,620.04 | E24: $86,200.41 | F24: $7,228.09 | G24: $86,600.97 | H24: $1,391.95 | I24: $13,599.44 | J24: $1,386,400.56 | M24: 10 | N24: 2024-02-01 | O24: $1,387,792.51 | P24: $8,620.04 | Q24: $86,200.41 | R24: $7,228.09 | S24: $86,600.97 | T24: $1,391.95 | U24: $13,599.44 | V24: $1,386,400.56 | X24: 10 | Y24: 2024-02-01 | Z24: $1,387,792.51 | AA24: $8,620.04 | AB24: $86,200.41 | AC24: $7,228.09 | AD24: $86,600.97 | AE24: $1,391.95 | AF24: $13,599.44 | AG24: $1,386,400.56 | AK24: 7 | AL24: =MIN(AK24,Comparison!$C$14) -> 7.00
A25: 11 | B25: 2024-03-01 | C25: $1,386,400.56 | D25: $8,620.04 | E25: $94,820.45 | F25: $7,220.84 | G25: $93,821.80 | H25: $1,399.20 | I25: $14,998.65 | J25: $1,385,001.35 | M25: 11 | N25: 2024-03-01 | O25: $1,386,400.56 | P25: $8,620.04 | Q25: $94,820.45 | R25: $7,220.84 | S25: $93,821.80 | T25: $1,399.20 | U25: $14,998.65 | V25: $1,385,001.35 | X25: 11 | Y25: 2024-03-01 | Z25: $1,386,400.56 | AA25: $8,620.04 | AB25: $94,820.45 | AC25: $7,220.84 | AD25: $93,821.80 | AE25: $1,399.20 | AF25: $14,998.65 | AG25: $1,385,001.35 | AK25: 8 | AL25: =MIN(AK25,Comparison!$C$14) -> 8.00
A26: 12 | B26: 2024-04-01 | C26: $1,385,001.35 | D26: $8,620.04 | E26: $103,440.49 | F26: $7,213.55 | G26: $101,035.35 | H26: $1,406.49 | I26: $16,405.14 | J26: $1,383,594.86 | M26: 12 | N26: 2024-04-01 | O26: $1,385,001.35 | P26: $8,620.04 | Q26: $103,440.49 | R26: $7,213.55 | S26: $101,035.35 | T26: $1,406.49 | U26: $16,405.14 | V26: $1,383,594.86 | X26: 12 | Y26: 2024-04-01 | Z26: $1,385,001.35 | AA26: $8,620.04 | AB26: $103,440.49 | AC26: $7,213.55 | AD26: $101,035.35 | AE26: $1,406.49 | AF26: $16,405.14 | AG26: $1,383,594.86 | AK26: 9 | AL26: =MIN(AK26,Comparison!$C$14) -> 9.00
A27: 13 | B27: 2024-05-01 | C27: $1,383,594.86 | D27: $8,620.04 | E27: $112,060.53 | F27: $7,206.22 | G27: $108,241.57 | H27: $1,413.82 | I27: $17,818.96 | J27: $1,382,181.04 | M27: 13 | N27: 2024-05-01 | O27: $1,383,594.86 | P27: $8,620.04 | Q27: $112,060.53 | R27: $7,206.22 | S27: $108,241.57 | T27: $1,413.82 | U27: $17,818.96 | V27: $1,382,181.04 | X27: 13 | Y27: 2024-05-01 | Z27: $1,383,594.86 | AA27: $8,620.04 | AB27: $112,060.53 | AC27: $7,206.22 | AD27: $108,241.57 | AE27: $1,413.82 | AF27: $17,818.96 | AG27: $1,382,181.04 | AK27: 10 | AL27: =MIN(AK27,Comparison!$C$14) -> 10.00
A28: 14 | B28: 2024-06-01 | C28: $1,382,181.04 | D28: $8,620.04 | E28: $120,680.57 | F28: $7,198.86 | G28: $115,440.43 | H28: $1,421.18 | I28: $19,240.14 | J28: $1,380,759.86 | M28: 14 | N28: 2024-06-01 | O28: $1,382,181.04 | P28: $8,620.04 | Q28: $120,680.57 | R28: $7,198.86 | S28: $115,440.43 | T28: $1,421.18 | U28: $19,240.14 | V28: $1,380,759.86 | X28: 14 | Y28: 2024-06-01 | Z28: $1,382,181.04 | AA28: $8,620.04 | AB28: $120,680.57 | AC28: $7,198.86 | AD28: $115,440.43 | AE28: $1,421.18 | AF28: $19,240.14 | AG28: $1,380,759.86 | AK28: 11 | AL28: =MIN(AK28,Comparison!$C$14) -> 11.00
A29: 15 | B29: 2024-07-01 | C29: $1,380,759.86 | D29: $8,620.04 | E29: $129,300.61 | F29: $7,191.46 | G29: $122,631.89 | H29: $1,428.58 | I29: $20,668.72 | J29: $1,379,331.28 | M29: 15 | N29: 2024-07-01 | O29: $1,380,759.86 | P29: $8,620.04 | Q29: $129,300.61 | R29: $7,191.46 | S29: $122,631.89 | T29: $1,428.58 | U29: $20,668.72 | V29: $1,379,331.28 | X29: 15 | Y29: 2024-07-01 | Z29: $1,380,759.86 | AA29: $8,620.04 | AB29: $129,300.61 | AC29: $7,191.46 | AD29: $122,631.89 | AE29: $1,428.58 | AF29: $20,668.72 | AG29: $1,379,331.28 | AK29: 12 | AL29: =MIN(AK29,Comparison!$C$14) -> 12.00
A30: 16 | B30: 2024-08-01 | C30: $1,379,331.28 | D30: $8,620.04 | E30: $137,920.65 | F30: $7,184.02 | G30: $129,815.91 | H30: $1,436.02 | I30: $22,104.75 | J30: $1,377,895.25 | M30: 16 | N30: 2024-08-01 | O30: $1,379,331.28 | P30: $8,620.04 | Q30: $137,920.65 | R30: $7,184.02 | S30: $129,815.91 | T30: $1,436.02 | U30: $22,104.75 | V30: $1,377,895.25 | X30: 16 | Y30: 2024-08-01 | Z30: $1,379,331.28 | AA30: $8,620.04 | AB30: $137,920.65 | AC30: $7,184.02 | AD30: $129,815.91 | AE30: $1,436.02 | AF30: $22,104.75 | AG30: $1,377,895.25 | AK30: 13 | AL30: =MIN(AK30,Comparison!$C$14) -> 13.00
A31: 17 | B31: 2024-09-01 | C31: $1,377,895.25 | D31: $8,620.04 | E31: $146,540.69 | F31: $7,176.54 | G31: $136,992.45 | H31: $1,443.50 | I31: $23,548.25 | J31: $1,376,451.75 | M31: 17 | N31: 2024-09-01 | O31: $1,377,895.25 | P31: $8,620.04 | Q31: $146,540.69 | R31: $7,176.54 | S31: $136,992.45 | T31: $1,443.50 | U31: $23,548.25 | V31: $1,376,451.75 | X31: 17 | Y31: 2024-09-01 | Z31: $1,377,895.25 | AA31: $8,620.04 | AB31: $146,540.69 | AC31: $7,176.54 | AD31: $136,992.45 | AE31: $1,443.50 | AF31: $23,548.25 | AG31: $1,376,451.75 | AK31: 14 | AL31: =MIN(AK31,Comparison!$C$14) -> 14.00
A32: 18 | B32: 2024-10-01 | C32: $1,376,451.75 | D32: $8,620.04 | E32: $155,160.73 | F32: $7,169.02 | G32: $144,161.46 | H32: $1,451.02 | I32: $24,999.27 | J32: $1,375,000.73 | M32: 18 | N32: 2024-10-01 | O32: $1,376,451.75 | P32: $8,620.04 | Q32: $155,160.73 | R32: $7,169.02 | S32: $144,161.46 | T32: $1,451.02 | U32: $24,999.27 | V32: $1,375,000.73 | X32: 18 | Y32: 2024-10-01 | Z32: $1,376,451.75 | AA32: $8,620.04 | AB32: $155,160.73 | AC32: $7,169.02 | AD32: $144,161.46 | AE32: $1,451.02 | AF32: $24,999.27 | AG32: $1,375,000.73 | AK32: 15 | AL32: =MIN(AK32,Comparison!$C$14) -> 15.00
A33: 19 | B33: 2024-11-01 | C33: $1,375,000.73 | D33: $8,620.04 | E33: $163,780.78 | F33: $7,161.46 | G33: $151,322.93 | H33: $1,458.58 | I33: $26,457.85 | J33: $1,373,542.15 | M33: 19 | N33: 2024-11-01 | O33: $1,375,000.73 | P33: $8,620.04 | Q33: $163,780.78 | R33: $7,161.46 | S33: $151,322.93 | T33: $1,458.58 | U33: $26,457.85 | V33: $1,373,542.15 | X33: 19 | Y33: 2024-11-01 | Z33: $1,375,000.73 | AA33: $8,620.04 | AB33: $163,780.78 | AC33: $7,161.46 | AD33: $151,322.93 | AE33: $1,458.58 | AF33: $26,457.85 | AG33: $1,373,542.15 | AK33: 16 | AL33: =MIN(AK33,Comparison!$C$14) -> 16.00
A34: 20 | B34: 2024-12-01 | C34: $1,373,542.15 | D34: $8,620.04 | E34: $172,400.82 | F34: $7,153.87 | G34: $158,476.79 | H34: $1,466.18 | I34: $27,924.02 | J34: $1,372,075.98 | M34: 20 | N34: 2024-12-01 | O34: $1,373,542.15 | P34: $8,620.04 | Q34: $172,400.82 | R34: $7,153.87 | S34: $158,476.79 | T34: $1,466.18 | U34: $27,924.02 | V34: $1,372,075.98 | X34: 20 | Y34: 2024-12-01 | Z34: $1,373,542.15 | AA34: $8,620.04 | AB34: $172,400.82 | AC34: $7,153.87 | AD34: $158,476.79 | AE34: $1,466.18 | AF34: $27,924.02 | AG34: $1,372,075.98 | AK34: 17 | AL34: =MIN(AK34,Comparison!$C$14) -> 17.00
A35: 21 | B35: 2025-01-01 | C35: $1,372,075.98 | D35: $8,620.04 | E35: $181,020.86 | F35: $7,146.23 | G35: $165,623.02 | H35: $1,473.81 | I35: $29,397.84 | J35: $1,370,602.16 | M35: 21 | N35: 2025-01-01 | O35: $1,372,075.98 | P35: $8,620.04 | Q35: $181,020.86 | R35: $7,146.23 | S35: $165,623.02 | T35: $1,473.81 | U35: $29,397.84 | V35: $1,370,602.16 | X35: 21 | Y35: 2025-01-01 | Z35: $1,372,075.98 | AA35: $8,620.04 | AB35: $181,020.86 | AC35: $7,146.23 | AD35: $165,623.02 | AE35: $1,473.81 | AF35: $29,397.84 | AG35: $1,370,602.16 | AK35: 18 | AL35: =MIN(AK35,Comparison!$C$14) -> 18.00
A36: 22 | B36: 2025-02-01 | C36: $1,370,602.16 | D36: $8,620.04 | E36: $189,640.90 | F36: $7,138.55 | G36: $172,761.57 | H36: $1,481.49 | I36: $30,879.32 | J36: $1,369,120.68 | M36: 22 | N36: 2025-02-01 | O36: $1,370,602.16 | P36: $8,620.04 | Q36: $189,640.90 | R36: $7,138.55 | S36: $172,761.57 | T36: $1,481.49 | U36: $30,879.32 | V36: $1,369,120.68 | X36: 22 | Y36: 2025-02-01 | Z36: $1,370,602.16 | AA36: $8,620.04 | AB36: $189,640.90 | AC36: $7,138.55 | AD36: $172,761.57 | AE36: $1,481.49 | AF36: $30,879.32 | AG36: $1,369,120.68 | AK36: 19 | AL36: =MIN(AK36,Comparison!$C$14) -> 19.00
A37: 23 | B37: 2025-03-01 | C37: $1,369,120.68 | D37: $8,620.04 | E37: $198,260.94 | F37: $7,130.84 | G37: $179,892.41 | H37: $1,489.20 | I37: $32,368.53 | J37: $1,367,631.47 | M37: 23 | N37: 2025-03-01 | O37: $1,369,120.68 | P37: $8,620.04 | Q37: $198,260.94 | R37: $7,130.84 | S37: $179,892.41 | T37: $1,489.20 | U37: $32,368.53 | V37: $1,367,631.47 | X37: 23 | Y37: 2025-03-01 | Z37: $1,369,120.68 | AA37: $8,620.04 | AB37: $198,260.94 | AC37: $7,130.84 | AD37: $179,892.41 | AE37: $1,489.20 | AF37: $32,368.53 | AG37: $1,367,631.47 | AK37: 20 | AL37: =MIN(AK37,Comparison!$C$14) -> 20.00
A38: 24 | B38: 2025-04-01 | C38: $1,367,631.47 | D38: $8,620.04 | E38: $206,880.98 | F38: $7,123.08 | G38: $187,015.49 | H38: $1,496.96 | I38: $33,865.49 | J38: $1,366,134.51 | M38: 24 | N38: 2025-04-01 | O38: $1,367,631.47 | P38: $8,620.04 | Q38: $206,880.98 | R38: $7,123.08 | S38: $187,015.49 | T38: $1,496.96 | U38: $33,865.49 | V38: $1,366,134.51 | X38: 24 | Y38: 2025-04-01 | Z38: $1,367,631.47 | AA38: $8,620.04 | AB38: $206,880.98 | AC38: $7,123.08 | AD38: $187,015.49 | AE38: $1,496.96 | AF38: $33,865.49 | AG38: $1,366,134.51 | AK38: 21 | AL38: =MIN(AK38,Comparison!$C$14) -> 21.00
A39: 25 | B39: 2025-05-01 | C39: $1,366,134.51 | D39: $8,620.04 | E39: $215,501.02 | F39: $7,115.28 | G39: $194,130.78 | H39: $1,504.76 | I39: $35,370.24 | J39: $1,364,629.76 | M39: 25 | N39: 2025-05-01 | O39: $1,366,134.51 | P39: $8,620.04 | Q39: $215,501.02 | R39: $7,115.28 | S39: $194,130.78 | T39: $1,504.76 | U39: $35,370.24 | V39: $1,364,629.76 | X39: 25 | Y39: 2025-05-01 | Z39: $1,366,134.51 | AA39: $8,620.04 | AB39: $215,501.02 | AC39: $7,115.28 | AD39: $194,130.78 | AE39: $1,504.76 | AF39: $35,370.24 | AG39: $1,364,629.76 | AK39: 22 | AL39: =MIN(AK39,Comparison!$C$14) -> 22.00
A40: 26 | B40: 2025-06-01 | C40: $1,364,629.76 | D40: $8,620.04 | E40: $224,121.06 | F40: $7,107.45 | G40: $201,238.22 | H40: $1,512.59 | I40: $36,882.84 | J40: $1,363,117.16 | M40: 26 | N40: 2025-06-01 | O40: $1,364,629.76 | P40: $8,620.04 | Q40: $224,121.06 | R40: $7,107.45 | S40: $201,238.22 | T40: $1,512.59 | U40: $36,882.84 | V40: $1,363,117.16 | X40: 26 | Y40: 2025-06-01 | Z40: $1,364,629.76 | AA40: $8,620.04 | AB40: $224,121.06 | AC40: $7,107.45 | AD40: $201,238.22 | AE40: $1,512.59 | AF40: $36,882.84 | AG40: $1,363,117.16 | AK40: 23 | AL40: =MIN(AK40,Comparison!$C$14) -> 23.00
A41: 27 | B41: 2025-07-01 | C41: $1,363,117.16 | D41: $8,620.04 | E41: $232,741.10 | F41: $7,099.57 | G41: $208,337.79 | H41: $1,520.47 | I41: $38,403.31 | J41: $1,361,596.69 | M41: 27 | N41: 2025-07-01 | O41: $1,363,117.16 | P41: $8,620.04 | Q41: $232,741.10 | R41: $7,099.57 | S41: $208,337.79 | T41: $1,520.47 | U41: $38,403.31 | V41: $1,361,596.69 | X41: 27 | Y41: 2025-07-01 | Z41: $1,363,117.16 | AA41: $8,620.04 | AB41: $232,741.10 | AC41: $7,099.57 | AD41: $208,337.79 | AE41: $1,520.47 | AF41: $38,403.31 | AG41: $1,361,596.69 | AK41: 24 | AL41: =MIN(AK41,Comparison!$C$14) -> 24.00
A42: 28 | B42: 2025-08-01 | C42: $1,361,596.69 | D42: $8,620.04 | E42: $241,361.14 | F42: $7,091.65 | G42: $215,429.44 | H42: $1,528.39 | I42: $39,931.70 | J42: $1,360,068.30 | M42: 28 | N42: 2025-08-01 | O42: $1,361,596.69 | P42: $8,620.04 | Q42: $241,361.14 | R42: $7,091.65 | S42: $215,429.44 | T42: $1,528.39 | U42: $39,931.70 | V42: $1,360,068.30 | X42: 28 | Y42: 2025-08-01 | Z42: $1,361,596.69 | AA42: $8,620.04 | AB42: $241,361.14 | AC42: $7,091.65 | AD42: $215,429.44 | AE42: $1,528.39 | AF42: $39,931.70 | AG42: $1,360,068.30 | AK42: 25 | AL42: =MIN(AK42,Comparison!$C$14) -> 25.00
A43: 29 | B43: 2025-09-01 | C43: $1,360,068.30 | D43: $8,620.04 | E43: $249,981.18 | F43: $7,083.69 | G43: $222,513.13 | H43: $1,536.35 | I43: $41,468.05 | J43: $1,358,531.95 | M43: 29 | N43: 2025-09-01 | O43: $1,360,068.30 | P43: $8,620.04 | Q43: $249,981.18 | R43: $7,083.69 | S43: $222,513.13 | T43: $1,536.35 | U43: $41,468.05 | V43: $1,358,531.95 | X43: 29 | Y43: 2025-09-01 | Z43: $1,360,068.30 | AA43: $8,620.04 | AB43: $249,981.18 | AC43: $7,083.69 | AD43: $222,513.13 | AE43: $1,536.35 | AF43: $41,468.05 | AG43: $1,358,531.95 | AK43: 26 | AL43: =MIN(AK43,Comparison!$C$14) -> 26.00
A44: 30 | B44: 2025-10-01 | C44: $1,358,531.95 | D44: $8,620.04 | E44: $258,601.22 | F44: $7,075.69 | G44: $229,588.82 | H44: $1,544.35 | I44: $43,012.41 | J44: $1,356,987.59 | M44: 30 | N44: 2025-10-01 | O44: $1,358,531.95 | P44: $8,620.04 | Q44: $258,601.22 | R44: $7,075.69 | S44: $229,588.82 | T44: $1,544.35 | U44: $43,012.41 | V44: $1,356,987.59 | X44: 30 | Y44: 2025-10-01 | Z44: $1,358,531.95 | AA44: $8,620.04 | AB44: $258,601.22 | AC44: $7,075.69 | AD44: $229,588.82 | AE44: $1,544.35 | AF44: $43,012.41 | AG44: $1,356,987.59 | AK44: 27 | AL44: =MIN(AK44,Comparison!$C$14) -> 27.00
A45: 31 | B45: 2025-11-01 | C45: $1,356,987.59 | D45: $8,620.04 | E45: $267,221.26 | F45: $7,067.64 | G45: $236,656.46 | H45: $1,552.40 | I45: $44,564.80 | J45: $1,355,435.20 | M45: 31 | N45: 2025-11-01 | O45: $1,356,987.59 | P45: $8,620.04 | Q45: $267,221.26 | R45: $7,067.64 | S45: $236,656.46 | T45: $1,552.40 | U45: $44,564.80 | V45: $1,355,435.20 | X45: 31 | Y45: 2025-11-01 | Z45: $1,356,987.59 | AA45: $8,620.04 | AB45: $267,221.26 | AC45: $7,067.64 | AD45: $236,656.46 | AE45: $1,552.40 | AF45: $44,564.80 | AG45: $1,355,435.20 | AK45: 28 | AL45: =MIN(AK45,Comparison!$C$14) -> 28.00
A46: 32 | B46: 2025-12-01 | C46: $1,355,435.20 | D46: $8,620.04 | E46: $275,841.31 | F46: $7,059.56 | G46: $243,716.02 | H46: $1,560.48 | I46: $46,125.29 | J46: $1,353,874.71 | M46: 32 | N46: 2025-12-01 | O46: $1,355,435.20 | P46: $8,620.04 | Q46: $275,841.31 | R46: $7,059.56 | S46: $243,716.02 | T46: $1,560.48 | U46: $46,125.29 | V46: $1,353,874.71 | X46: 32 | Y46: 2025-12-01 | Z46: $1,355,435.20 | AA46: $8,620.04 | AB46: $275,841.31 | AC46: $7,059.56 | AD46: $243,716.02 | AE46: $1,560.48 | AF46: $46,125.29 | AG46: $1,353,874.71 | AK46: 29 | AL46: =MIN(AK46,Comparison!$C$14) -> 29.00
A47: 33 | B47: 2026-01-01 | C47: $1,353,874.71 | D47: $8,620.04 | E47: $284,461.35 | F47: $7,051.43 | G47: $250,767.45 | H47: $1,568.61 | I47: $47,693.90 | J47: $1,352,306.10 | M47: 33 | N47: 2026-01-01 | O47: $1,353,874.71 | P47: $8,620.04 | Q47: $284,461.35 | R47: $7,051.43 | S47: $250,767.45 | T47: $1,568.61 | U47: $47,693.90 | V47: $1,352,306.10 | X47: 33 | Y47: 2026-01-01 | Z47: $1,353,874.71 | AA47: $8,620.04 | AB47: $284,461.35 | AC47: $7,051.43 | AD47: $250,767.45 | AE47: $1,568.61 | AF47: $47,693.90 | AG47: $1,352,306.10 | AK47: 30 | AL47: =MIN(AK47,Comparison!$C$14) -> 30.00
A48: 34 | B48: 2026-02-01 | C48: $1,352,306.10 | D48: $8,620.04 | E48: $293,081.39 | F48: $7,043.26 | G48: $257,810.71 | H48: $1,576.78 | I48: $49,270.68 | J48: $1,350,729.32 | M48: 34 | N48: 2026-02-01 | O48: $1,352,306.10 | P48: $8,620.04 | Q48: $293,081.39 | R48: $7,043.26 | S48: $257,810.71 | T48: $1,576.78 | U48: $49,270.68 | V48: $1,350,729.32 | X48: 34 | Y48: 2026-02-01 | Z48: $1,352,306.10 | AA48: $8,620.04 | AB48: $293,081.39 | AC48: $7,043.26 | AD48: $257,810.71 | AE48: $1,576.78 | AF48: $49,270.68 | AG48: $1,350,729.32
A49: 35 | B49: 2026-03-01 | C49: $1,350,729.32 | D49: $8,620.04 | E49: $301,701.43 | F49: $7,035.05 | G49: $264,845.76 | H49: $1,584.99 | I49: $50,855.67 | J49: $1,349,144.33 | M49: 35 | N49: 2026-03-01 | O49: $1,350,729.32 | P49: $8,620.04 | Q49: $301,701.43 | R49: $7,035.05 | S49: $264,845.76 | T49: $1,584.99 | U49: $50,855.67 | V49: $1,349,144.33 | X49: 35 | Y49: 2026-03-01 | Z49: $1,350,729.32 | AA49: $8,620.04 | AB49: $301,701.43 | AC49: $7,035.05 | AD49: $264,845.76 | AE49: $1,584.99 | AF49: $50,855.67 | AG49: $1,349,144.33
A50: 36 | B50: 2026-04-01 | C50: $1,349,144.33 | D50: $8,620.04 | E50: $310,321.47 | F50: $7,026.79 | G50: $271,872.55 | H50: $1,593.25 | I50: $52,448.92 | J50: $1,347,551.08 | M50: 36 | N50: 2026-04-01 | O50: $1,349,144.33 | P50: $8,620.04 | Q50: $310,321.47 | R50: $7,026.79 | S50: $271,872.55 | T50: $1,593.25 | U50: $52,448.92 | V50: $1,347,551.08 | X50: 36 | Y50: 2026-04-01 | Z50: $1,349,144.33 | AA50: $8,620.04 | AB50: $310,321.47 | AC50: $7,026.79 | AD50: $271,872.55 | AE50: $1,593.25 | AF50: $52,448.92 | AG50: $1,347,551.08
A51: 37 | B51: 2026-05-01 | C51: $1,347,551.08 | D51: $8,620.04 | E51: $318,941.51 | F51: $7,018.50 | G51: $278,891.05 | H51: $1,601.55 | I51: $54,050.46 | J51: $1,345,949.54 | M51: 37 | N51: 2026-05-01 | O51: $1,347,551.08 | P51: $8,620.04 | Q51: $318,941.51 | R51: $7,018.50 | S51: $278,891.05 | T51: $1,601.55 | U51: $54,050.46 | V51: $1,345,949.54 | X51: 37 | Y51: 2026-05-01 | Z51: $1,347,551.08 | AA51: $8,620.04 | AB51: $318,941.51 | AC51: $7,018.50 | AD51: $278,891.05 | AE51: $1,601.55 | AF51: $54,050.46 | AG51: $1,345,949.54
A52: 38 | B52: 2026-06-01 | C52: $1,345,949.54 | D52: $8,620.04 | E52: $327,561.55 | F52: $7,010.15 | G52: $285,901.20 | H52: $1,609.89 | I52: $55,660.35 | J52: $1,344,339.65 | M52: 38 | N52: 2026-06-01 | O52: $1,345,949.54 | P52: $8,620.04 | Q52: $327,561.55 | R52: $7,010.15 | S52: $285,901.20 | T52: $1,609.89 | U52: $55,660.35 | V52: $1,344,339.65 | X52: 38 | Y52: 2026-06-01 | Z52: $1,345,949.54 | AA52: $8,620.04 | AB52: $327,561.55 | AC52: $7,010.15 | AD52: $285,901.20 | AE52: $1,609.89 | AF52: $55,660.35 | AG52: $1,344,339.65
A53: 39 | B53: 2026-07-01 | C53: $1,344,339.65 | D53: $8,620.04 | E53: $336,181.59 | F53: $7,001.77 | G53: $292,902.97 | H53: $1,618.27 | I53: $57,278.62 | J53: $1,342,721.38 | M53: 39 | N53: 2026-07-01 | O53: $1,344,339.65 | P53: $8,620.04 | Q53: $336,181.59 | R53: $7,001.77 | S53: $292,902.97 | T53: $1,618.27 | U53: $57,278.62 | V53: $1,342,721.38 | X53: 39 | Y53: 2026-07-01 | Z53: $1,344,339.65 | AA53: $8,620.04 | AB53: $336,181.59 | AC53: $7,001.77 | AD53: $292,902.97 | AE53: $1,618.27 | AF53: $57,278.62 | AG53: $1,342,721.38
A54: 40 | B54: 2026-08-01 | C54: $1,342,721.38 | D54: $8,620.04 | E54: $344,801.63 | F54: $6,993.34 | G54: $299,896.31 | H54: $1,626.70 | I54: $58,905.32 | J54: $1,341,094.68 | M54: 40 | N54: 2026-08-01 | O54: $1,342,721.38 | P54: $8,620.04 | Q54: $344,801.63 | R54: $6,993.34 | S54: $299,896.31 | T54: $1,626.70 | U54: $58,905.32 | V54: $1,341,094.68 | X54: 40 | Y54: 2026-08-01 | Z54: $1,342,721.38 | AA54: $8,620.04 | AB54: $344,801.63 | AC54: $6,993.34 | AD54: $299,896.31 | AE54: $1,626.70 | AF54: $58,905.32 | AG54: $1,341,094.68
A55: 41 | B55: 2026-09-01 | C55: $1,341,094.68 | D55: $8,620.04 | E55: $353,421.67 | F55: $6,984.87 | G55: $306,881.18 | H55: $1,635.17 | I55: $60,540.49 | J55: $1,339,459.51 | M55: 41 | N55: 2026-09-01 | O55: $1,341,094.68 | P55: $8,620.04 | Q55: $353,421.67 | R55: $6,984.87 | S55: $306,881.18 | T55: $1,635.17 | U55: $60,540.49 | V55: $1,339,459.51 | X55: 41 | Y55: 2026-09-01 | Z55: $1,341,094.68 | AA55: $8,620.04 | AB55: $353,421.67 | AC55: $6,984.87 | AD55: $306,881.18 | AE55: $1,635.17 | AF55: $60,540.49 | AG55: $1,339,459.51
A56: 42 | B56: 2026-10-01 | C56: $1,339,459.51 | D56: $8,620.04 | E56: $362,041.71 | F56: $6,976.35 | G56: $313,857.53 | H56: $1,643.69 | I56: $62,184.18 | J56: $1,337,815.82 | M56: 42 | N56: 2026-10-01 | O56: $1,339,459.51 | P56: $8,620.04 | Q56: $362,041.71 | R56: $6,976.35 | S56: $313,857.53 | T56: $1,643.69 | U56: $62,184.18 | V56: $1,337,815.82 | X56: 42 | Y56: 2026-10-01 | Z56: $1,339,459.51 | AA56: $8,620.04 | AB56: $362,041.71 | AC56: $6,976.35 | AD56: $313,857.53 | AE56: $1,643.69 | AF56: $62,184.18 | AG56: $1,337,815.82
A57: 43 | B57: 2026-11-01 | C57: $1,337,815.82 | D57: $8,620.04 | E57: $370,661.75 | F57: $6,967.79 | G57: $320,825.32 | H57: $1,652.25 | I57: $63,836.43 | J57: $1,336,163.57 | M57: 43 | N57: 2026-11-01 | O57: $1,337,815.82 | P57: $8,620.04 | Q57: $370,661.75 | R57: $6,967.79 | S57: $320,825.32 | T57: $1,652.25 | U57: $63,836.43 | V57: $1,336,163.57 | X57: 43 | Y57: 2026-11-01 | Z57: $1,337,815.82 | AA57: $8,620.04 | AB57: $370,661.75 | AC57: $6,967.79 | AD57: $320,825.32 | AE57: $1,652.25 | AF57: $63,836.43 | AG57: $1,336,163.57
A58: 44 | B58: 2026-12-01 | C58: $1,336,163.57 | D58: $8,620.04 | E58: $379,281.80 | F58: $6,959.19 | G58: $327,784.51 | H58: $1,660.86 | I58: $65,497.29 | J58: $1,334,502.71 | M58: 44 | N58: 2026-12-01 | O58: $1,336,163.57 | P58: $8,620.04 | Q58: $379,281.80 | R58: $6,959.19 | S58: $327,784.51 | T58: $1,660.86 | U58: $65,497.29 | V58: $1,334,502.71 | X58: 44 | Y58: 2026-12-01 | Z58: $1,336,163.57 | AA58: $8,620.04 | AB58: $379,281.80 | AC58: $6,959.19 | AD58: $327,784.51 | AE58: $1,660.86 | AF58: $65,497.29 | AG58: $1,334,502.71
A59: 45 | B59: 2027-01-01 | C59: $1,334,502.71 | D59: $8,620.04 | E59: $387,901.84 | F59: $6,950.53 | G59: $334,735.04 | H59: $1,669.51 | I59: $67,166.79 | J59: $1,332,833.21 | M59: 45 | N59: 2027-01-01 | O59: $1,334,502.71 | P59: $8,620.04 | Q59: $387,901.84 | R59: $6,950.53 | S59: $334,735.04 | T59: $1,669.51 | U59: $67,166.79 | V59: $1,332,833.21 | X59: 45 | Y59: 2027-01-01 | Z59: $1,334,502.71 | AA59: $8,620.04 | AB59: $387,901.84 | AC59: $6,950.53 | AD59: $334,735.04 | AE59: $1,669.51 | AF59: $67,166.79 | AG59: $1,332,833.21
A60: 46 | B60: 2027-02-01 | C60: $1,332,833.21 | D60: $8,620.04 | E60: $396,521.88 | F60: $6,941.84 | G60: $341,676.88 | H60: $1,678.20 | I60: $68,845.00 | J60: $1,331,155.00 | M60: 46 | N60: 2027-02-01 | O60: $1,332,833.21 | P60: $8,620.04 | Q60: $396,521.88 | R60: $6,941.84 | S60: $341,676.88 | T60: $1,678.20 | U60: $68,845.00 | V60: $1,331,155.00 | X60: 46 | Y60: 2027-02-01 | Z60: $1,332,833.21 | AA60: $8,620.04 | AB60: $396,521.88 | AC60: $6,941.84 | AD60: $341,676.88 | AE60: $1,678.20 | AF60: $68,845.00 | AG60: $1,331,155.00
A61: 47 | B61: 2027-03-01 | C61: $1,331,155.00 | D61: $8,620.04 | E61: $405,141.92 | F61: $6,933.10 | G61: $348,609.98 | H61: $1,686.94 | I61: $70,531.94 | J61: $1,329,468.06 | M61: 47 | N61: 2027-03-01 | O61: $1,331,155.00 | P61: $8,620.04 | Q61: $405,141.92 | R61: $6,933.10 | S61: $348,609.98 | T61: $1,686.94 | U61: $70,531.94 | V61: $1,329,468.06 | X61: 47 | Y61: 2027-03-01 | Z61: $1,331,155.00 | AA61: $8,620.04 | AB61: $405,141.92 | AC61: $6,933.10 | AD61: $348,609.98 | AE61: $1,686.94 | AF61: $70,531.94 | AG61: $1,329,468.06
A62: 48 | B62: 2027-04-01 | C62: $1,329,468.06 | D62: $8,620.04 | E62: $413,761.96 | F62: $6,924.31 | G62: $355,534.29 | H62: $1,695.73 | I62: $72,227.67 | J62: $1,327,772.33 | M62: 48 | N62: 2027-04-01 | O62: $1,329,468.06 | P62: $8,620.04 | Q62: $413,761.96 | R62: $6,924.31 | S62: $355,534.29 | T62: $1,695.73 | U62: $72,227.67 | V62: $1,327,772.33 | X62: 48 | Y62: 2027-04-01 | Z62: $1,329,468.06 | AA62: $8,620.04 | AB62: $413,761.96 | AC62: $6,924.31 | AD62: $355,534.29 | AE62: $1,695.73 | AF62: $72,227.67 | AG62: $1,327,772.33
A63: 49 | B63: 2027-05-01 | C63: $1,327,772.33 | D63: $8,620.04 | E63: $422,382.00 | F63: $6,915.48 | G63: $362,449.77 | H63: $1,704.56 | I63: $73,932.23 | J63: $1,326,067.77 | M63: 49 | N63: 2027-05-01 | O63: $1,327,772.33 | P63: $8,620.04 | Q63: $422,382.00 | R63: $6,915.48 | S63: $362,449.77 | T63: $1,704.56 | U63: $73,932.23 | V63: $1,326,067.77 | X63: 49 | Y63: 2027-05-01 | Z63: $1,327,772.33 | AA63: $8,620.04 | AB63: $422,382.00 | AC63: $6,915.48 | AD63: $362,449.77 | AE63: $1,704.56 | AF63: $73,932.23 | AG63: $1,326,067.77
A64: 50 | B64: 2027-06-01 | C64: $1,326,067.77 | D64: $8,620.04 | E64: $431,002.04 | F64: $6,906.60 | G64: $369,356.38 | H64: $1,713.44 | I64: $75,645.66 | J64: $1,324,354.34 | M64: 50 | N64: 2027-06-01 | O64: $1,326,067.77 | P64: $8,620.04 | Q64: $431,002.04 | R64: $6,906.60 | S64: $369,356.38 | T64: $1,713.44 | U64: $75,645.66 | V64: $1,324,354.34 | X64: 50 | Y64: 2027-06-01 | Z64: $1,326,067.77 | AA64: $8,620.04 | AB64: $431,002.04 | AC64: $6,906.60 | AD64: $369,356.38 | AE64: $1,713.44 | AF64: $75,645.66 | AG64: $1,324,354.34
A65: 51 | B65: 2027-07-01 | C65: $1,324,354.34 | D65: $8,620.04 | E65: $439,622.08 | F65: $6,897.68 | G65: $376,254.06 | H65: $1,722.36 | I65: $77,368.03 | J65: $1,322,631.97 | M65: 51 | N65: 2027-07-01 | O65: $1,324,354.34 | P65: $8,620.04 | Q65: $439,622.08 | R65: $6,897.68 | S65: $376,254.06 | T65: $1,722.36 | U65: $77,368.03 | V65: $1,322,631.97 | X65: 51 | Y65: 2027-07-01 | Z65: $1,324,354.34 | AA65: $8,620.04 | AB65: $439,622.08 | AC65: $6,897.68 | AD65: $376,254.06 | AE65: $1,722.36 | AF65: $77,368.03 | AG65: $1,322,631.97
A66: 52 | B66: 2027-08-01 | C66: $1,322,631.97 | D66: $8,620.04 | E66: $448,242.12 | F66: $6,888.71 | G66: $383,142.76 | H66: $1,731.33 | I66: $79,099.36 | J66: $1,320,900.64 | M66: 52 | N66: 2027-08-01 | O66: $1,322,631.97 | P66: $8,620.04 | Q66: $448,242.12 | R66: $6,888.71 | S66: $383,142.76 | T66: $1,731.33 | U66: $79,099.36 | V66: $1,320,900.64 | X66: 52 | Y66: 2027-08-01 | Z66: $1,322,631.97 | AA66: $8,620.04 | AB66: $448,242.12 | AC66: $6,888.71 | AD66: $383,142.76 | AE66: $1,731.33 | AF66: $79,099.36 | AG66: $1,320,900.64
A67: 53 | B67: 2027-09-01 | C67: $1,320,900.64 | D67: $8,620.04 | E67: $456,862.16 | F67: $6,879.69 | G67: $390,022.45 | H67: $1,740.35 | I67: $80,839.71 | J67: $1,319,160.29 | M67: 53 | N67: 2027-09-01 | O67: $1,320,900.64 | P67: $8,620.04 | Q67: $456,862.16 | R67: $6,879.69 | S67: $390,022.45 | T67: $1,740.35 | U67: $80,839.71 | V67: $1,319,160.29 | X67: 53 | Y67: 2027-09-01 | Z67: $1,320,900.64 | AA67: $8,620.04 | AB67: $456,862.16 | AC67: $6,879.69 | AD67: $390,022.45 | AE67: $1,740.35 | AF67: $80,839.71 | AG67: $1,319,160.29
A68: 54 | B68: 2027-10-01 | C68: $1,319,160.29 | D68: $8,620.04 | E68: $465,482.20 | F68: $6,870.63 | G68: $396,893.08 | H68: $1,749.41 | I68: $82,589.12 | J68: $1,317,410.88 | M68: 54 | N68: 2027-10-01 | O68: $1,319,160.29 | P68: $8,620.04 | Q68: $465,482.20 | R68: $6,870.63 | S68: $396,893.08 | T68: $1,749.41 | U68: $82,589.12 | V68: $1,317,410.88 | X68: 54 | Y68: 2027-10-01 | Z68: $1,319,160.29 | AA68: $8,620.04 | AB68: $465,482.20 | AC68: $6,870.63 | AD68: $396,893.08 | AE68: $1,749.41 | AF68: $82,589.12 | AG68: $1,317,410.88
A69: 55 | B69: 2027-11-01 | C69: $1,317,410.88 | D69: $8,620.04 | E69: $474,102.24 | F69: $6,861.51 | G69: $403,754.60 | H69: $1,758.53 | I69: $84,347.65 | J69: $1,315,652.35 | M69: 55 | N69: 2027-11-01 | O69: $1,317,410.88 | P69: $8,620.04 | Q69: $474,102.24 | R69: $6,861.51 | S69: $403,754.60 | T69: $1,758.53 | U69: $84,347.65 | V69: $1,315,652.35 | X69: 55 | Y69: 2027-11-01 | Z69: $1,317,410.88 | AA69: $8,620.04 | AB69: $474,102.24 | AC69: $6,861.51 | AD69: $403,754.60 | AE69: $1,758.53 | AF69: $84,347.65 | AG69: $1,315,652.35
A70: 56 | B70: 2027-12-01 | C70: $1,315,652.35 | D70: $8,620.04 | E70: $482,722.29 | F70: $6,852.36 | G70: $410,606.95 | H70: $1,767.68 | I70: $86,115.33 | J70: $1,313,884.67 | M70: 56 | N70: 2027-12-01 | O70: $1,315,652.35 | P70: $8,620.04 | Q70: $482,722.29 | R70: $6,852.36 | S70: $410,606.95 | T70: $1,767.68 | U70: $86,115.33 | V70: $1,313,884.67 | X70: 56 | Y70: 2027-12-01 | Z70: $1,315,652.35 | AA70: $8,620.04 | AB70: $482,722.29 | AC70: $6,852.36 | AD70: $410,606.95 | AE70: $1,767.68 | AF70: $86,115.33 | AG70: $1,313,884.67
A71: 57 | B71: 2028-01-01 | C71: $1,313,884.67 | D71: $8,620.04 | E71: $491,342.33 | F71: $6,843.15 | G71: $417,450.10 | H71: $1,776.89 | I71: $87,892.22 | J71: $1,312,107.78 | M71: 57 | N71: 2028-01-01 | O71: $1,313,884.67 | P71: $8,620.04 | Q71: $491,342.33 | R71: $6,843.15 | S71: $417,450.10 | T71: $1,776.89 | U71: $87,892.22 | V71: $1,312,107.78 | X71: 57 | Y71: 2028-01-01 | Z71: $1,313,884.67 | AA71: $8,620.04 | AB71: $491,342.33 | AC71: $6,843.15 | AD71: $417,450.10 | AE71: $1,776.89 | AF71: $87,892.22 | AG71: $1,312,107.78
A72: 58 | B72: 2028-02-01 | C72: $1,312,107.78 | D72: $8,620.04 | E72: $499,962.37 | F72: $6,833.89 | G72: $424,284.00 | H72: $1,786.15 | I72: $89,678.37 | J72: $1,310,321.63 | M72: 58 | N72: 2028-02-01 | O72: $1,312,107.78 | P72: $8,620.04 | Q72: $499,962.37 | R72: $6,833.89 | S72: $424,284.00 | T72: $1,786.15 | U72: $89,678.37 | V72: $1,310,321.63 | X72: 58 | Y72: 2028-02-01 | Z72: $1,312,107.78 | AA72: $8,620.04 | AB72: $499,962.37 | AC72: $6,833.89 | AD72: $424,284.00 | AE72: $1,786.15 | AF72: $89,678.37 | AG72: $1,310,321.63
A73: 59 | B73: 2028-03-01 | C73: $1,310,321.63 | D73: $8,620.04 | E73: $508,582.41 | F73: $6,824.59 | G73: $431,108.59 | H73: $1,795.45 | I73: $91,473.82 | J73: $1,308,526.18 | M73: 59 | N73: 2028-03-01 | O73: $1,310,321.63 | P73: $8,620.04 | Q73: $508,582.41 | R73: $6,824.59 | S73: $431,108.59 | T73: $1,795.45 | U73: $91,473.82 | V73: $1,308,526.18 | X73: 59 | Y73: 2028-03-01 | Z73: $1,310,321.63 | AA73: $8,620.04 | AB73: $508,582.41 | AC73: $6,824.59 | AD73: $431,108.59 | AE73: $1,795.45 | AF73: $91,473.82 | AG73: $1,308,526.18
A74: 60 | B74: 2028-04-01 | C74: $1,308,526.18 | D74: $8,620.04 | E74: $517,202.45 | F74: $6,815.24 | G74: $437,923.83 | H74: $1,804.80 | I74: $93,278.62 | J74: $1,306,721.38 | M74: 60 | N74: 2028-04-01 | O74: $1,308,526.18 | P74: $8,620.04 | Q74: $517,202.45 | R74: $6,815.24 | S74: $437,923.83 | T74: $1,804.80 | U74: $93,278.62 | V74: $1,306,721.38 | X74: 60 | Y74: 2028-04-01 | Z74: $1,308,526.18 | AA74: $8,620.04 | AB74: $517,202.45 | AC74: $6,815.24 | AD74: $437,923.83 | AE74: $1,804.80 | AF74: $93,278.62 | AG74: $1,306,721.38
A75: 61 | B75: 2028-05-01 | C75: $1,306,721.38 | D75: $8,620.04 | E75: $525,822.49 | F75: $6,805.84 | G75: $444,729.67 | H75: $1,814.20 | I75: $95,092.82 | J75: $1,304,907.18 | M75: 61 | N75: 2028-05-01 | O75: $1,306,721.38 | P75: $8,620.04 | Q75: $525,822.49 | R75: $6,805.84 | S75: $444,729.67 | T75: $1,814.20 | U75: $95,092.82 | V75: $1,304,907.18 | X75: 61 | Y75: 2028-05-01 | Z75: $1,306,721.38 | AA75: $8,620.04 | AB75: $525,822.49 | AC75: $6,805.84 | AD75: $444,729.67 | AE75: $1,814.20 | AF75: $95,092.82 | AG75: $1,304,907.18
A76: 62 | B76: 2028-06-01 | C76: $1,304,907.18 | D76: $8,620.04 | E76: $534,442.53 | F76: $6,796.39 | G76: $451,526.06 | H76: $1,823.65 | I76: $96,916.47 | J76: $1,303,083.53 | M76: 62 | N76: 2028-06-01 | O76: $1,304,907.18 | P76: $8,620.04 | Q76: $534,442.53 | R76: $6,796.39 | S76: $451,526.06 | T76: $1,823.65 | U76: $96,916.47 | V76: $1,303,083.53 | X76: 62 | Y76: 2028-06-01 | Z76: $1,304,907.18 | AA76: $8,620.04 | AB76: $534,442.53 | AC76: $6,796.39 | AD76: $451,526.06 | AE76: $1,823.65 | AF76: $96,916.47 | AG76: $1,303,083.53
A77: 63 | B77: 2028-07-01 | C77: $1,303,083.53 | D77: $8,620.04 | E77: $543,062.57 | F77: $6,786.89 | G77: $458,312.95 | H77: $1,833.15 | I77: $98,749.62 | J77: $1,301,250.38 | M77: 63 | N77: 2028-07-01 | O77: $1,303,083.53 | P77: $8,620.04 | Q77: $543,062.57 | R77: $6,786.89 | S77: $458,312.95 | T77: $1,833.15 | U77: $98,749.62 | V77: $1,301,250.38 | X77: 63 | Y77: 2028-07-01 | Z77: $1,303,083.53 | AA77: $8,620.04 | AB77: $543,062.57 | AC77: $6,786.89 | AD77: $458,312.95 | AE77: $1,833.15 | AF77: $98,749.62 | AG77: $1,301,250.38
A78: 64 | B78: 2028-08-01 | C78: $1,301,250.38 | D78: $8,620.04 | E78: $551,682.61 | F78: $6,777.35 | G78: $465,090.30 | H78: $1,842.70 | I78: $100,592.31 | J78: $1,299,407.69 | M78: 64 | N78: 2028-08-01 | O78: $1,301,250.38 | P78: $8,620.04 | Q78: $551,682.61 | R78: $6,777.35 | S78: $465,090.30 | T78: $1,842.70 | U78: $100,592.31 | V78: $1,299,407.69 | X78: 64 | Y78: 2028-08-01 | Z78: $1,301,250.38 | AA78: $8,620.04 | AB78: $551,682.61 | AC78: $6,777.35 | AD78: $465,090.30 | AE78: $1,842.70 | AF78: $100,592.31 | AG78: $1,299,407.69
A79: 65 | B79: 2028-09-01 | C79: $1,299,407.69 | D79: =IF($O79<=0,"",P79) -> $8,620.04 | E79: =IF($O79<=0,"",Q79) -> $560,302.65 | F79: $6,767.75 | G79: $471,858.05 | H79: =IF($O79<=0,"",T79) -> $1,852.29 | I79: =IF($O79<=0,"",U79) -> $102,444.60 | J79: =IF($O79<=0,"",V79) -> $1,297,555.40 | M79: 65 | N79: 2028-09-01 | O79: $1,299,407.69 | P79: $8,620.04 | Q79: $560,302.65 | R79: $6,767.75 | S79: $471,858.05 | T79: =P79-R79 -> $1,852.29 | U79: $102,444.60 | V79: =O79-T79 -> $1,297,555.40 | X79: 65 | Y79: 2028-09-01 | Z79: $1,299,407.69 | AA79: $8,620.04 | AB79: $560,302.65 | AC79: $6,767.75 | AD79: $471,858.05 | AE79: =AA79-AC79 -> $1,852.29 | AF79: $102,444.60 | AG79: =Z79-AE79 -> $1,297,555.40
A80: =IF($O80<=0,"",M80) -> 66 | B80: =IF(ISNUMBER(A80),EOMONTH(B79,0)+1,"") -> 2028-10-01 | C80: =IF($O80<=0,"",O80) -> $1,297,555.40 | D80: $8,620.04 | E80: $568,922.69 | F80: =IF($O80<=0,"",R80) -> $6,758.10 | G80: =IF($O80<=0,"",S80) -> $478,616.15 | H80: $1,861.94 | I80: $104,306.54 | J80: $1,295,693.46 | M80: 66 | N80: 2028-10-01 | O80: =V79 -> $1,297,555.40 | P80: $8,620.04 | Q80: =Q79+P80 -> $568,922.69 | R80: =$B$3*O80/12 -> $6,758.10 | S80: =S79+R80 -> $478,616.15 | T80: $1,861.94 | U80: =U79+T80 -> $104,306.54 | V80: $1,295,693.46 | X80: 66 | Y80: 2028-10-01 | Z80: =AG79 -> $1,297,555.40 | AA80: =E$2 -> $8,620.04 | AB80: $568,922.69 | AC80: $6,758.10 | AD80: $478,616.15 | AE80: $1,861.94 | AF80: $104,306.54 | AG80: $1,295,693.46
A81: 67 | B81: 2028-11-01 | C81: $1,295,693.46 | D81: $8,620.04 | E81: $577,542.73 | F81: $6,748.40 | G81: $485,364.55 | H81: $1,871.64 | I81: $106,178.18 | J81: $1,293,821.82 | M81: 67 | N81: =EOMONTH(N80,0)+1 -> 2028-11-01 | O81: $1,295,693.46 | P81: =IF(N81>B$9,MIN(MAX(E$2,F$2),O81*(1+B$3/12)),E$2) -> $8,620.04 | Q81: $577,542.73 | R81: $6,748.40 | S81: $485,364.55 | T81: $1,871.64 | U81: $106,178.18 | V81: $1,293,821.82 | X81: 67 | Y81: =EOMONTH(Y80,0)+1 -> 2028-11-01 | Z81: $1,295,693.46 | AA81: $8,620.04 | AB81: =AB80+AA81 -> $577,542.73 | AC81: =$B$3*Z81/12 -> $6,748.40 | AD81: =AD80+AC81 -> $485,364.55 | AE81: $1,871.64 | AF81: =AF80+AE81 -> $106,178.18 | AG81: $1,293,821.82
A82: 68 | B82: 2028-12-01 | C82: $1,293,821.82 | D82: $8,620.04 | E82: $586,162.77 | F82: $6,738.66 | G82: $492,103.21 | H82: $1,881.39 | I82: $108,059.57 | J82: $1,291,940.43 | M82: 68 | N82: 2028-12-01 | O82: $1,293,821.82 | P82: $8,620.04 | Q82: $586,162.77 | R82: $6,738.66 | S82: $492,103.21 | T82: $1,881.39 | U82: $108,059.57 | V82: $1,291,940.43 | X82: 68 | Y82: 2028-12-01 | Z82: $1,293,821.82 | AA82: $8,620.04 | AB82: $586,162.77 | AC82: $6,738.66 | AD82: $492,103.21 | AE82: $1,881.39 | AF82: $108,059.57 | AG82: $1,291,940.43
A83: 69 | B83: 2029-01-01 | C83: $1,291,940.43 | D83: $8,620.04 | E83: $594,782.82 | F83: $6,728.86 | G83: $498,832.06 | H83: $1,891.18 | I83: $109,950.75 | J83: $1,290,049.25 | M83: 69 | N83: 2029-01-01 | O83: $1,291,940.43 | P83: $8,620.04 | Q83: $594,782.82 | R83: $6,728.86 | S83: $498,832.06 | T83: $1,891.18 | U83: $109,950.75 | V83: $1,290,049.25 | X83: 69 | Y83: 2029-01-01 | Z83: $1,291,940.43 | AA83: $8,620.04 | AB83: $594,782.82 | AC83: $6,728.86 | AD83: $498,832.06 | AE83: $1,891.18 | AF83: $109,950.75 | AG83: $1,290,049.25
A84: 70 | B84: 2029-02-01 | C84: $1,290,049.25 | D84: $8,620.04 | E84: $603,402.86 | F84: $6,719.01 | G84: $505,551.07 | H84: $1,901.03 | I84: $111,851.79 | J84: $1,288,148.21 | M84: 70 | N84: 2029-02-01 | O84: $1,290,049.25 | P84: $8,620.04 | Q84: $603,402.86 | R84: $6,719.01 | S84: $505,551.07 | T84: $1,901.03 | U84: $111,851.79 | V84: $1,288,148.21 | X84: 70 | Y84: 2029-02-01 | Z84: $1,290,049.25 | AA84: $8,620.04 | AB84: $603,402.86 | AC84: $6,719.01 | AD84: $505,551.07 | AE84: $1,901.03 | AF84: $111,851.79 | AG84: $1,288,148.21
A85: 71 | B85: 2029-03-01 | C85: $1,288,148.21 | D85: $8,620.04 | E85: $612,022.90 | F85: $6,709.11 | G85: $512,260.18 | H85: $1,910.94 | I85: $113,762.72 | J85: $1,286,237.28 | M85: 71 | N85: 2029-03-01 | O85: $1,288,148.21 | P85: $8,620.04 | Q85: $612,022.90 | R85: $6,709.11 | S85: $512,260.18 | T85: $1,910.94 | U85: $113,762.72 | V85: $1,286,237.28 | X85: 71 | Y85: 2029-03-01 | Z85: $1,288,148.21 | AA85: $8,620.04 | AB85: $612,022.90 | AC85: $6,709.11 | AD85: $512,260.18 | AE85: $1,910.94 | AF85: $113,762.72 | AG85: $1,286,237.28
A86: 72 | B86: 2029-04-01 | C86: $1,286,237.28 | D86: $8,620.04 | E86: $620,642.94 | F86: $6,699.15 | G86: $518,959.33 | H86: $1,920.89 | I86: $115,683.61 | J86: $1,284,316.39 | M86: 72 | N86: 2029-04-01 | O86: $1,286,237.28 | P86: $8,620.04 | Q86: $620,642.94 | R86: $6,699.15 | S86: $518,959.33 | T86: $1,920.89 | U86: $115,683.61 | V86: $1,284,316.39 | X86: 72 | Y86: 2029-04-01 | Z86: $1,286,237.28 | AA86: $8,620.04 | AB86: $620,642.94 | AC86: $6,699.15 | AD86: $518,959.33 | AE86: $1,920.89 | AF86: $115,683.61 | AG86: $1,284,316.39
A87: 73 | B87: 2029-05-01 | C87: $1,284,316.39 | D87: $8,620.04 | E87: $629,262.98 | F87: $6,689.15 | G87: $525,648.48 | H87: $1,930.89 | I87: $117,614.50 | J87: $1,282,385.50 | M87: 73 | N87: 2029-05-01 | O87: $1,284,316.39 | P87: $8,620.04 | Q87: $629,262.98 | R87: $6,689.15 | S87: $525,648.48 | T87: $1,930.89 | U87: $117,614.50 | V87: $1,282,385.50 | X87: 73 | Y87: 2029-05-01 | Z87: $1,284,316.39 | AA87: $8,620.04 | AB87: $629,262.98 | AC87: $6,689.15 | AD87: $525,648.48 | AE87: $1,930.89 | AF87: $117,614.50 | AG87: $1,282,385.50
A88: 74 | B88: 2029-06-01 | C88: $1,282,385.50 | D88: $8,620.04 | E88: $637,883.02 | F88: $6,679.09 | G88: $532,327.57 | H88: $1,940.95 | I88: $119,555.45 | J88: $1,280,444.55 | M88: 74 | N88: 2029-06-01 | O88: $1,282,385.50 | P88: $8,620.04 | Q88: $637,883.02 | R88: $6,679.09 | S88: $532,327.57 | T88: $1,940.95 | U88: $119,555.45 | V88: $1,280,444.55 | X88: 74 | Y88: 2029-06-01 | Z88: $1,282,385.50 | AA88: $8,620.04 | AB88: $637,883.02 | AC88: $6,679.09 | AD88: $532,327.57 | AE88: $1,940.95 | AF88: $119,555.45 | AG88: $1,280,444.55
A89: 75 | B89: 2029-07-01 | C89: $1,280,444.55 | D89: $8,620.04 | E89: $646,503.06 | F89: $6,668.98 | G89: $538,996.55 | H89: $1,951.06 | I89: $121,506.51 | J89: $1,278,493.49 | M89: 75 | N89: 2029-07-01 | O89: $1,280,444.55 | P89: $8,620.04 | Q89: $646,503.06 | R89: $6,668.98 | S89: $538,996.55 | T89: $1,951.06 | U89: $121,506.51 | V89: $1,278,493.49 | X89: 75 | Y89: 2029-07-01 | Z89: $1,280,444.55 | AA89: $8,620.04 | AB89: $646,503.06 | AC89: $6,668.98 | AD89: $538,996.55 | AE89: $1,951.06 | AF89: $121,506.51 | AG89: $1,278,493.49
A90: 76 | B90: 2029-08-01 | C90: $1,278,493.49 | D90: $8,620.04 | E90: $655,123.10 | F90: $6,658.82 | G90: $545,655.37 | H90: $1,961.22 | I90: $123,467.73 | J90: $1,276,532.27 | M90: 76 | N90: 2029-08-01 | O90: $1,278,493.49 | P90: $8,620.04 | Q90: $655,123.10 | R90: $6,658.82 | S90: $545,655.37 | T90: $1,961.22 | U90: $123,467.73 | V90: $1,276,532.27 | X90: 76 | Y90: 2029-08-01 | Z90: $1,278,493.49 | AA90: $8,620.04 | AB90: $655,123.10 | AC90: $6,658.82 | AD90: $545,655.37 | AE90: $1,961.22 | AF90: $123,467.73 | AG90: $1,276,532.27
A91: 77 | B91: 2029-09-01 | C91: $1,276,532.27 | D91: $8,620.04 | E91: $663,743.14 | F91: $6,648.61 | G91: $552,303.98 | H91: $1,971.44 | I91: $125,439.17 | J91: $1,274,560.83 | M91: 77 | N91: 2029-09-01 | O91: $1,276,532.27 | P91: $8,620.04 | Q91: $663,743.14 | R91: $6,648.61 | S91: $552,303.98 | T91: $1,971.44 | U91: $125,439.17 | V91: $1,274,560.83 | X91: 77 | Y91: 2029-09-01 | Z91: $1,276,532.27 | AA91: $8,620.04 | AB91: $663,743.14 | AC91: $6,648.61 | AD91: $552,303.98 | AE91: $1,971.44 | AF91: $125,439.17 | AG91: $1,274,560.83
A92: 78 | B92: 2029-10-01 | C92: $1,274,560.83 | D92: $8,620.04 | E92: $672,363.18 | F92: $6,638.34 | G92: $558,942.31 | H92: $1,981.70 | I92: $127,420.87 | J92: $1,272,579.13 | M92: 78 | N92: 2029-10-01 | O92: $1,274,560.83 | P92: $8,620.04 | Q92: $672,363.18 | R92: $6,638.34 | S92: $558,942.31 | T92: $1,981.70 | U92: $127,420.87 | V92: $1,272,579.13 | X92: 78 | Y92: 2029-10-01 | Z92: $1,274,560.83 | AA92: $8,620.04 | AB92: $672,363.18 | AC92: $6,638.34 | AD92: $558,942.31 | AE92: $1,981.70 | AF92: $127,420.87 | AG92: $1,272,579.13
A93: 79 | B93: 2029-11-01 | C93: $1,272,579.13 | D93: $8,620.04 | E93: $680,983.22 | F93: $6,628.02 | G93: $565,570.33 | H93: $1,992.02 | I93: $129,412.89 | J93: $1,270,587.11 | M93: 79 | N93: 2029-11-01 | O93: $1,272,579.13 | P93: $8,620.04 | Q93: $680,983.22 | R93: $6,628.02 | S93: $565,570.33 | T93: $1,992.02 | U93: $129,412.89 | V93: $1,270,587.11 | X93: 79 | Y93: 2029-11-01 | Z93: $1,272,579.13 | AA93: $8,620.04 | AB93: $680,983.22 | AC93: $6,628.02 | AD93: $565,570.33 | AE93: $1,992.02 | AF93: $129,412.89 | AG93: $1,270,587.11
A94: 80 | B94: 2029-12-01 | C94: $1,270,587.11 | D94: $8,620.04 | E94: $689,603.26 | F94: $6,617.64 | G94: $572,187.97 | H94: $2,002.40 | I94: $131,415.29 | J94: $1,268,584.71 | M94: 80 | N94: 2029-12-01 | O94: $1,270,587.11 | P94: $8,620.04 | Q94: $689,603.26 | R94: $6,617.64 | S94: $572,187.97 | T94: $2,002.40 | U94: $131,415.29 | V94: $1,268,584.71 | X94: 80 | Y94: 2029-12-01 | Z94: $1,270,587.11 | AA94: $8,620.04 | AB94: $689,603.26 | AC94: $6,617.64 | AD94: $572,187.97 | AE94: $2,002.40 | AF94: $131,415.29 | AG94: $1,268,584.71
A95: 81 | B95: 2030-01-01 | C95: $1,268,584.71 | D95: $8,620.04 | E95: $698,223.31 | F95: $6,607.21 | G95: $578,795.18 | H95: $2,012.83 | I95: $133,428.12 | J95: $1,266,571.88 | M95: 81 | N95: 2030-01-01 | O95: $1,268,584.71 | P95: $8,620.04 | Q95: $698,223.31 | R95: $6,607.21 | S95: $578,795.18 | T95: $2,012.83 | U95: $133,428.12 | V95: $1,266,571.88 | X95: 81 | Y95: 2030-01-01 | Z95: $1,268,584.71 | AA95: $8,620.04 | AB95: $698,223.31 | AC95: $6,607.21 | AD95: $578,795.18 | AE95: $2,012.83 | AF95: $133,428.12 | AG95: $1,266,571.88
A96: 82 | B96: 2030-02-01 | C96: $1,266,571.88 | D96: $8,620.04 | E96: $706,843.35 | F96: $6,596.73 | G96: $585,391.91 | H96: $2,023.31 | I96: $135,451.43 | J96: $1,264,548.57 | M96: 82 | N96: 2030-02-01 | O96: $1,266,571.88 | P96: $8,620.04 | Q96: $706,843.35 | R96: $6,596.73 | S96: $585,391.91 | T96: $2,023.31 | U96: $135,451.43 | V96: $1,264,548.57 | X96: 82 | Y96: 2030-02-01 | Z96: $1,266,571.88 | AA96: $8,620.04 | AB96: $706,843.35 | AC96: $6,596.73 | AD96: $585,391.91 | AE96: $2,023.31 | AF96: $135,451.43 | AG96: $1,264,548.57
A97: 83 | B97: 2030-03-01 | C97: $1,264,548.57 | D97: $8,620.04 | E97: $715,463.39 | F97: $6,586.19 | G97: $591,978.10 | H97: $2,033.85 | I97: $137,485.29 | J97: $1,262,514.71 | M97: 83 | N97: 2030-03-01 | O97: $1,264,548.57 | P97: $8,620.04 | Q97: $715,463.39 | R97: $6,586.19 | S97: $591,978.10 | T97: $2,033.85 | U97: $137,485.29 | V97: $1,262,514.71 | X97: 83 | Y97: 2030-03-01 | Z97: $1,264,548.57 | AA97: $8,620.04 | AB97: $715,463.39 | AC97: $6,586.19 | AD97: $591,978.10 | AE97: $2,033.85 | AF97: $137,485.29 | AG97: $1,262,514.71
A98: 84 | B98: 2030-04-01 | C98: $1,262,514.71 | D98: $8,620.04 | E98: $724,083.43 | F98: $6,575.60 | G98: $598,553.70 | H98: $2,044.44 | I98: $139,529.73 | J98: $1,260,470.27 | M98: 84 | N98: 2030-04-01 | O98: $1,262,514.71 | P98: $8,620.04 | Q98: $724,083.43 | R98: $6,575.60 | S98: $598,553.70 | T98: $2,044.44 | U98: $139,529.73 | V98: $1,260,470.27 | X98: 84 | Y98: 2030-04-01 | Z98: $1,262,514.71 | AA98: $8,620.04 | AB98: $724,083.43 | AC98: $6,575.60 | AD98: $598,553.70 | AE98: $2,044.44 | AF98: $139,529.73 | AG98: $1,260,470.27
A99: 85 | B99: 2030-05-01 | C99: $1,260,470.27 | D99: $8,620.04 | E99: $732,703.47 | F99: $6,564.95 | G99: $605,118.65 | H99: $2,055.09 | I99: $141,584.82 | J99: $1,258,415.18 | M99: 85 | N99: 2030-05-01 | O99: $1,260,470.27 | P99: $8,620.04 | Q99: $732,703.47 | R99: $6,564.95 | S99: $605,118.65 | T99: $2,055.09 | U99: $141,584.82 | V99: $1,258,415.18 | X99: 85 | Y99: 2030-05-01 | Z99: $1,260,470.27 | AA99: $8,620.04 | AB99: $732,703.47 | AC99: $6,564.95 | AD99: $605,118.65 | AE99: $2,055.09 | AF99: $141,584.82 | AG99: $1,258,415.18
A100: 86 | B100: 2030-06-01 | C100: $1,258,415.18 | D100: $8,620.04 | E100: $741,323.51 | F100: $6,554.25 | G100: $611,672.89 | H100: $2,065.80 | I100: $143,650.62 | J100: $1,256,349.38 | M100: 86 | N100: 2030-06-01 | O100: $1,258,415.18 | P100: $8,620.04 | Q100: $741,323.51 | R100: $6,554.25 | S100: $611,672.89 | T100: $2,065.80 | U100: $143,650.62 | V100: $1,256,349.38 | X100: 86 | Y100: 2030-06-01 | Z100: $1,258,415.18 | AA100: $8,620.04 | AB100: $741,323.51 | AC100: $6,554.25 | AD100: $611,672.89 | AE100: $2,065.80 | AF100: $143,650.62 | AG100: $1,256,349.38
A101: 87 | B101: 2030-07-01 | C101: $1,256,349.38 | D101: $8,620.04 | E101: $749,943.55 | F101: $6,543.49 | G101: $618,216.38 | H101: $2,076.55 | I101: $145,727.17 | J101: $1,254,272.83 | M101: 87 | N101: 2030-07-01 | O101: $1,256,349.38 | P101: $8,620.04 | Q101: $749,943.55 | R101: $6,543.49 | S101: $618,216.38 | T101: $2,076.55 | U101: $145,727.17 | V101: $1,254,272.83 | X101: 87 | Y101: 2030-07-01 | Z101: $1,256,349.38 | AA101: $8,620.04 | AB101: $749,943.55 | AC101: $6,543.49 | AD101: $618,216.38 | AE101: $2,076.55 | AF101: $145,727.17 | AG101: $1,254,272.83
A102: 88 | B102: 2030-08-01 | C102: $1,254,272.83 | D102: $8,620.04 | E102: $758,563.59 | F102: $6,532.67 | G102: $624,749.05 | H102: $2,087.37 | I102: $147,814.54 | J102: $1,252,185.46 | M102: 88 | N102: 2030-08-01 | O102: $1,254,272.83 | P102: $8,620.04 | Q102: $758,563.59 | R102: $6,532.67 | S102: $624,749.05 | T102: $2,087.37 | U102: $147,814.54 | V102: $1,252,185.46 | X102: 88 | Y102: 2030-08-01 | Z102: $1,254,272.83 | AA102: $8,620.04 | AB102: $758,563.59 | AC102: $6,532.67 | AD102: $624,749.05 | AE102: $2,087.37 | AF102: $147,814.54 | AG102: $1,252,185.46
A103: 89 | B103: 2030-09-01 | C103: $1,252,185.46 | D103: $8,620.04 | E103: $767,183.63 | F103: $6,521.80 | G103: $631,270.85 | H103: $2,098.24 | I103: $149,912.78 | J103: $1,250,087.22 | M103: 89 | N103: 2030-09-01 | O103: $1,252,185.46 | P103: $8,620.04 | Q103: $767,183.63 | R103: $6,521.80 | S103: $631,270.85 | T103: $2,098.24 | U103: $149,912.78 | V103: $1,250,087.22 | X103: 89 | Y103: 2030-09-01 | Z103: $1,252,185.46 | AA103: $8,620.04 | AB103: $767,183.63 | AC103: $6,521.80 | AD103: $631,270.85 | AE103: $2,098.24 | AF103: $149,912.78 | AG103: $1,250,087.22
A104: 90 | B104: 2030-10-01 | C104: $1,250,087.22 | D104: $8,620.04 | E104: $775,803.67 | F104: $6,510.87 | G104: $637,781.72 | H104: $2,109.17 | I104: $152,021.95 | J104: $1,247,978.05 | M104: 90 | N104: 2030-10-01 | O104: $1,250,087.22 | P104: $8,620.04 | Q104: $775,803.67 | R104: $6,510.87 | S104: $637,781.72 | T104: $2,109.17 | U104: $152,021.95 | V104: $1,247,978.05 | X104: 90 | Y104: 2030-10-01 | Z104: $1,250,087.22 | AA104: $8,620.04 | AB104: $775,803.67 | AC104: $6,510.87 | AD104: $637,781.72 | AE104: $2,109.17 | AF104: $152,021.95 | AG104: $1,247,978.05
A105: 91 | B105: 2030-11-01 | C105: $1,247,978.05 | D105: $8,620.04 | E105: $784,423.71 | F105: $6,499.89 | G105: $644,281.61 | H105: $2,120.16 | I105: $154,142.11 | J105: $1,245,857.89 | M105: 91 | N105: 2030-11-01 | O105: $1,247,978.05 | P105: $8,620.04 | Q105: $784,423.71 | R105: $6,499.89 | S105: $644,281.61 | T105: $2,120.16 | U105: $154,142.11 | V105: $1,245,857.89 | X105: 91 | Y105: 2030-11-01 | Z105: $1,247,978.05 | AA105: $8,620.04 | AB105: $784,423.71 | AC105: $6,499.89 | AD105: $644,281.61 | AE105: $2,120.16 | AF105: $154,142.11 | AG105: $1,245,857.89
A106: 92 | B106: 2030-12-01 | C106: $1,245,857.89 | D106: $8,620.04 | E106: $793,043.75 | F106: $6,488.84 | G106: $650,770.45 | H106: $2,131.20 | I106: $156,273.30 | J106: $1,243,726.70 | M106: 92 | N106: 2030-12-01 | O106: $1,245,857.89 | P106: $8,620.04 | Q106: $793,043.75 | R106: $6,488.84 | S106: $650,770.45 | T106: $2,131.20 | U106: $156,273.30 | V106: $1,243,726.70 | X106: 92 | Y106: 2030-12-01 | Z106: $1,245,857.89 | AA106: $8,620.04 | AB106: $793,043.75 | AC106: $6,488.84 | AD106: $650,770.45 | AE106: $2,131.20 | AF106: $156,273.30 | AG106: $1,243,726.70
A107: 93 | B107: 2031-01-01 | C107: $1,243,726.70 | D107: $8,620.04 | E107: $801,663.79 | F107: $6,477.74 | G107: $657,248.19 | H107: $2,142.30 | I107: $158,415.60 | J107: $1,241,584.40 | M107: 93 | N107: 2031-01-01 | O107: $1,243,726.70 | P107: $8,620.04 | Q107: $801,663.79 | R107: $6,477.74 | S107: $657,248.19 | T107: $2,142.30 | U107: $158,415.60 | V107: $1,241,584.40 | X107: 93 | Y107: 2031-01-01 | Z107: $1,243,726.70 | AA107: $8,620.04 | AB107: $801,663.79 | AC107: $6,477.74 | AD107: $657,248.19 | AE107: $2,142.30 | AF107: $158,415.60 | AG107: $1,241,584.40
A108: 94 | B108: 2031-02-01 | C108: $1,241,584.40 | D108: $8,620.04 | E108: $810,283.84 | F108: $6,466.59 | G108: $663,714.78 | H108: $2,153.46 | I108: $160,569.06 | J108: $1,239,430.94 | M108: 94 | N108: 2031-02-01 | O108: $1,241,584.40 | P108: $8,620.04 | Q108: $810,283.84 | R108: $6,466.59 | S108: $663,714.78 | T108: $2,153.46 | U108: $160,569.06 | V108: $1,239,430.94 | X108: 94 | Y108: 2031-02-01 | Z108: $1,241,584.40 | AA108: $8,620.04 | AB108: $810,283.84 | AC108: $6,466.59 | AD108: $663,714.78 | AE108: $2,153.46 | AF108: $160,569.06 | AG108: $1,239,430.94
A109: 95 | B109: 2031-03-01 | C109: $1,239,430.94 | D109: $8,620.04 | E109: $818,903.88 | F109: $6,455.37 | G109: $670,170.15 | H109: $2,164.67 | I109: $162,733.73 | J109: $1,237,266.27 | M109: 95 | N109: 2031-03-01 | O109: $1,239,430.94 | P109: $8,620.04 | Q109: $818,903.88 | R109: $6,455.37 | S109: $670,170.15 | T109: $2,164.67 | U109: $162,733.73 | V109: $1,237,266.27 | X109: 95 | Y109: 2031-03-01 | Z109: $1,239,430.94 | AA109: $8,620.04 | AB109: $818,903.88 | AC109: $6,455.37 | AD109: $670,170.15 | AE109: $2,164.67 | AF109: $162,733.73 | AG109: $1,237,266.27
A110: 96 | B110: 2031-04-01 | C110: $1,237,266.27 | D110: $8,620.04 | E110: $827,523.92 | F110: $6,444.10 | G110: $676,614.24 | H110: $2,175.95 | I110: $164,909.67 | J110: $1,235,090.33 | M110: 96 | N110: 2031-04-01 | O110: $1,237,266.27 | P110: $8,620.04 | Q110: $827,523.92 | R110: $6,444.10 | S110: $676,614.24 | T110: $2,175.95 | U110: $164,909.67 | V110: $1,235,090.33 | X110: 96 | Y110: 2031-04-01 | Z110: $1,237,266.27 | AA110: $8,620.04 | AB110: $827,523.92 | AC110: $6,444.10 | AD110: $676,614.24 | AE110: $2,175.95 | AF110: $164,909.67 | AG110: $1,235,090.33
A111: 97 | B111: 2031-05-01 | C111: $1,235,090.33 | D111: $8,620.04 | E111: $836,143.96 | F111: $6,432.76 | G111: $683,047.01 | H111: $2,187.28 | I111: $167,096.95 | J111: $1,232,903.05 | M111: 97 | N111: 2031-05-01 | O111: $1,235,090.33 | P111: $8,620.04 | Q111: $836,143.96 | R111: $6,432.76 | S111: $683,047.01 | T111: $2,187.28 | U111: $167,096.95 | V111: $1,232,903.05 | X111: 97 | Y111: 2031-05-01 | Z111: $1,235,090.33 | AA111: $8,620.04 | AB111: $836,143.96 | AC111: $6,432.76 | AD111: $683,047.01 | AE111: $2,187.28 | AF111: $167,096.95 | AG111: $1,232,903.05
A112: 98 | B112: 2031-06-01 | C112: $1,232,903.05 | D112: $8,620.04 | E112: $844,764.00 | F112: $6,421.37 | G112: $689,468.38 | H112: $2,198.67 | I112: $169,295.62 | J112: $1,230,704.38 | M112: 98 | N112: 2031-06-01 | O112: $1,232,903.05 | P112: $8,620.04 | Q112: $844,764.00 | R112: $6,421.37 | S112: $689,468.38 | T112: $2,198.67 | U112: $169,295.62 | V112: $1,230,704.38 | X112: 98 | Y112: 2031-06-01 | Z112: $1,232,903.05 | AA112: $8,620.04 | AB112: $844,764.00 | AC112: $6,421.37 | AD112: $689,468.38 | AE112: $2,198.67 | AF112: $169,295.62 | AG112: $1,230,704.38
A113: 99 | B113: 2031-07-01 | C113: $1,230,704.38 | D113: $8,620.04 | E113: $853,384.04 | F113: $6,409.92 | G113: $695,878.29 | H113: $2,210.12 | I113: $171,505.74 | J113: $1,228,494.26 | M113: 99 | N113: 2031-07-01 | O113: $1,230,704.38 | P113: $8,620.04 | Q113: $853,384.04 | R113: $6,409.92 | S113: $695,878.29 | T113: $2,210.12 | U113: $171,505.74 | V113: $1,228,494.26 | X113: 99 | Y113: 2031-07-01 | Z113: $1,230,704.38 | AA113: $8,620.04 | AB113: $853,384.04 | AC113: $6,409.92 | AD113: $695,878.29 | AE113: $2,210.12 | AF113: $171,505.74 | AG113: $1,228,494.26
A114: 100 | B114: 2031-08-01 | C114: $1,228,494.26 | D114: $8,620.04 | E114: $862,004.08 | F114: $6,398.41 | G114: $702,276.70 | H114: $2,221.63 | I114: $173,727.38 | J114: $1,226,272.62 | M114: 100 | N114: 2031-08-01 | O114: $1,228,494.26 | P114: $8,620.04 | Q114: $862,004.08 | R114: $6,398.41 | S114: $702,276.70 | T114: $2,221.63 | U114: $173,727.38 | V114: $1,226,272.62 | X114: 100 | Y114: 2031-08-01 | Z114: $1,228,494.26 | AA114: $8,620.04 | AB114: $862,004.08 | AC114: $6,398.41 | AD114: $702,276.70 | AE114: $2,221.63 | AF114: $173,727.38 | AG114: $1,226,272.62
A115: 101 | B115: 2031-09-01 | C115: $1,226,272.62 | D115: $8,620.04 | E115: $870,624.12 | F115: $6,386.84 | G115: $708,663.54 | H115: $2,233.20 | I115: $175,960.58 | J115: $1,224,039.42 | M115: 101 | N115: 2031-09-01 | O115: $1,226,272.62 | P115: $8,620.04 | Q115: $870,624.12 | R115: $6,386.84 | S115: $708,663.54 | T115: $2,233.20 | U115: $175,960.58 | V115: $1,224,039.42 | X115: 101 | Y115: 2031-09-01 | Z115: $1,226,272.62 | AA115: $8,620.04 | AB115: $870,624.12 | AC115: $6,386.84 | AD115: $708,663.54 | AE115: $2,233.20 | AF115: $175,960.58 | AG115: $1,224,039.42
A116: 102 | B116: 2031-10-01 | C116: $1,224,039.42 | D116: $8,620.04 | E116: $879,244.16 | F116: $6,375.21 | G116: $715,038.74 | H116: $2,244.84 | I116: $178,205.42 | J116: $1,221,794.58 | M116: 102 | N116: 2031-10-01 | O116: $1,224,039.42 | P116: $8,620.04 | Q116: $879,244.16 | R116: $6,375.21 | S116: $715,038.74 | T116: $2,244.84 | U116: $178,205.42 | V116: $1,221,794.58 | X116: 102 | Y116: 2031-10-01 | Z116: $1,224,039.42 | AA116: $8,620.04 | AB116: $879,244.16 | AC116: $6,375.21 | AD116: $715,038.74 | AE116: $2,244.84 | AF116: $178,205.42 | AG116: $1,221,794.58
A117: 103 | B117: 2031-11-01 | C117: $1,221,794.58 | D117: $8,620.04 | E117: $887,864.20 | F117: $6,363.51 | G117: $721,402.26 | H117: $2,256.53 | I117: $180,461.95 | J117: $1,219,538.05 | M117: 103 | N117: 2031-11-01 | O117: $1,221,794.58 | P117: $8,620.04 | Q117: $887,864.20 | R117: $6,363.51 | S117: $721,402.26 | T117: $2,256.53 | U117: $180,461.95 | V117: $1,219,538.05 | X117: 103 | Y117: 2031-11-01 | Z117: $1,221,794.58 | AA117: $8,620.04 | AB117: $887,864.20 | AC117: $6,363.51 | AD117: $721,402.26 | AE117: $2,256.53 | AF117: $180,461.95 | AG117: $1,219,538.05
A118: 104 | B118: 2031-12-01 | C118: $1,219,538.05 | D118: $8,620.04 | E118: $896,484.24 | F118: $6,351.76 | G118: $727,754.02 | H118: $2,268.28 | I118: $182,730.23 | J118: $1,217,269.77 | M118: 104 | N118: 2031-12-01 | O118: $1,219,538.05 | P118: $8,620.04 | Q118: $896,484.24 | R118: $6,351.76 | S118: $727,754.02 | T118: $2,268.28 | U118: $182,730.23 | V118: $1,217,269.77 | X118: 104 | Y118: 2031-12-01 | Z118: $1,219,538.05 | AA118: $8,620.04 | AB118: $896,484.24 | AC118: $6,351.76 | AD118: $727,754.02 | AE118: $2,268.28 | AF118: $182,730.23 | AG118: $1,217,269.77
A119: 105 | B119: 2032-01-01 | C119: $1,217,269.77 | D119: $8,620.04 | E119: $905,104.28 | F119: $6,339.95 | G119: $734,093.97 | H119: $2,280.09 | I119: $185,010.32 | J119: $1,214,989.68 | M119: 105 | N119: 2032-01-01 | O119: $1,217,269.77 | P119: $8,620.04 | Q119: $905,104.28 | R119: $6,339.95 | S119: $734,093.97 | T119: $2,280.09 | U119: $185,010.32 | V119: $1,214,989.68 | X119: 105 | Y119: 2032-01-01 | Z119: $1,217,269.77 | AA119: $8,620.04 | AB119: $905,104.28 | AC119: $6,339.95 | AD119: $734,093.97 | AE119: $2,280.09 | AF119: $185,010.32 | AG119: $1,214,989.68
A120: 106 | B120: 2032-02-01 | C120: $1,214,989.68 | D120: $8,620.04 | E120: $913,724.33 | F120: $6,328.07 | G120: $740,422.04 | H120: $2,291.97 | I120: $187,302.29 | J120: $1,212,697.71 | M120: 106 | N120: 2032-02-01 | O120: $1,214,989.68 | P120: $8,620.04 | Q120: $913,724.33 | R120: $6,328.07 | S120: $740,422.04 | T120: $2,291.97 | U120: $187,302.29 | V120: $1,212,697.71 | X120: 106 | Y120: 2032-02-01 | Z120: $1,214,989.68 | AA120: $8,620.04 | AB120: $913,724.33 | AC120: $6,328.07 | AD120: $740,422.04 | AE120: $2,291.97 | AF120: $187,302.29 | AG120: $1,212,697.71
A121: 107 | B121: 2032-03-01 | C121: $1,212,697.71 | D121: $8,620.04 | E121: $922,344.37 | F121: $6,316.13 | G121: $746,738.17 | H121: $2,303.91 | I121: $189,606.20 | J121: $1,210,393.80 | M121: 107 | N121: 2032-03-01 | O121: $1,212,697.71 | P121: $8,620.04 | Q121: $922,344.37 | R121: $6,316.13 | S121: $746,738.17 | T121: $2,303.91 | U121: $189,606.20 | V121: $1,210,393.80 | X121: 107 | Y121: 2032-03-01 | Z121: $1,212,697.71 | AA121: $8,620.04 | AB121: $922,344.37 | AC121: $6,316.13 | AD121: $746,738.17 | AE121: $2,303.91 | AF121: $189,606.20 | AG121: $1,210,393.80
A122: 108 | B122: 2032-04-01 | C122: $1,210,393.80 | D122: $8,620.04 | E122: $930,964.41 | F122: $6,304.13 | G122: $753,042.30 | H122: $2,315.91 | I122: $191,922.10 | J122: $1,208,077.90 | M122: 108 | N122: 2032-04-01 | O122: $1,210,393.80 | P122: $8,620.04 | Q122: $930,964.41 | R122: $6,304.13 | S122: $753,042.30 | T122: $2,315.91 | U122: $191,922.10 | V122: $1,208,077.90 | X122: 108 | Y122: 2032-04-01 | Z122: $1,210,393.80 | AA122: $8,620.04 | AB122: $930,964.41 | AC122: $6,304.13 | AD122: $753,042.30 | AE122: $2,315.91 | AF122: $191,922.10 | AG122: $1,208,077.90
A123: 109 | B123: 2032-05-01 | C123: $1,208,077.90 | D123: $8,620.04 | E123: $939,584.45 | F123: $6,292.07 | G123: $759,334.38 | H123: $2,327.97 | I123: $194,250.07 | J123: $1,205,749.93 | M123: 109 | N123: 2032-05-01 | O123: $1,208,077.90 | P123: $8,620.04 | Q123: $939,584.45 | R123: $6,292.07 | S123: $759,334.38 | T123: $2,327.97 | U123: $194,250.07 | V123: $1,205,749.93 | X123: 109 | Y123: 2032-05-01 | Z123: $1,208,077.90 | AA123: $8,620.04 | AB123: $939,584.45 | AC123: $6,292.07 | AD123: $759,334.38 | AE123: $2,327.97 | AF123: $194,250.07 | AG123: $1,205,749.93
A124: 110 | B124: 2032-06-01 | C124: $1,205,749.93 | D124: $8,620.04 | E124: $948,204.49 | F124: $6,279.95 | G124: $765,614.32 | H124: $2,340.09 | I124: $196,590.16 | J124: $1,203,409.84 | M124: 110 | N124: 2032-06-01 | O124: $1,205,749.93 | P124: $8,620.04 | Q124: $948,204.49 | R124: $6,279.95 | S124: $765,614.32 | T124: $2,340.09 | U124: $196,590.16 | V124: $1,203,409.84 | X124: 110 | Y124: 2032-06-01 | Z124: $1,205,749.93 | AA124: $8,620.04 | AB124: $948,204.49 | AC124: $6,279.95 | AD124: $765,614.32 | AE124: $2,340.09 | AF124: $196,590.16 | AG124: $1,203,409.84
A125: 111 | B125: 2032-07-01 | C125: $1,203,409.84 | D125: $8,620.04 | E125: $956,824.53 | F125: $6,267.76 | G125: $771,882.08 | H125: $2,352.28 | I125: $198,942.45 | J125: $1,201,057.55 | M125: 111 | N125: 2032-07-01 | O125: $1,203,409.84 | P125: $8,620.04 | Q125: $956,824.53 | R125: $6,267.76 | S125: $771,882.08 | T125: $2,352.28 | U125: $198,942.45 | V125: $1,201,057.55 | X125: 111 | Y125: 2032-07-01 | Z125: $1,203,409.84 | AA125: $8,620.04 | AB125: $956,824.53 | AC125: $6,267.76 | AD125: $771,882.08 | AE125: $2,352.28 | AF125: $198,942.45 | AG125: $1,201,057.55
A126: 112 | B126: 2032-08-01 | C126: $1,201,057.55 | D126: $8,620.04 | E126: $965,444.57 | F126: $6,255.51 | G126: $778,137.59 | H126: $2,364.53 | I126: $201,306.98 | J126: $1,198,693.02 | M126: 112 | N126: 2032-08-01 | O126: $1,201,057.55 | P126: $8,620.04 | Q126: $965,444.57 | R126: $6,255.51 | S126: $778,137.59 | T126: $2,364.53 | U126: $201,306.98 | V126: $1,198,693.02 | X126: 112 | Y126: 2032-08-01 | Z126: $1,201,057.55 | AA126: $8,620.04 | AB126: $965,444.57 | AC126: $6,255.51 | AD126: $778,137.59 | AE126: $2,364.53 | AF126: $201,306.98 | AG126: $1,198,693.02
A127: 113 | B127: 2032-09-01 | C127: $1,198,693.02 | D127: $8,620.04 | E127: $974,064.61 | F127: $6,243.19 | G127: $784,380.79 | H127: $2,376.85 | I127: $203,683.83 | J127: $1,196,316.17 | M127: 113 | N127: 2032-09-01 | O127: $1,198,693.02 | P127: $8,620.04 | Q127: $974,064.61 | R127: $6,243.19 | S127: $784,380.79 | T127: $2,376.85 | U127: $203,683.83 | V127: $1,196,316.17 | X127: 113 | Y127: 2032-09-01 | Z127: $1,198,693.02 | AA127: $8,620.04 | AB127: $974,064.61 | AC127: $6,243.19 | AD127: $784,380.79 | AE127: $2,376.85 | AF127: $203,683.83 | AG127: $1,196,316.17
A128: 114 | B128: 2032-10-01 | C128: $1,196,316.17 | D128: $8,620.04 | E128: $982,684.65 | F128: $6,230.81 | G128: $790,611.60 | H128: $2,389.23 | I128: $206,073.05 | J128: $1,193,926.95 | M128: 114 | N128: 2032-10-01 | O128: $1,196,316.17 | P128: $8,620.04 | Q128: $982,684.65 | R128: $6,230.81 | S128: $790,611.60 | T128: $2,389.23 | U128: $206,073.05 | V128: $1,193,926.95 | X128: 114 | Y128: 2032-10-01 | Z128: $1,196,316.17 | AA128: $8,620.04 | AB128: $982,684.65 | AC128: $6,230.81 | AD128: $790,611.60 | AE128: $2,389.23 | AF128: $206,073.05 | AG128: $1,193,926.95
A129: 115 | B129: 2032-11-01 | C129: $1,193,926.95 | D129: $8,620.04 | E129: $991,304.69 | F129: $6,218.37 | G129: $796,829.97 | H129: $2,401.67 | I129: $208,474.72 | J129: $1,191,525.28 | M129: 115 | N129: 2032-11-01 | O129: $1,193,926.95 | P129: $8,620.04 | Q129: $991,304.69 | R129: $6,218.37 | S129: $796,829.97 | T129: $2,401.67 | U129: $208,474.72 | V129: $1,191,525.28 | X129: 115 | Y129: 2032-11-01 | Z129: $1,193,926.95 | AA129: $8,620.04 | AB129: $991,304.69 | AC129: $6,218.37 | AD129: $796,829.97 | AE129: $2,401.67 | AF129: $208,474.72 | AG129: $1,191,525.28
A130: 116 | B130: 2032-12-01 | C130: $1,191,525.28 | D130: $8,620.04 | E130: $999,924.73 | F130: $6,205.86 | G130: $803,035.83 | H130: $2,414.18 | I130: $210,888.90 | J130: $1,189,111.10 | M130: 116 | N130: 2032-12-01 | O130: $1,191,525.28 | P130: $8,620.04 | Q130: $999,924.73 | R130: $6,205.86 | S130: $803,035.83 | T130: $2,414.18 | U130: $210,888.90 | V130: $1,189,111.10 | X130: 116 | Y130: 2032-12-01 | Z130: $1,191,525.28 | AA130: $8,620.04 | AB130: $999,924.73 | AC130: $6,205.86 | AD130: $803,035.83 | AE130: $2,414.18 | AF130: $210,888.90 | AG130: $1,189,111.10
A131: 117 | B131: 2033-01-01 | C131: $1,189,111.10 | D131: $8,620.04 | E131: $1,008,544.77 | F131: $6,193.29 | G131: $809,229.12 | H131: $2,426.75 | I131: $213,315.66 | J131: $1,186,684.34 | M131: 117 | N131: 2033-01-01 | O131: $1,189,111.10 | P131: $8,620.04 | Q131: $1,008,544.77 | R131: $6,193.29 | S131: $809,229.12 | T131: $2,426.75 | U131: $213,315.66 | V131: $1,186,684.34 | X131: 117 | Y131: 2033-01-01 | Z131: $1,189,111.10 | AA131: $8,620.04 | AB131: $1,008,544.77 | AC131: $6,193.29 | AD131: $809,229.12 | AE131: $2,426.75 | AF131: $213,315.66 | AG131: $1,186,684.34
A132: 118 | B132: 2033-02-01 | C132: $1,186,684.34 | D132: $8,620.04 | E132: $1,017,164.82 | F132: $6,180.65 | G132: $815,409.76 | H132: $2,439.39 | I132: $215,755.05 | J132: $1,184,244.95 | M132: 118 | N132: 2033-02-01 | O132: $1,186,684.34 | P132: $8,620.04 | Q132: $1,017,164.82 | R132: $6,180.65 | S132: $815,409.76 | T132: $2,439.39 | U132: $215,755.05 | V132: $1,184,244.95 | X132: 118 | Y132: 2033-02-01 | Z132: $1,186,684.34 | AA132: $8,620.04 | AB132: $1,017,164.82 | AC132: $6,180.65 | AD132: $815,409.76 | AE132: $2,439.39 | AF132: $215,755.05 | AG132: $1,184,244.95
A133: 119 | B133: 2033-03-01 | C133: $1,184,244.95 | D133: $8,620.04 | E133: $1,025,784.86 | F133: $6,167.94 | G133: $821,577.71 | H133: $2,452.10 | I133: $218,207.15 | J133: $1,181,792.85 | M133: 119 | N133: 2033-03-01 | O133: $1,184,244.95 | P133: $8,620.04 | Q133: $1,025,784.86 | R133: $6,167.94 | S133: $821,577.71 | T133: $2,452.10 | U133: $218,207.15 | V133: $1,181,792.85 | X133: 119 | Y133: 2033-03-01 | Z133: $1,184,244.95 | AA133: $8,620.04 | AB133: $1,025,784.86 | AC133: $6,167.94 | AD133: $821,577.71 | AE133: $2,452.10 | AF133: $218,207.15 | AG133: $1,181,792.85
A134: 120 | B134: 2033-04-01 | C134: $1,181,792.85 | D134: $8,620.04 | E134: $1,034,404.90 | F134: $6,155.17 | G134: $827,732.88 | H134: $2,464.87 | I134: $220,672.02 | J134: $1,179,327.98 | M134: 120 | N134: 2033-04-01 | O134: $1,181,792.85 | P134: $8,620.04 | Q134: $1,034,404.90 | R134: $6,155.17 | S134: $827,732.88 | T134: $2,464.87 | U134: $220,672.02 | V134: $1,179,327.98 | X134: 120 | Y134: 2033-04-01 | Z134: $1,181,792.85 | AA134: $8,620.04 | AB134: $1,034,404.90 | AC134: $6,155.17 | AD134: $827,732.88 | AE134: $2,464.87 | AF134: $220,672.02 | AG134: $1,179,327.98
A135: 121 | B135: 2033-05-01 | C135: $1,179,327.98 | D135: $8,620.04 | E135: $1,043,024.94 | F135: $6,142.33 | G135: $833,875.21 | H135: $2,477.71 | I135: $223,149.73 | J135: $1,176,850.27 | M135: 121 | N135: 2033-05-01 | O135: $1,179,327.98 | P135: $8,620.04 | Q135: $1,043,024.94 | R135: $6,142.33 | S135: $833,875.21 | T135: $2,477.71 | U135: $223,149.73 | V135: $1,176,850.27 | X135: 121 | Y135: 2033-05-01 | Z135: $1,179,327.98 | AA135: $8,620.04 | AB135: $1,043,024.94 | AC135: $6,142.33 | AD135: $833,875.21 | AE135: $2,477.71 | AF135: $223,149.73 | AG135: $1,176,850.27
A136: 122 | B136: 2033-06-01 | C136: $1,176,850.27 | D136: $8,620.04 | E136: $1,051,644.98 | F136: $6,129.43 | G136: $840,004.64 | H136: $2,490.61 | I136: $225,640.34 | J136: $1,174,359.66 | M136: 122 | N136: 2033-06-01 | O136: $1,176,850.27 | P136: $8,620.04 | Q136: $1,051,644.98 | R136: $6,129.43 | S136: $840,004.64 | T136: $2,490.61 | U136: $225,640.34 | V136: $1,174,359.66 | X136: 122 | Y136: 2033-06-01 | Z136: $1,176,850.27 | AA136: $8,620.04 | AB136: $1,051,644.98 | AC136: $6,129.43 | AD136: $840,004.64 | AE136: $2,490.61 | AF136: $225,640.34 | AG136: $1,174,359.66
A137: 123 | B137: 2033-07-01 | C137: $1,174,359.66 | D137: $8,620.04 | E137: $1,060,265.02 | F137: $6,116.46 | G137: $846,121.10 | H137: $2,503.58 | I137: $228,143.92 | J137: $1,171,856.08 | M137: 123 | N137: 2033-07-01 | O137: $1,174,359.66 | P137: $8,620.04 | Q137: $1,060,265.02 | R137: $6,116.46 | S137: $846,121.10 | T137: $2,503.58 | U137: $228,143.92 | V137: $1,171,856.08 | X137: 123 | Y137: 2033-07-01 | Z137: $1,174,359.66 | AA137: $8,620.04 | AB137: $1,060,265.02 | AC137: $6,116.46 | AD137: $846,121.10 | AE137: $2,503.58 | AF137: $228,143.92 | AG137: $1,171,856.08
A138: 124 | B138: 2033-08-01 | C138: $1,171,856.08 | D138: $8,620.04 | E138: $1,068,885.06 | F138: $6,103.42 | G138: $852,224.51 | H138: $2,516.62 | I138: $230,660.55 | J138: $1,169,339.45 | M138: 124 | N138: 2033-08-01 | O138: $1,171,856.08 | P138: $8,620.04 | Q138: $1,068,885.06 | R138: $6,103.42 | S138: $852,224.51 | T138: $2,516.62 | U138: $230,660.55 | V138: $1,169,339.45 | X138: 124 | Y138: 2033-08-01 | Z138: $1,171,856.08 | AA138: $8,620.04 | AB138: $1,068,885.06 | AC138: $6,103.42 | AD138: $852,224.51 | AE138: $2,516.62 | AF138: $230,660.55 | AG138: $1,169,339.45
A139: 125 | B139: 2033-09-01 | C139: $1,169,339.45 | D139: $8,620.04 | E139: $1,077,505.10 | F139: $6,090.31 | G139: $858,314.82 | H139: $2,529.73 | I139: $233,190.28 | J139: $1,166,809.72 | M139: 125 | N139: 2033-09-01 | O139: $1,169,339.45 | P139: $8,620.04 | Q139: $1,077,505.10 | R139: $6,090.31 | S139: $858,314.82 | T139: $2,529.73 | U139: $233,190.28 | V139: $1,166,809.72 | X139: 125 | Y139: 2033-09-01 | Z139: $1,169,339.45 | AA139: $8,620.04 | AB139: $1,077,505.10 | AC139: $6,090.31 | AD139: $858,314.82 | AE139: $2,529.73 | AF139: $233,190.28 | AG139: $1,166,809.72
A140: 126 | B140: 2033-10-01 | C140: $1,166,809.72 | D140: $8,620.04 | E140: $1,086,125.14 | F140: $6,077.13 | G140: $864,391.96 | H140: $2,542.91 | I140: $235,733.19 | J140: $1,164,266.81 | M140: 126 | N140: 2033-10-01 | O140: $1,166,809.72 | P140: $8,620.04 | Q140: $1,086,125.14 | R140: $6,077.13 | S140: $864,391.96 | T140: $2,542.91 | U140: $235,733.19 | V140: $1,164,266.81 | X140: 126 | Y140: 2033-10-01 | Z140: $1,166,809.72 | AA140: $8,620.04 | AB140: $1,086,125.14 | AC140: $6,077.13 | AD140: $864,391.96 | AE140: $2,542.91 | AF140: $235,733.19 | AG140: $1,164,266.81
A141: 127 | B141: 2033-11-01 | C141: $1,164,266.81 | D141: $8,620.04 | E141: $1,094,745.18 | F141: $6,063.89 | G141: $870,455.85 | H141: $2,556.15 | I141: $238,289.34 | J141: $1,161,710.66 | M141: 127 | N141: 2033-11-01 | O141: $1,164,266.81 | P141: $8,620.04 | Q141: $1,094,745.18 | R141: $6,063.89 | S141: $870,455.85 | T141: $2,556.15 | U141: $238,289.34 | V141: $1,161,710.66 | X141: 127 | Y141: 2033-11-01 | Z141: $1,164,266.81 | AA141: $8,620.04 | AB141: $1,094,745.18 | AC141: $6,063.89 | AD141: $870,455.85 | AE141: $2,556.15 | AF141: $238,289.34 | AG141: $1,161,710.66
A142: 128 | B142: 2033-12-01 | C142: $1,161,710.66 | D142: $8,620.04 | E142: $1,103,365.22 | F142: $6,050.58 | G142: $876,506.42 | H142: $2,569.46 | I142: $240,858.80 | J142: $1,159,141.20 | M142: 128 | N142: 2033-12-01 | O142: $1,161,710.66 | P142: $8,620.04 | Q142: $1,103,365.22 | R142: $6,050.58 | S142: $876,506.42 | T142: $2,569.46 | U142: $240,858.80 | V142: $1,159,141.20 | X142: 128 | Y142: 2033-12-01 | Z142: $1,161,710.66 | AA142: $8,620.04 | AB142: $1,103,365.22 | AC142: $6,050.58 | AD142: $876,506.42 | AE142: $2,569.46 | AF142: $240,858.80 | AG142: $1,159,141.20
A143: 129 | B143: 2034-01-01 | C143: $1,159,141.20 | D143: =IF($O143<=0,"",P143) -> $8,620.04 | E143: =IF($O143<=0,"",Q143) -> $1,111,985.26 | F143: $6,037.19 | G143: $882,543.62 | H143: =IF($O143<=0,"",T143) -> $2,582.85 | I143: =IF($O143<=0,"",U143) -> $243,441.65 | J143: =IF($O143<=0,"",V143) -> $1,156,558.35 | M143: 129 | N143: 2034-01-01 | O143: $1,159,141.20 | P143: $8,620.04 | Q143: $1,111,985.26 | R143: $6,037.19 | S143: $882,543.62 | T143: =P143-R143 -> $2,582.85 | U143: $243,441.65 | V143: =O143-T143 -> $1,156,558.35 | X143: 129 | Y143: 2034-01-01 | Z143: $1,159,141.20 | AA143: $8,620.04 | AB143: $1,111,985.26 | AC143: $6,037.19 | AD143: $882,543.62 | AE143: =AA143-AC143 -> $2,582.85 | AF143: $243,441.65 | AG143: =Z143-AE143 -> $1,156,558.35
A144: =IF($O144<=0,"",M144) -> 130 | B144: =IF(ISNUMBER(A144),EOMONTH(B143,0)+1,"") -> 2034-02-01 | C144: =IF($O144<=0,"",O144) -> $1,156,558.35 | D144: $8,620.04 | E144: $1,120,605.30 | F144: =IF($O144<=0,"",R144) -> $6,023.74 | G144: =IF($O144<=0,"",S144) -> $888,567.36 | H144: $2,596.30 | I144: $246,037.95 | J144: $1,153,962.05 | M144: 130 | N144: 2034-02-01 | O144: =V143 -> $1,156,558.35 | P144: $8,620.04 | Q144: =Q143+P144 -> $1,120,605.30 | R144: =$B$3*O144/12 -> $6,023.74 | S144: =S143+R144 -> $888,567.36 | T144: $2,596.30 | U144: =U143+T144 -> $246,037.95 | V144: $1,153,962.05 | X144: 130 | Y144: 2034-02-01 | Z144: =AG143 -> $1,156,558.35 | AA144: =E$2 -> $8,620.04 | AB144: $1,120,605.30 | AC144: $6,023.74 | AD144: $888,567.36 | AE144: $2,596.30 | AF144: $246,037.95 | AG144: $1,153,962.05
A145: 131 | B145: 2034-03-01 | C145: $1,153,962.05 | D145: $8,620.04 | E145: $1,129,225.35 | F145: $6,010.22 | G145: $894,577.58 | H145: $2,609.82 | I145: $248,647.77 | J145: $1,151,352.23 | M145: 131 | N145: =EOMONTH(N144,0)+1 -> 2034-03-01 | O145: $1,153,962.05 | P145: =IF(N145>B$9,MIN(MAX(E$2,F$2),O145*(1+B$3/12)),E$2) -> $8,620.04 | Q145: $1,129,225.35 | R145: $6,010.22 | S145: $894,577.58 | T145: $2,609.82 | U145: $248,647.77 | V145: $1,151,352.23 | X145: 131 | Y145: =EOMONTH(Y144,0)+1 -> 2034-03-01 | Z145: $1,153,962.05 | AA145: $8,620.04 | AB145: =AB144+AA145 -> $1,129,225.35 | AC145: =$B$3*Z145/12 -> $6,010.22 | AD145: =AD144+AC145 -> $894,577.58 | AE145: $2,609.82 | AF145: =AF144+AE145 -> $248,647.77 | AG145: $1,151,352.23
A146: 132 | B146: 2034-04-01 | C146: $1,151,352.23 | D146: $8,620.04 | E146: $1,137,845.39 | F146: $5,996.63 | G146: $900,574.20 | H146: $2,623.41 | I146: $251,271.18 | J146: $1,148,728.82 | M146: 132 | N146: 2034-04-01 | O146: $1,151,352.23 | P146: $8,620.04 | Q146: $1,137,845.39 | R146: $5,996.63 | S146: $900,574.20 | T146: $2,623.41 | U146: $251,271.18 | V146: $1,148,728.82 | X146: 132 | Y146: 2034-04-01 | Z146: $1,151,352.23 | AA146: $8,620.04 | AB146: $1,137,845.39 | AC146: $5,996.63 | AD146: $900,574.20 | AE146: $2,623.41 | AF146: $251,271.18 | AG146: $1,148,728.82
A147: 133 | B147: 2034-05-01 | C147: $1,148,728.82 | D147: $8,620.04 | E147: $1,146,465.43 | F147: $5,982.96 | G147: $906,557.16 | H147: $2,637.08 | I147: $253,908.26 | J147: $1,146,091.74 | M147: 133 | N147: 2034-05-01 | O147: $1,148,728.82 | P147: $8,620.04 | Q147: $1,146,465.43 | R147: $5,982.96 | S147: $906,557.16 | T147: $2,637.08 | U147: $253,908.26 | V147: $1,146,091.74 | X147: 133 | Y147: 2034-05-01 | Z147: $1,148,728.82 | AA147: $8,620.04 | AB147: $1,146,465.43 | AC147: $5,982.96 | AD147: $906,557.16 | AE147: $2,637.08 | AF147: $253,908.26 | AG147: $1,146,091.74
A148: 134 | B148: 2034-06-01 | C148: $1,146,091.74 | D148: $8,620.04 | E148: $1,155,085.47 | F148: $5,969.23 | G148: $912,526.39 | H148: $2,650.81 | I148: $256,559.08 | J148: $1,143,440.92 | M148: 134 | N148: 2034-06-01 | O148: $1,146,091.74 | P148: $8,620.04 | Q148: $1,155,085.47 | R148: $5,969.23 | S148: $912,526.39 | T148: $2,650.81 | U148: $256,559.08 | V148: $1,143,440.92 | X148: 134 | Y148: 2034-06-01 | Z148: $1,146,091.74 | AA148: $8,620.04 | AB148: $1,155,085.47 | AC148: $5,969.23 | AD148: $912,526.39 | AE148: $2,650.81 | AF148: $256,559.08 | AG148: $1,143,440.92
A149: 135 | B149: 2034-07-01 | C149: $1,143,440.92 | D149: $8,620.04 | E149: $1,163,705.51 | F149: $5,955.42 | G149: $918,481.81 | H149: $2,664.62 | I149: $259,223.69 | J149: $1,140,776.31 | M149: 135 | N149: 2034-07-01 | O149: $1,143,440.92 | P149: $8,620.04 | Q149: $1,163,705.51 | R149: $5,955.42 | S149: $918,481.81 | T149: $2,664.62 | U149: $259,223.69 | V149: $1,140,776.31 | X149: 135 | Y149: 2034-07-01 | Z149: $1,143,440.92 | AA149: $8,620.04 | AB149: $1,163,705.51 | AC149: $5,955.42 | AD149: $918,481.81 | AE149: $2,664.62 | AF149: $259,223.69 | AG149: $1,140,776.31
A150: 136 | B150: 2034-08-01 | C150: $1,140,776.31 | D150: $8,620.04 | E150: $1,172,325.55 | F150: $5,941.54 | G150: $924,423.36 | H150: $2,678.50 | I150: $261,902.19 | J150: $1,138,097.81 | M150: 136 | N150: 2034-08-01 | O150: $1,140,776.31 | P150: $8,620.04 | Q150: $1,172,325.55 | R150: $5,941.54 | S150: $924,423.36 | T150: $2,678.50 | U150: $261,902.19 | V150: $1,138,097.81 | X150: 136 | Y150: 2034-08-01 | Z150: $1,140,776.31 | AA150: $8,620.04 | AB150: $1,172,325.55 | AC150: $5,941.54 | AD150: $924,423.36 | AE150: $2,678.50 | AF150: $261,902.19 | AG150: $1,138,097.81
A151: 137 | B151: 2034-09-01 | C151: $1,138,097.81 | D151: $8,620.04 | E151: $1,180,945.59 | F151: $5,927.59 | G151: $930,350.95 | H151: $2,692.45 | I151: $264,594.64 | J151: $1,135,405.36 | M151: 137 | N151: 2034-09-01 | O151: $1,138,097.81 | P151: $8,620.04 | Q151: $1,180,945.59 | R151: $5,927.59 | S151: $930,350.95 | T151: $2,692.45 | U151: $264,594.64 | V151: $1,135,405.36 | X151: 137 | Y151: 2034-09-01 | Z151: $1,138,097.81 | AA151: $8,620.04 | AB151: $1,180,945.59 | AC151: $5,927.59 | AD151: $930,350.95 | AE151: $2,692.45 | AF151: $264,594.64 | AG151: $1,135,405.36
A152: 138 | B152: 2034-10-01 | C152: $1,135,405.36 | D152: $8,620.04 | E152: $1,189,565.63 | F152: $5,913.57 | G152: $936,264.52 | H152: $2,706.47 | I152: $267,301.11 | J152: $1,132,698.89 | M152: 138 | N152: 2034-10-01 | O152: $1,135,405.36 | P152: $8,620.04 | Q152: $1,189,565.63 | R152: $5,913.57 | S152: $936,264.52 | T152: $2,706.47 | U152: $267,301.11 | V152: $1,132,698.89 | X152: 138 | Y152: 2034-10-01 | Z152: $1,135,405.36 | AA152: $8,620.04 | AB152: $1,189,565.63 | AC152: $5,913.57 | AD152: $936,264.52 | AE152: $2,706.47 | AF152: $267,301.11 | AG152: $1,132,698.89
A153: 139 | B153: 2034-11-01 | C153: $1,132,698.89 | D153: $8,620.04 | E153: $1,198,185.67 | F153: $5,899.47 | G153: $942,163.99 | H153: $2,720.57 | I153: $270,021.68 | J153: $1,129,978.32 | M153: 139 | N153: 2034-11-01 | O153: $1,132,698.89 | P153: $8,620.04 | Q153: $1,198,185.67 | R153: $5,899.47 | S153: $942,163.99 | T153: $2,720.57 | U153: $270,021.68 | V153: $1,129,978.32 | X153: 139 | Y153: 2034-11-01 | Z153: $1,132,698.89 | AA153: $8,620.04 | AB153: $1,198,185.67 | AC153: $5,899.47 | AD153: $942,163.99 | AE153: $2,720.57 | AF153: $270,021.68 | AG153: $1,129,978.32
A154: 140 | B154: 2034-12-01 | C154: $1,129,978.32 | D154: $8,620.04 | E154: $1,206,805.71 | F154: $5,885.30 | G154: $948,049.30 | H154: $2,734.74 | I154: $272,756.42 | J154: $1,127,243.58 | M154: 140 | N154: 2034-12-01 | O154: $1,129,978.32 | P154: $8,620.04 | Q154: $1,206,805.71 | R154: $5,885.30 | S154: $948,049.30 | T154: $2,734.74 | U154: $272,756.42 | V154: $1,127,243.58 | X154: 140 | Y154: 2034-12-01 | Z154: $1,129,978.32 | AA154: $8,620.04 | AB154: $1,206,805.71 | AC154: $5,885.30 | AD154: $948,049.30 | AE154: $2,734.74 | AF154: $272,756.42 | AG154: $1,127,243.58
A155: 141 | B155: 2035-01-01 | C155: $1,127,243.58 | D155: $8,620.04 | E155: $1,215,425.75 | F155: $5,871.06 | G155: $953,920.36 | H155: $2,748.98 | I155: $275,505.40 | J155: $1,124,494.60 | M155: 141 | N155: 2035-01-01 | O155: $1,127,243.58 | P155: $8,620.04 | Q155: $1,215,425.75 | R155: $5,871.06 | S155: $953,920.36 | T155: $2,748.98 | U155: $275,505.40 | V155: $1,124,494.60 | X155: 141 | Y155: 2035-01-01 | Z155: $1,127,243.58 | AA155: $8,620.04 | AB155: $1,215,425.75 | AC155: $5,871.06 | AD155: $953,920.36 | AE155: $2,748.98 | AF155: $275,505.40 | AG155: $1,124,494.60
A156: 142 | B156: 2035-02-01 | C156: $1,124,494.60 | D156: $8,620.04 | E156: $1,224,045.79 | F156: $5,856.74 | G156: $959,777.10 | H156: $2,763.30 | I156: $278,268.69 | J156: $1,121,731.31 | M156: 142 | N156: 2035-02-01 | O156: $1,124,494.60 | P156: $8,620.04 | Q156: $1,224,045.79 | R156: $5,856.74 | S156: $959,777.10 | T156: $2,763.30 | U156: $278,268.69 | V156: $1,121,731.31 | X156: 142 | Y156: 2035-02-01 | Z156: $1,124,494.60 | AA156: $8,620.04 | AB156: $1,224,045.79 | AC156: $5,856.74 | AD156: $959,777.10 | AE156: $2,763.30 | AF156: $278,268.69 | AG156: $1,121,731.31
A157: 143 | B157: 2035-03-01 | C157: $1,121,731.31 | D157: $8,620.04 | E157: $1,232,665.84 | F157: $5,842.35 | G157: $965,619.45 | H157: $2,777.69 | I157: $281,046.38 | J157: $1,118,953.62 | M157: 143 | N157: 2035-03-01 | O157: $1,121,731.31 | P157: $8,620.04 | Q157: $1,232,665.84 | R157: $5,842.35 | S157: $965,619.45 | T157: $2,777.69 | U157: $281,046.38 | V157: $1,118,953.62 | X157: 143 | Y157: 2035-03-01 | Z157: $1,121,731.31 | AA157: $8,620.04 | AB157: $1,232,665.84 | AC157: $5,842.35 | AD157: $965,619.45 | AE157: $2,777.69 | AF157: $281,046.38 | AG157: $1,118,953.62
A158: 144 | B158: 2035-04-01 | C158: $1,118,953.62 | D158: $8,620.04 | E158: $1,241,285.88 | F158: $5,827.88 | G158: $971,447.33 | H158: $2,792.16 | I158: $283,838.54 | J158: $1,116,161.46 | M158: 144 | N158: 2035-04-01 | O158: $1,118,953.62 | P158: $8,620.04 | Q158: $1,241,285.88 | R158: $5,827.88 | S158: $971,447.33 | T158: $2,792.16 | U158: $283,838.54 | V158: $1,116,161.46 | X158: 144 | Y158: 2035-04-01 | Z158: $1,118,953.62 | AA158: $8,620.04 | AB158: $1,241,285.88 | AC158: $5,827.88 | AD158: $971,447.33 | AE158: $2,792.16 | AF158: $283,838.54 | AG158: $1,116,161.46
A159: 145 | B159: 2035-05-01 | C159: $1,116,161.46 | D159: $8,620.04 | E159: $1,249,905.92 | F159: $5,813.34 | G159: $977,260.67 | H159: $2,806.70 | I159: $286,645.24 | J159: $1,113,354.76 | M159: 145 | N159: 2035-05-01 | O159: $1,116,161.46 | P159: $8,620.04 | Q159: $1,249,905.92 | R159: $5,813.34 | S159: $977,260.67 | T159: $2,806.70 | U159: $286,645.24 | V159: $1,113,354.76 | X159: 145 | Y159: 2035-05-01 | Z159: $1,116,161.46 | AA159: $8,620.04 | AB159: $1,249,905.92 | AC159: $5,813.34 | AD159: $977,260.67 | AE159: $2,806.70 | AF159: $286,645.24 | AG159: $1,113,354.76
A160: 146 | B160: 2035-06-01 | C160: $1,113,354.76 | D160: $8,620.04 | E160: $1,258,525.96 | F160: $5,798.72 | G160: $983,059.40 | H160: $2,821.32 | I160: $289,466.56 | J160: $1,110,533.44 | M160: 146 | N160: 2035-06-01 | O160: $1,113,354.76 | P160: $8,620.04 | Q160: $1,258,525.96 | R160: $5,798.72 | S160: $983,059.40 | T160: $2,821.32 | U160: $289,466.56 | V160: $1,110,533.44 | X160: 146 | Y160: 2035-06-01 | Z160: $1,113,354.76 | AA160: $8,620.04 | AB160: $1,258,525.96 | AC160: $5,798.72 | AD160: $983,059.40 | AE160: $2,821.32 | AF160: $289,466.56 | AG160: $1,110,533.44
A161: 147 | B161: 2035-07-01 | C161: $1,110,533.44 | D161: $8,620.04 | E161: $1,267,146.00 | F161: $5,784.03 | G161: $988,843.43 | H161: $2,836.01 | I161: $292,302.57 | J161: $1,107,697.43 | M161: 147 | N161: 2035-07-01 | O161: $1,110,533.44 | P161: $8,620.04 | Q161: $1,267,146.00 | R161: $5,784.03 | S161: $988,843.43 | T161: $2,836.01 | U161: $292,302.57 | V161: $1,107,697.43 | X161: 147 | Y161: 2035-07-01 | Z161: $1,110,533.44 | AA161: $8,620.04 | AB161: $1,267,146.00 | AC161: $5,784.03 | AD161: $988,843.43 | AE161: $2,836.01 | AF161: $292,302.57 | AG161: $1,107,697.43
A162: 148 | B162: 2035-08-01 | C162: $1,107,697.43 | D162: $8,620.04 | E162: $1,275,766.04 | F162: $5,769.26 | G162: $994,612.68 | H162: $2,850.78 | I162: $295,153.36 | J162: $1,104,846.64 | M162: 148 | N162: 2035-08-01 | O162: $1,107,697.43 | P162: $8,620.04 | Q162: $1,275,766.04 | R162: $5,769.26 | S162: $994,612.68 | T162: $2,850.78 | U162: $295,153.36 | V162: $1,104,846.64 | X162: 148 | Y162: 2035-08-01 | Z162: $1,107,697.43 | AA162: $8,620.04 | AB162: $1,275,766.04 | AC162: $5,769.26 | AD162: $994,612.68 | AE162: $2,850.78 | AF162: $295,153.36 | AG162: $1,104,846.64
A163: 149 | B163: 2035-09-01 | C163: $1,104,846.64 | D163: $8,620.04 | E163: $1,284,386.08 | F163: $5,754.41 | G163: $1,000,367.09 | H163: $2,865.63 | I163: $298,018.99 | J163: $1,101,981.01 | M163: 149 | N163: 2035-09-01 | O163: $1,104,846.64 | P163: $8,620.04 | Q163: $1,284,386.08 | R163: $5,754.41 | S163: $1,000,367.09 | T163: $2,865.63 | U163: $298,018.99 | V163: $1,101,981.01 | X163: 149 | Y163: 2035-09-01 | Z163: $1,104,846.64 | AA163: $8,620.04 | AB163: $1,284,386.08 | AC163: $5,754.41 | AD163: $1,000,367.09 | AE163: $2,865.63 | AF163: $298,018.99 | AG163: $1,101,981.01
A164: 150 | B164: 2035-10-01 | C164: $1,101,981.01 | D164: $8,620.04 | E164: $1,293,006.12 | F164: $5,739.48 | G164: $1,006,106.58 | H164: $2,880.56 | I164: $300,899.54 | J164: $1,099,100.46 | M164: 150 | N164: 2035-10-01 | O164: $1,101,981.01 | P164: $8,620.04 | Q164: $1,293,006.12 | R164: $5,739.48 | S164: $1,006,106.58 | T164: $2,880.56 | U164: $300,899.54 | V164: $1,099,100.46 | X164: 150 | Y164: 2035-10-01 | Z164: $1,101,981.01 | AA164: $8,620.04 | AB164: $1,293,006.12 | AC164: $5,739.48 | AD164: $1,006,106.58 | AE164: $2,880.56 | AF164: $300,899.54 | AG164: $1,099,100.46
A165: 151 | B165: 2035-11-01 | C165: $1,099,100.46 | D165: $8,620.04 | E165: $1,301,626.16 | F165: $5,724.48 | G165: $1,011,831.06 | H165: $2,895.56 | I165: $303,795.10 | J165: $1,096,204.90 | M165: 151 | N165: 2035-11-01 | O165: $1,099,100.46 | P165: $8,620.04 | Q165: $1,301,626.16 | R165: $5,724.48 | S165: $1,011,831.06 | T165: $2,895.56 | U165: $303,795.10 | V165: $1,096,204.90 | X165: 151 | Y165: 2035-11-01 | Z165: $1,099,100.46 | AA165: $8,620.04 | AB165: $1,301,626.16 | AC165: $5,724.48 | AD165: $1,011,831.06 | AE165: $2,895.56 | AF165: $303,795.10 | AG165: $1,096,204.90
A166: 152 | B166: 2035-12-01 | C166: $1,096,204.90 | D166: $8,620.04 | E166: $1,310,246.20 | F166: $5,709.40 | G166: $1,017,540.46 | H166: $2,910.64 | I166: $306,705.74 | J166: $1,093,294.26 | M166: 152 | N166: 2035-12-01 | O166: $1,096,204.90 | P166: $8,620.04 | Q166: $1,310,246.20 | R166: $5,709.40 | S166: $1,017,540.46 | T166: $2,910.64 | U166: $306,705.74 | V166: $1,093,294.26 | X166: 152 | Y166: 2035-12-01 | Z166: $1,096,204.90 | AA166: $8,620.04 | AB166: $1,310,246.20 | AC166: $5,709.40 | AD166: $1,017,540.46 | AE166: $2,910.64 | AF166: $306,705.74 | AG166: $1,093,294.26
A167: 153 | B167: 2036-01-01 | C167: $1,093,294.26 | D167: $8,620.04 | E167: $1,318,866.24 | F167: $5,694.24 | G167: $1,023,234.70 | H167: $2,925.80 | I167: $309,631.54 | J167: $1,090,368.46 | M167: 153 | N167: 2036-01-01 | O167: $1,093,294.26 | P167: $8,620.04 | Q167: $1,318,866.24 | R167: $5,694.24 | S167: $1,023,234.70 | T167: $2,925.80 | U167: $309,631.54 | V167: $1,090,368.46 | X167: 153 | Y167: 2036-01-01 | Z167: $1,093,294.26 | AA167: $8,620.04 | AB167: $1,318,866.24 | AC167: $5,694.24 | AD167: $1,023,234.70 | AE167: $2,925.80 | AF167: $309,631.54 | AG167: $1,090,368.46
A168: 154 | B168: 2036-02-01 | C168: $1,090,368.46 | D168: $8,620.04 | E168: $1,327,486.28 | F168: $5,679.00 | G168: $1,028,913.70 | H168: $2,941.04 | I168: $312,572.58 | J168: $1,087,427.42 | M168: 154 | N168: 2036-02-01 | O168: $1,090,368.46 | P168: $8,620.04 | Q168: $1,327,486.28 | R168: $5,679.00 | S168: $1,028,913.70 | T168: $2,941.04 | U168: $312,572.58 | V168: $1,087,427.42 | X168: 154 | Y168: 2036-02-01 | Z168: $1,090,368.46 | AA168: $8,620.04 | AB168: $1,327,486.28 | AC168: $5,679.00 | AD168: $1,028,913.70 | AE168: $2,941.04 | AF168: $312,572.58 | AG168: $1,087,427.42
A169: 155 | B169: 2036-03-01 | C169: $1,087,427.42 | D169: $8,620.04 | E169: $1,336,106.32 | F169: $5,663.68 | G169: $1,034,577.39 | H169: $2,956.36 | I169: $315,528.94 | J169: $1,084,471.06 | M169: 155 | N169: 2036-03-01 | O169: $1,087,427.42 | P169: $8,620.04 | Q169: $1,336,106.32 | R169: $5,663.68 | S169: $1,034,577.39 | T169: $2,956.36 | U169: $315,528.94 | V169: $1,084,471.06 | X169: 155 | Y169: 2036-03-01 | Z169: $1,087,427.42 | AA169: $8,620.04 | AB169: $1,336,106.32 | AC169: $5,663.68 | AD169: $1,034,577.39 | AE169: $2,956.36 | AF169: $315,528.94 | AG169: $1,084,471.06
A170: 156 | B170: 2036-04-01 | C170: $1,084,471.06 | D170: $8,620.04 | E170: $1,344,726.37 | F170: $5,648.29 | G170: $1,040,225.67 | H170: $2,971.75 | I170: $318,500.69 | J170: $1,081,499.31 | M170: 156 | N170: 2036-04-01 | O170: $1,084,471.06 | P170: $8,620.04 | Q170: $1,344,726.37 | R170: $5,648.29 | S170: $1,040,225.67 | T170: $2,971.75 | U170: $318,500.69 | V170: $1,081,499.31 | X170: 156 | Y170: 2036-04-01 | Z170: $1,084,471.06 | AA170: $8,620.04 | AB170: $1,344,726.37 | AC170: $5,648.29 | AD170: $1,040,225.67 | AE170: $2,971.75 | AF170: $318,500.69 | AG170: $1,081,499.31
A171: 157 | B171: 2036-05-01 | C171: $1,081,499.31 | D171: $8,620.04 | E171: $1,353,346.41 | F171: $5,632.81 | G171: $1,045,858.48 | H171: $2,987.23 | I171: $321,487.92 | J171: $1,078,512.08 | M171: 157 | N171: 2036-05-01 | O171: $1,081,499.31 | P171: $8,620.04 | Q171: $1,353,346.41 | R171: $5,632.81 | S171: $1,045,858.48 | T171: $2,987.23 | U171: $321,487.92 | V171: $1,078,512.08 | X171: 157 | Y171: 2036-05-01 | Z171: $1,081,499.31 | AA171: $8,620.04 | AB171: $1,353,346.41 | AC171: $5,632.81 | AD171: $1,045,858.48 | AE171: $2,987.23 | AF171: $321,487.92 | AG171: $1,078,512.08
A172: 158 | B172: 2036-06-01 | C172: $1,078,512.08 | D172: $8,620.04 | E172: $1,361,966.45 | F172: $5,617.25 | G172: $1,051,475.73 | H172: $3,002.79 | I172: $324,490.71 | J172: $1,075,509.29 | M172: 158 | N172: 2036-06-01 | O172: $1,078,512.08 | P172: $8,620.04 | Q172: $1,361,966.45 | R172: $5,617.25 | S172: $1,051,475.73 | T172: $3,002.79 | U172: $324,490.71 | V172: $1,075,509.29 | X172: 158 | Y172: 2036-06-01 | Z172: $1,078,512.08 | AA172: $8,620.04 | AB172: $1,361,966.45 | AC172: $5,617.25 | AD172: $1,051,475.73 | AE172: $3,002.79 | AF172: $324,490.71 | AG172: $1,075,509.29
A173: 159 | B173: 2036-07-01 | C173: $1,075,509.29 | D173: $8,620.04 | E173: $1,370,586.49 | F173: $5,601.61 | G173: $1,057,077.34 | H173: $3,018.43 | I173: $327,509.14 | J173: $1,072,490.86 | M173: 159 | N173: 2036-07-01 | O173: $1,075,509.29 | P173: $8,620.04 | Q173: $1,370,586.49 | R173: $5,601.61 | S173: $1,057,077.34 | T173: $3,018.43 | U173: $327,509.14 | V173: $1,072,490.86 | X173: 159 | Y173: 2036-07-01 | Z173: $1,075,509.29 | AA173: $8,620.04 | AB173: $1,370,586.49 | AC173: $5,601.61 | AD173: $1,057,077.34 | AE173: $3,018.43 | AF173: $327,509.14 | AG173: $1,072,490.86
A174: 160 | B174: 2036-08-01 | C174: $1,072,490.86 | D174: $8,620.04 | E174: $1,379,206.53 | F174: $5,585.89 | G174: $1,062,663.23 | H174: $3,034.15 | I174: $330,543.29 | J174: $1,069,456.71 | M174: 160 | N174: 2036-08-01 | O174: $1,072,490.86 | P174: $8,620.04 | Q174: $1,379,206.53 | R174: $5,585.89 | S174: $1,062,663.23 | T174: $3,034.15 | U174: $330,543.29 | V174: $1,069,456.71 | X174: 160 | Y174: 2036-08-01 | Z174: $1,072,490.86 | AA174: $8,620.04 | AB174: $1,379,206.53 | AC174: $5,585.89 | AD174: $1,062,663.23 | AE174: $3,034.15 | AF174: $330,543.29 | AG174: $1,069,456.71
A175: 161 | B175: 2036-09-01 | C175: $1,069,456.71 | D175: $8,620.04 | E175: $1,387,826.57 | F175: $5,570.09 | G175: $1,068,233.32 | H175: $3,049.95 | I175: $333,593.25 | J175: $1,066,406.75 | M175: 161 | N175: 2036-09-01 | O175: $1,069,456.71 | P175: $8,620.04 | Q175: $1,387,826.57 | R175: $5,570.09 | S175: $1,068,233.32 | T175: $3,049.95 | U175: $333,593.25 | V175: $1,066,406.75 | X175: 161 | Y175: 2036-09-01 | Z175: $1,069,456.71 | AA175: $8,620.04 | AB175: $1,387,826.57 | AC175: $5,570.09 | AD175: $1,068,233.32 | AE175: $3,049.95 | AF175: $333,593.25 | AG175: $1,066,406.75
A176: 162 | B176: 2036-10-01 | C176: $1,066,406.75 | D176: $8,620.04 | E176: $1,396,446.61 | F176: $5,554.20 | G176: $1,073,787.52 | H176: $3,065.84 | I176: $336,659.09 | J176: $1,063,340.91 | M176: 162 | N176: 2036-10-01 | O176: $1,066,406.75 | P176: $8,620.04 | Q176: $1,396,446.61 | R176: $5,554.20 | S176: $1,073,787.52 | T176: $3,065.84 | U176: $336,659.09 | V176: $1,063,340.91 | X176: 162 | Y176: 2036-10-01 | Z176: $1,066,406.75 | AA176: $8,620.04 | AB176: $1,396,446.61 | AC176: $5,554.20 | AD176: $1,073,787.52 | AE176: $3,065.84 | AF176: $336,659.09 | AG176: $1,063,340.91
A177: 163 | B177: 2036-11-01 | C177: $1,063,340.91 | D177: $8,620.04 | E177: $1,405,066.65 | F177: $5,538.23 | G177: $1,079,325.76 | H177: $3,081.81 | I177: $339,740.89 | J177: $1,060,259.11 | M177: 163 | N177: 2036-11-01 | O177: $1,063,340.91 | P177: $8,620.04 | Q177: $1,405,066.65 | R177: $5,538.23 | S177: $1,079,325.76 | T177: $3,081.81 | U177: $339,740.89 | V177: $1,060,259.11 | X177: 163 | Y177: 2036-11-01 | Z177: $1,063,340.91 | AA177: $8,620.04 | AB177: $1,405,066.65 | AC177: $5,538.23 | AD177: $1,079,325.76 | AE177: $3,081.81 | AF177: $339,740.89 | AG177: $1,060,259.11
A178: 164 | B178: 2036-12-01 | C178: $1,060,259.11 | D178: $8,620.04 | E178: $1,413,686.69 | F178: $5,522.18 | G178: $1,084,847.94 | H178: $3,097.86 | I178: $342,838.75 | J178: $1,057,161.25 | M178: 164 | N178: 2036-12-01 | O178: $1,060,259.11 | P178: $8,620.04 | Q178: $1,413,686.69 | R178: $5,522.18 | S178: $1,084,847.94 | T178: $3,097.86 | U178: $342,838.75 | V178: $1,057,161.25 | X178: 164 | Y178: 2036-12-01 | Z178: $1,060,259.11 | AA178: $8,620.04 | AB178: $1,413,686.69 | AC178: $5,522.18 | AD178: $1,084,847.94 | AE178: $3,097.86 | AF178: $342,838.75 | AG178: $1,057,161.25
A179: 165 | B179: 2037-01-01 | C179: $1,057,161.25 | D179: $8,620.04 | E179: $1,422,306.73 | F179: $5,506.05 | G179: $1,090,353.99 | H179: $3,113.99 | I179: $345,952.75 | J179: $1,054,047.25 | M179: 165 | N179: 2037-01-01 | O179: $1,057,161.25 | P179: $8,620.04 | Q179: $1,422,306.73 | R179: $5,506.05 | S179: $1,090,353.99 | T179: $3,113.99 | U179: $345,952.75 | V179: $1,054,047.25 | X179: 165 | Y179: 2037-01-01 | Z179: $1,057,161.25 | AA179: $8,620.04 | AB179: $1,422,306.73 | AC179: $5,506.05 | AD179: $1,090,353.99 | AE179: $3,113.99 | AF179: $345,952.75 | AG179: $1,054,047.25
A180: 166 | B180: 2037-02-01 | C180: $1,054,047.25 | D180: $8,620.04 | E180: $1,430,926.77 | F180: $5,489.83 | G180: $1,095,843.82 | H180: $3,130.21 | I180: $349,082.96 | J180: $1,050,917.04 | M180: 166 | N180: 2037-02-01 | O180: $1,054,047.25 | P180: $8,620.04 | Q180: $1,430,926.77 | R180: $5,489.83 | S180: $1,095,843.82 | T180: $3,130.21 | U180: $349,082.96 | V180: $1,050,917.04 | X180: 166 | Y180: 2037-02-01 | Z180: $1,054,047.25 | AA180: $8,620.04 | AB180: $1,430,926.77 | AC180: $5,489.83 | AD180: $1,095,843.82 | AE180: $3,130.21 | AF180: $349,082.96 | AG180: $1,050,917.04
A181: 167 | B181: 2037-03-01 | C181: $1,050,917.04 | D181: $8,620.04 | E181: $1,439,546.81 | F181: $5,473.53 | G181: $1,101,317.34 | H181: $3,146.51 | I181: $352,229.47 | J181: $1,047,770.53 | M181: 167 | N181: 2037-03-01 | O181: $1,050,917.04 | P181: $8,620.04 | Q181: $1,439,546.81 | R181: $5,473.53 | S181: $1,101,317.34 | T181: $3,146.51 | U181: $352,229.47 | V181: $1,047,770.53 | X181: 167 | Y181: 2037-03-01 | Z181: $1,050,917.04 | AA181: $8,620.04 | AB181: $1,439,546.81 | AC181: $5,473.53 | AD181: $1,101,317.34 | AE181: $3,146.51 | AF181: $352,229.47 | AG181: $1,047,770.53
A182: 168 | B182: 2037-04-01 | C182: $1,047,770.53 | D182: $8,620.04 | E182: $1,448,166.86 | F182: $5,457.14 | G182: $1,106,774.48 | H182: $3,162.90 | I182: $355,392.37 | J182: $1,044,607.63 | M182: 168 | N182: 2037-04-01 | O182: $1,047,770.53 | P182: $8,620.04 | Q182: $1,448,166.86 | R182: $5,457.14 | S182: $1,106,774.48 | T182: $3,162.90 | U182: $355,392.37 | V182: $1,044,607.63 | X182: 168 | Y182: 2037-04-01 | Z182: $1,047,770.53 | AA182: $8,620.04 | AB182: $1,448,166.86 | AC182: $5,457.14 | AD182: $1,106,774.48 | AE182: $3,162.90 | AF182: $355,392.37 | AG182: $1,044,607.63
A183: 169 | B183: 2037-05-01 | C183: $1,044,607.63 | D183: $8,620.04 | E183: $1,456,786.90 | F183: $5,440.66 | G183: $1,112,215.15 | H183: $3,179.38 | I183: $358,571.75 | J183: $1,041,428.25 | M183: 169 | N183: 2037-05-01 | O183: $1,044,607.63 | P183: $8,620.04 | Q183: $1,456,786.90 | R183: $5,440.66 | S183: $1,112,215.15 | T183: $3,179.38 | U183: $358,571.75 | V183: $1,041,428.25 | X183: 169 | Y183: 2037-05-01 | Z183: $1,044,607.63 | AA183: $8,620.04 | AB183: $1,456,786.90 | AC183: $5,440.66 | AD183: $1,112,215.15 | AE183: $3,179.38 | AF183: $358,571.75 | AG183: $1,041,428.25
A184: 170 | B184: 2037-06-01 | C184: $1,041,428.25 | D184: $8,620.04 | E184: $1,465,406.94 | F184: $5,424.11 | G184: $1,117,639.25 | H184: $3,195.94 | I184: $361,767.69 | J184: $1,038,232.31 | M184: 170 | N184: 2037-06-01 | O184: $1,041,428.25 | P184: $8,620.04 | Q184: $1,465,406.94 | R184: $5,424.11 | S184: $1,117,639.25 | T184: $3,195.94 | U184: $361,767.69 | V184: $1,038,232.31 | X184: 170 | Y184: 2037-06-01 | Z184: $1,041,428.25 | AA184: $8,620.04 | AB184: $1,465,406.94 | AC184: $5,424.11 | AD184: $1,117,639.25 | AE184: $3,195.94 | AF184: $361,767.69 | AG184: $1,038,232.31
A185: 171 | B185: 2037-07-01 | C185: $1,038,232.31 | D185: $8,620.04 | E185: $1,474,026.98 | F185: $5,407.46 | G185: $1,123,046.71 | H185: $3,212.58 | I185: $364,980.27 | J185: $1,035,019.73 | M185: 171 | N185: 2037-07-01 | O185: $1,038,232.31 | P185: $8,620.04 | Q185: $1,474,026.98 | R185: $5,407.46 | S185: $1,123,046.71 | T185: $3,212.58 | U185: $364,980.27 | V185: $1,035,019.73 | X185: 171 | Y185: 2037-07-01 | Z185: $1,038,232.31 | AA185: $8,620.04 | AB185: $1,474,026.98 | AC185: $5,407.46 | AD185: $1,123,046.71 | AE185: $3,212.58 | AF185: $364,980.27 | AG185: $1,035,019.73
A186: 172 | B186: 2037-08-01 | C186: $1,035,019.73 | D186: $8,620.04 | E186: $1,482,647.02 | F186: $5,390.73 | G186: $1,128,437.44 | H186: $3,229.31 | I186: $368,209.58 | J186: $1,031,790.42 | M186: 172 | N186: 2037-08-01 | O186: $1,035,019.73 | P186: $8,620.04 | Q186: $1,482,647.02 | R186: $5,390.73 | S186: $1,128,437.44 | T186: $3,229.31 | U186: $368,209.58 | V186: $1,031,790.42 | X186: 172 | Y186: 2037-08-01 | Z186: $1,035,019.73 | AA186: $8,620.04 | AB186: $1,482,647.02 | AC186: $5,390.73 | AD186: $1,128,437.44 | AE186: $3,229.31 | AF186: $368,209.58 | AG186: $1,031,790.42
A187: 173 | B187: 2037-09-01 | C187: $1,031,790.42 | D187: $8,620.04 | E187: $1,491,267.06 | F187: $5,373.91 | G187: $1,133,811.35 | H187: $3,246.13 | I187: $371,455.71 | J187: $1,028,544.29 | M187: 173 | N187: 2037-09-01 | O187: $1,031,790.42 | P187: $8,620.04 | Q187: $1,491,267.06 | R187: $5,373.91 | S187: $1,133,811.35 | T187: $3,246.13 | U187: $371,455.71 | V187: $1,028,544.29 | X187: 173 | Y187: 2037-09-01 | Z187: $1,031,790.42 | AA187: $8,620.04 | AB187: $1,491,267.06 | AC187: $5,373.91 | AD187: $1,133,811.35 | AE187: $3,246.13 | AF187: $371,455.71 | AG187: $1,028,544.29
A188: 174 | B188: 2037-10-01 | C188: $1,028,544.29 | D188: $8,620.04 | E188: $1,499,887.10 | F188: $5,357.00 | G188: $1,139,168.35 | H188: $3,263.04 | I188: $374,718.75 | J188: $1,025,281.25 | M188: 174 | N188: 2037-10-01 | O188: $1,028,544.29 | P188: $8,620.04 | Q188: $1,499,887.10 | R188: $5,357.00 | S188: $1,139,168.35 | T188: $3,263.04 | U188: $374,718.75 | V188: $1,025,281.25 | X188: 174 | Y188: 2037-10-01 | Z188: $1,028,544.29 | AA188: $8,620.04 | AB188: $1,499,887.10 | AC188: $5,357.00 | AD188: $1,139,168.35 | AE188: $3,263.04 | AF188: $374,718.75 | AG188: $1,025,281.25
A189: 175 | B189: 2037-11-01 | C189: $1,025,281.25 | D189: $8,620.04 | E189: $1,508,507.14 | F189: $5,340.01 | G189: $1,144,508.36 | H189: $3,280.03 | I189: $377,998.78 | J189: $1,022,001.22 | M189: 175 | N189: 2037-11-01 | O189: $1,025,281.25 | P189: $8,620.04 | Q189: $1,508,507.14 | R189: $5,340.01 | S189: $1,144,508.36 | T189: $3,280.03 | U189: $377,998.78 | V189: $1,022,001.22 | X189: 175 | Y189: 2037-11-01 | Z189: $1,025,281.25 | AA189: $8,620.04 | AB189: $1,508,507.14 | AC189: $5,340.01 | AD189: $1,144,508.36 | AE189: $3,280.03 | AF189: $377,998.78 | AG189: $1,022,001.22
A190: 176 | B190: 2037-12-01 | C190: $1,022,001.22 | D190: $8,620.04 | E190: $1,517,127.18 | F190: $5,322.92 | G190: $1,149,831.28 | H190: $3,297.12 | I190: $381,295.90 | J190: $1,018,704.10 | M190: 176 | N190: 2037-12-01 | O190: $1,022,001.22 | P190: $8,620.04 | Q190: $1,517,127.18 | R190: $5,322.92 | S190: $1,149,831.28 | T190: $3,297.12 | U190: $381,295.90 | V190: $1,018,704.10 | X190: 176 | Y190: 2037-12-01 | Z190: $1,022,001.22 | AA190: $8,620.04 | AB190: $1,517,127.18 | AC190: $5,322.92 | AD190: $1,149,831.28 | AE190: $3,297.12 | AF190: $381,295.90 | AG190: $1,018,704.10
A191: 177 | B191: 2038-01-01 | C191: $1,018,704.10 | D191: $8,620.04 | E191: $1,525,747.22 | F191: $5,305.75 | G191: $1,155,137.03 | H191: $3,314.29 | I191: $384,610.19 | J191: $1,015,389.81 | M191: 177 | N191: 2038-01-01 | O191: $1,018,704.10 | P191: $8,620.04 | Q191: $1,525,747.22 | R191: $5,305.75 | S191: $1,155,137.03 | T191: $3,314.29 | U191: $384,610.19 | V191: $1,015,389.81 | X191: 177 | Y191: 2038-01-01 | Z191: $1,018,704.10 | AA191: $8,620.04 | AB191: $1,525,747.22 | AC191: $5,305.75 | AD191: $1,155,137.03 | AE191: $3,314.29 | AF191: $384,610.19 | AG191: $1,015,389.81
A192: 178 | B192: 2038-02-01 | C192: $1,015,389.81 | D192: $8,620.04 | E192: $1,534,367.26 | F192: $5,288.49 | G192: $1,160,425.52 | H192: $3,331.55 | I192: $387,941.75 | J192: $1,012,058.25 | M192: 178 | N192: 2038-02-01 | O192: $1,015,389.81 | P192: $8,620.04 | Q192: $1,534,367.26 | R192: $5,288.49 | S192: $1,160,425.52 | T192: $3,331.55 | U192: $387,941.75 | V192: $1,012,058.25 | X192: 178 | Y192: 2038-02-01 | Z192: $1,015,389.81 | AA192: $8,620.04 | AB192: $1,534,367.26 | AC192: $5,288.49 | AD192: $1,160,425.52 | AE192: $3,331.55 | AF192: $387,941.75 | AG192: $1,012,058.25
A193: 179 | B193: 2038-03-01 | C193: $1,012,058.25 | D193: $8,620.04 | E193: $1,542,987.30 | F193: $5,271.14 | G193: $1,165,696.65 | H193: $3,348.90 | I193: $391,290.65 | J193: $1,008,709.35 | M193: 179 | N193: 2038-03-01 | O193: $1,012,058.25 | P193: $8,620.04 | Q193: $1,542,987.30 | R193: $5,271.14 | S193: $1,165,696.65 | T193: $3,348.90 | U193: $391,290.65 | V193: $1,008,709.35 | X193: 179 | Y193: 2038-03-01 | Z193: $1,012,058.25 | AA193: $8,620.04 | AB193: $1,542,987.30 | AC193: $5,271.14 | AD193: $1,165,696.65 | AE193: $3,348.90 | AF193: $391,290.65 | AG193: $1,008,709.35
A194: 180 | B194: 2038-04-01 | C194: $1,008,709.35 | D194: $8,620.04 | E194: $1,551,607.35 | F194: $5,253.69 | G194: $1,170,950.35 | H194: $3,366.35 | I194: $394,657.00 | J194: $1,005,343.00 | M194: 180 | N194: 2038-04-01 | O194: $1,008,709.35 | P194: $8,620.04 | Q194: $1,551,607.35 | R194: $5,253.69 | S194: $1,170,950.35 | T194: $3,366.35 | U194: $394,657.00 | V194: $1,005,343.00 | X194: 180 | Y194: 2038-04-01 | Z194: $1,008,709.35 | AA194: $8,620.04 | AB194: $1,551,607.35 | AC194: $5,253.69 | AD194: $1,170,950.35 | AE194: $3,366.35 | AF194: $394,657.00 | AG194: $1,005,343.00
A195: 181 | B195: 2038-05-01 | C195: $1,005,343.00 | D195: $8,620.04 | E195: $1,560,227.39 | F195: $5,236.16 | G195: $1,176,186.51 | H195: $3,383.88 | I195: $398,040.87 | J195: $1,001,959.13 | M195: 181 | N195: 2038-05-01 | O195: $1,005,343.00 | P195: $8,620.04 | Q195: $1,560,227.39 | R195: $5,236.16 | S195: $1,176,186.51 | T195: $3,383.88 | U195: $398,040.87 | V195: $1,001,959.13 | X195: 181 | Y195: 2038-05-01 | Z195: $1,005,343.00 | AA195: $8,620.04 | AB195: $1,560,227.39 | AC195: $5,236.16 | AD195: $1,176,186.51 | AE195: $3,383.88 | AF195: $398,040.87 | AG195: $1,001,959.13
A196: 182 | B196: 2038-06-01 | C196: $1,001,959.13 | D196: $8,620.04 | E196: $1,568,847.43 | F196: $5,218.54 | G196: $1,181,405.05 | H196: $3,401.50 | I196: $401,442.38 | J196: $998,557.62 | M196: 182 | N196: 2038-06-01 | O196: $1,001,959.13 | P196: $8,620.04 | Q196: $1,568,847.43 | R196: $5,218.54 | S196: $1,181,405.05 | T196: $3,401.50 | U196: $401,442.38 | V196: $998,557.62 | X196: 182 | Y196: 2038-06-01 | Z196: $1,001,959.13 | AA196: $8,620.04 | AB196: $1,568,847.43 | AC196: $5,218.54 | AD196: $1,181,405.05 | AE196: $3,401.50 | AF196: $401,442.38 | AG196: $998,557.62
A197: 183 | B197: 2038-07-01 | C197: $998,557.62 | D197: $8,620.04 | E197: $1,577,467.47 | F197: $5,200.82 | G197: $1,186,605.87 | H197: $3,419.22 | I197: $404,861.60 | J197: $995,138.40 | M197: 183 | N197: 2038-07-01 | O197: $998,557.62 | P197: $8,620.04 | Q197: $1,577,467.47 | R197: $5,200.82 | S197: $1,186,605.87 | T197: $3,419.22 | U197: $404,861.60 | V197: $995,138.40 | X197: 183 | Y197: 2038-07-01 | Z197: $998,557.62 | AA197: $8,620.04 | AB197: $1,577,467.47 | AC197: $5,200.82 | AD197: $1,186,605.87 | AE197: $3,419.22 | AF197: $404,861.60 | AG197: $995,138.40
A198: 184 | B198: 2038-08-01 | C198: $995,138.40 | D198: $8,620.04 | E198: $1,586,087.51 | F198: $5,183.01 | G198: $1,191,788.88 | H198: $3,437.03 | I198: $408,298.63 | J198: $991,701.37 | M198: 184 | N198: 2038-08-01 | O198: $995,138.40 | P198: $8,620.04 | Q198: $1,586,087.51 | R198: $5,183.01 | S198: $1,191,788.88 | T198: $3,437.03 | U198: $408,298.63 | V198: $991,701.37 | X198: 184 | Y198: 2038-08-01 | Z198: $995,138.40 | AA198: $8,620.04 | AB198: $1,586,087.51 | AC198: $5,183.01 | AD198: $1,191,788.88 | AE198: $3,437.03 | AF198: $408,298.63 | AG198: $991,701.37
A199: 185 | B199: 2038-09-01 | C199: $991,701.37 | D199: $8,620.04 | E199: $1,594,707.55 | F199: $5,165.11 | G199: $1,196,953.99 | H199: $3,454.93 | I199: $411,753.56 | J199: $988,246.44 | M199: 185 | N199: 2038-09-01 | O199: $991,701.37 | P199: $8,620.04 | Q199: $1,594,707.55 | R199: $5,165.11 | S199: $1,196,953.99 | T199: $3,454.93 | U199: $411,753.56 | V199: $988,246.44 | X199: 185 | Y199: 2038-09-01 | Z199: $991,701.37 | AA199: $8,620.04 | AB199: $1,594,707.55 | AC199: $5,165.11 | AD199: $1,196,953.99 | AE199: $3,454.93 | AF199: $411,753.56 | AG199: $988,246.44
A200: 186 | B200: 2038-10-01 | C200: $988,246.44 | D200: $8,620.04 | E200: $1,603,327.59 | F200: $5,147.12 | G200: $1,202,101.11 | H200: $3,472.92 | I200: $415,226.48 | J200: $984,773.52 | M200: 186 | N200: 2038-10-01 | O200: $988,246.44 | P200: $8,620.04 | Q200: $1,603,327.59 | R200: $5,147.12 | S200: $1,202,101.11 | T200: $3,472.92 | U200: $415,226.48 | V200: $984,773.52 | X200: 186 | Y200: 2038-10-01 | Z200: $988,246.44 | AA200: $8,620.04 | AB200: $1,603,327.59 | AC200: $5,147.12 | AD200: $1,202,101.11 | AE200: $3,472.92 | AF200: $415,226.48 | AG200: $984,773.52
A201: 187 | B201: 2038-11-01 | C201: $984,773.52 | D201: $8,620.04 | E201: $1,611,947.63 | F201: $5,129.03 | G201: $1,207,230.14 | H201: $3,491.01 | I201: $418,717.49 | J201: $981,282.51 | M201: 187 | N201: 2038-11-01 | O201: $984,773.52 | P201: $8,620.04 | Q201: $1,611,947.63 | R201: $5,129.03 | S201: $1,207,230.14 | T201: $3,491.01 | U201: $418,717.49 | V201: $981,282.51 | X201: 187 | Y201: 2038-11-01 | Z201: $984,773.52 | AA201: $8,620.04 | AB201: $1,611,947.63 | AC201: $5,129.03 | AD201: $1,207,230.14 | AE201: $3,491.01 | AF201: $418,717.49 | AG201: $981,282.51
A202: 188 | B202: 2038-12-01 | C202: $981,282.51 | D202: $8,620.04 | E202: $1,620,567.67 | F202: $5,110.85 | G202: $1,212,340.98 | H202: $3,509.19 | I202: $422,226.69 | J202: $977,773.31 | M202: 188 | N202: 2038-12-01 | O202: $981,282.51 | P202: $8,620.04 | Q202: $1,620,567.67 | R202: $5,110.85 | S202: $1,212,340.98 | T202: $3,509.19 | U202: $422,226.69 | V202: $977,773.31 | X202: 188 | Y202: 2038-12-01 | Z202: $981,282.51 | AA202: $8,620.04 | AB202: $1,620,567.67 | AC202: $5,110.85 | AD202: $1,212,340.98 | AE202: $3,509.19 | AF202: $422,226.69 | AG202: $977,773.31
A203: 189 | B203: 2039-01-01 | C203: $977,773.31 | D203: $8,620.04 | E203: $1,629,187.71 | F203: $5,092.57 | G203: $1,217,433.55 | H203: $3,527.47 | I203: $425,754.16 | J203: $974,245.84 | M203: 189 | N203: 2039-01-01 | O203: $977,773.31 | P203: $8,620.04 | Q203: $1,629,187.71 | R203: $5,092.57 | S203: $1,217,433.55 | T203: $3,527.47 | U203: $425,754.16 | V203: $974,245.84 | X203: 189 | Y203: 2039-01-01 | Z203: $977,773.31 | AA203: $8,620.04 | AB203: $1,629,187.71 | AC203: $5,092.57 | AD203: $1,217,433.55 | AE203: $3,527.47 | AF203: $425,754.16 | AG203: $974,245.84
... 171 more rows

Sheet Sheet 2
E1: Required Pmt | F1: My Payment | G1: Difference
A2: Loan Amount | B2: =Comparison!F6 -> $1,400,000 | D2: Monthly Pmt | E2: =-PMT(B3/12,E3,B2) -> $8,848.95 | F2: =Comparison!F13 -> $0.00 | G2: =IF(E2<F2,E2-F2,"") ->  | H2: Closing Costs | J2: =Comparison!F11 -> $0
A3: Rate | B3: =Comparison!F7 -> 6.50% | D3: Term (Months) | E3: =ROUND(B4*12,2) -> 360 | F3: =IF(F2>E2,MAX(A15:A374),"") ->  | G3: =IF(ISNUMBER(F3),E3-F3,"") ->  | H3: Points | I3: =Comparison!F9 -> 0.000 | J3: =Comparison!F10 -> $0
A4: Term (Years) | B4: =Comparison!F8 -> 30 | D4: Term (Years) | E4: =E3/12 -> 30 | F4: =IF(F2>E2,F3/12,"") ->  | G4: =IF(ISNUMBER(F4),E4-F4,"") -> 
D5: Final Payment | E5: =VLOOKUP(E3,X15:Y374,2) -> 2053-04-01 | F5: =IF(F2>E2,VLOOKUP(E3,A15:B374,2),"") -> 
A6: First Payment | B6: 2023-05-01
A7: Last Payment | B7: =VLOOKUP(MAX(A15:A374),M15:N374,2) -> 2053-04-01 | D7: Total Interest | E7: =VLOOKUP(E5,Y15:AD374,6) -> $1,785,622.84 | F7: =IF(F2>E2,VLOOKUP(F5,B15:I374,6),"") ->  | G7: =IF(ISNUMBER(F7),E7-F7,"") -> 
A9: Todays Date | B9: =TODAY() -> 2023-09-25
M10: My Payment | X10: Required Payment
A13: Payment | B13: Payment | C13: Beginning | E13: Cumulitive | G13: Cumulitive | I13: Cumulitive | J13: End | O13: Beginning | S13: Cumulitive | V13: End | Z13: Beginning | AD13: Cumulitive | AG13: End
A14: Number | B14: Date | C14: Balance | D14: Payment | E14: Payments | F14: Interest | G14: Interest | H14: Principal | I14: Principal | J14: Balance | O14: Balance | P14: Payment | R14: Interest | S14: Interest | T14: Principal | V14: Balance | Z14: Balance | AA14: Payment | AC14: Interest | AD14: Interest | AE14: Principal | AG14: Balance
A15: =IF($O15<=0,"",M15) -> 1 | B15: 2023-05-01 | C15: $1,400,000.00 | D15: $8,848.95 | E15: $8,848.95 | F15: $7,583.33 | G15: $7,583.33 | H15: $1,265.62 | I15: $1,265.62 | J15: $1,398,734.38 | M15: 1 | N15: =B6 -> 2023-05-01 | O15: =$B$2 -> $1,400,000.00 | P15: =IF(N15>$B$9,MIN(MAX($E$2,$F$2),O15*(1+$B$3/12)),$E$2) -> $8,848.95 | Q15: =P15 -> $8,848.95 | R15: =$B$3*O15/12 -> $7,583.33 | S15: =R15+$J2+$J3 -> $7,583.33 | T15: =P15-R15 -> $1,265.62 | U15: =T15 -> $1,265.62 | V15: =O15-T15 -> $1,398,734.38 | X15: 1 | Y15: =B6 -> 2023-05-01 | Z15: =$B$2 -> $1,400,000.00 | AA15: =E$2 -> $8,848.95 | AB15: =AA15 -> $8,848.95 | AC15: =$B$3*Z15/12 -> $7,583.33 | AD15: =AC15+$J2+$J3 -> $7,583.33 | AE15: =AA15-AC15 -> $1,265.62 | AF15: =AE15 -> $1,265.62 | AG15: =Z15-AE15 -> $1,398,734.38
A16: =IF($O16<=0,"",M16) -> 2 | B16: =IF(ISNUMBER(A16),EOMONTH(B15,0)+1,"") -> 2023-06-01 | C16: =IF($O16<=0,"",O16) -> $1,398,734.38 | D16: =IF($O16<=0,"",P16) -> $8,848.95 | E16: =IF($O16<=0,"",Q16) -> $17,697.90 | F16: =IF($O16<=0,"",R16) -> $7,576.48 | G16: =IF($O16<=0,"",S16) -> $15,159.81 | H16: =IF($O16<=0,"",T16) -> $1,272.47 | I16: =IF($O16<=0,"",U16) -> $2,538.09 | J16: =IF($O16<=0,"",V16) -> $1,397,461.91 | M16: 2 | N16: =EOMONTH(N15,0)+1 -> 2023-06-01 | O16: =V15 -> $1,398,734.38 | P16: =IF(N16>$B$9,MIN(MAX(E$2,$F$2),O16*(1+$B$3/12)),$E$2) -> $8,848.95 | Q16: =Q15+P16 -> $17,697.90 | R16: $7,576.48 | S16: =S15+R16 -> $15,159.81 | T16: $1,272.47 | U16: =U15+T16 -> $2,538.09 | V16: $1,397,461.91 | X16: 2 | Y16: =EOMONTH(Y15,0)+1 -> 2023-06-01 | Z16: =AG15 -> $1,398,734.38 | AA16: =E$2 -> $8,848.95 | AB16: =AB15+AA16 -> $17,697.90 | AC16: $7,576.48 | AD16: =AD15+AC16 -> $15,159.81 | AE16: $1,272.47 | AF16: =AF15+AE16 -> $2,538.09 | AG16: $1,397,461.91
A17: 3 | B17: 2023-07-01 | C17: $1,397,461.91 | D17: $8,848.95 | E17: $26,546.86 | F17: $7,569.59 | G17: $22,729.40 | H17: $1,279.37 | I17: $3,817.46 | J17: $1,396,182.54 | M17: 3 | N17: =EOMONTH(N16,0)+1 -> 2023-07-01 | O17: $1,397,461.91 | P17: =IF(N17>B$9,MIN(MAX(E$2,F$2),O17*(1+B$3/12)),E$2) -> $8,848.95 | Q17: $26,546.86 | R17: $7,569.59 | S17: $22,729.40 | T17: $1,279.37 | U17: $3,817.46 | V17: $1,396,182.54 | X17: 3 | Y17: =EOMONTH(Y16,0)+1 -> 2023-07-01 | Z17: $1,397,461.91 | AA17: $8,848.95 | AB17: =AB16+AA17 -> $26,546.86 | AC17: $7,569.59 | AD17: =AD16+AC17 -> $22,729.40 | AE17: $1,279.37 | AF17: =AF16+AE17 -> $3,817.46 | AG17: $1,396,182.54
A18: 4 | B18: 2023-08-01 | C18: $1,396,182.54 | D18: $8,848.95 | E18: $35,395.81 | F18: $7,562.66 | G18: $30,292.05 | H18: $1,286.30 | I18: $5,103.76 | J18: $1,394,896.24 | M18: 4 | N18: 2023-08-01 | O18: $1,396,182.54 | P18: $8,848.95 | Q18: $35,395.81 | R18: $7,562.66 | S18: $30,292.05 | T18: $1,286.30 | U18: $5,103.76 | V18: $1,394,896.24 | X18: 4 | Y18: 2023-08-01 | Z18: $1,396,182.54 | AA18: $8,848.95 | AB18: $35,395.81 | AC18: $7,562.66 | AD18: $30,292.05 | AE18: $1,286.30 | AF18: $5,103.76 | AG18: $1,394,896.24 | AK18: 1 | AL18: =MIN(AK18,Comparison!$F$14) -> 1.00
A19: 5 | B19: 2023-09-01 | C19: $1,394,896.24 | D19: $8,848.95 | E19: $44,244.76 | F19: $7,555.69 | G19: $37,847.74 | H19: $1,293.26 | I19: $6,397.02 | J19: $1,393,602.98 | M19: 5 | N19: 2023-09-01 | O19: $1,394,896.24 | P19: $8,848.95 | Q19: $44,244.76 | R19: $7,555.69 | S19: $37,847.74 | T19: $1,293.26 | U19: $6,397.02 | V19: $1,393,602.98 | X19: 5 | Y19: 2023-09-01 | Z19: $1,394,896.24 | AA19: $8,848.95 | AB19: $44,244.76 | AC19: $7,555.69 | AD19: $37,847.74 | AE19: $1,293.26 | AF19: $6,397.02 | AG19: $1,393,602.98 | AK19: 2 | AL19: =MIN(AK19,Comparison!$F$14) -> 2.00
A20: 6 | B20: 2023-10-01 | C20: $1,393,602.98 | D20: $8,848.95 | E20: $53,093.71 | F20: $7,548.68 | G20: $45,396.42 | H20: $1,300.27 | I20: $7,697.29 | J20: $1,392,302.71 | M20: 6 | N20: 2023-10-01 | O20: $1,393,602.98 | P20: $8,848.95 | Q20: $53,093.71 | R20: $7,548.68 | S20: $45,396.42 | T20: $1,300.27 | U20: $7,697.29 | V20: $1,392,302.71 | X20: 6 | Y20: 2023-10-01 | Z20: $1,393,602.98 | AA20: $8,848.95 | AB20: $53,093.71 | AC20: $7,548.68 | AD20: $45,396.42 | AE20: $1,300.27 | AF20: $7,697.29 | AG20: $1,392,302.71 | AK20: 3 | AL20: =MIN(AK20,Comparison!$F$14) -> 3.00
A21: 7 | B21: 2023-11-01 | C21: $1,392,302.71 | D21: $8,848.95 | E21: $61,942.67 | F21: $7,541.64 | G21: $52,938.06 | H21: $1,307.31 | I21: $9,004.60 | J21: $1,390,995.40 | M21: 7 | N21: 2023-11-01 | O21: $1,392,302.71 | P21: $8,848.95 | Q21: $61,942.67 | R21: $7,541.64 | S21: $52,938.06 | T21: $1,307.31 | U21: $9,004.60 | V21: $1,390,995.40 | X21: 7 | Y21: 2023-11-01 | Z21: $1,392,302.71 | AA21: $8,848.95 | AB21: $61,942.67 | AC21: $7,541.64 | AD21: $52,938.06 | AE21: $1,307.31 | AF21: $9,004.60 | AG21: $1,390,995.40 | AK21: 4 | AL21: =MIN(AK21,Comparison!$F$14) -> 4.00
A22: 8 | B22: 2023-12-01 | C22: $1,390,995.40 | D22: $8,848.95 | E22: $70,791.62 | F22: $7,534.56 | G22: $60,472.62 | H22: $1,314.39 | I22: $10,319.00 | J22: $1,389,681.00 | M22: 8 | N22: 2023-12-01 | O22: $1,390,995.40 | P22: $8,848.95 | Q22: $70,791.62 | R22: $7,534.56 | S22: $60,472.62 | T22: $1,314.39 | U22: $10,319.00 | V22: $1,389,681.00 | X22: 8 | Y22: 2023-12-01 | Z22: $1,390,995.40 | AA22: $8,848.95 | AB22: $70,791.62 | AC22: $7,534.56 | AD22: $60,472.62 | AE22: $1,314.39 | AF22: $10,319.00 | AG22: $1,389,681.00 | AK22: 5 | AL22: =MIN(AK22,Comparison!$F$14) -> 5.00
A23: 9 | B23: 2024-01-01 | C23: $1,389,681.00 | D23: $8,848.95 | E23: $79,640.57 | F23: $7,527.44 | G23: $68,000.06 | H23: $1,321.51 | I23: $11,640.51 | J23: $1,388,359.49 | M23: 9 | N23: 2024-01-01 | O23: $1,389,681.00 | P23: $8,848.95 | Q23: $79,640.57 | R23: $7,527.44 | S23: $68,000.06 | T23: $1,321.51 | U23: $11,640.51 | V23: $1,388,359.49 | X23: 9 | Y23: 2024-01-01 | Z23: $1,389,681.00 | AA23: $8,848.95 | AB23: $79,640.57 | AC23: $7,527.44 | AD23: $68,000.06 | AE23: $1,321.51 | AF23: $11,640.51 | AG23: $1,388,359.49 | AK23: 6 | AL23: =MIN(AK23,Comparison!$F$14) -> 6.00
A24: 10 | B24: 2024-02-01 | C24: $1,388,359.49 | D24: $8,848.95 | E24: $88,489.52 | F24: $7,520.28 | G24: $75,520.34 | H24: $1,328.67 | I24: $12,969.18 | J24: $1,387,030.82 | M24: 10 | N24: 2024-02-01 | O24: $1,388,359.49 | P24: $8,848.95 | Q24: $88,489.52 | R24: $7,520.28 | S24: $75,520.34 | T24: $1,328.67 | U24: $12,969.18 | V24: $1,387,030.82 | X24: 10 | Y24: 2024-02-01 | Z24: $1,388,359.49 | AA24: $8,848.95 | AB24: $88,489.52 | AC24: $7,520.28 | AD24: $75,520.34 | AE24: $1,328.67 | AF24: $12,969.18 | AG24: $1,387,030.82 | AK24: 7 | AL24: =MIN(AK24,Comparison!$F$14) -> 7.00
A25: 11 | B25: 2024-03-01 | C25: $1,387,030.82 | D25: $8,848.95 | E25: $97,338.48 | F25: $7,513.08 | G25: $83,033.42 | H25: $1,335.87 | I25: $14,305.05 | J25: $1,385,694.95 | M25: 11 | N25: 2024-03-01 | O25: $1,387,030.82 | P25: $8,848.95 | Q25: $97,338.48 | R25: $7,513.08 | S25: $83,033.42 | T25: $1,335.87 | U25: $14,305.05 | V25: $1,385,694.95 | X25: 11 | Y25: 2024-03-01 | Z25: $1,387,030.82 | AA25: $8,848.95 | AB25: $97,338.48 | AC25: $7,513.08 | AD25: $83,033.42 | AE25: $1,335.87 | AF25: $14,305.05 | AG25: $1,385,694.95 | AK25: 8 | AL25: =MIN(AK25,Comparison!$F$14) -> 8.00
A26: 12 | B26: 2024-04-01 | C26: $1,385,694.95 | D26: $8,848.95 | E26: $106,187.43 | F26: $7,505.85 | G26: $90,539.27 | H26: $1,343.10 | I26: $15,648.16 | J26: $1,384,351.84 | M26: 12 | N26: 2024-04-01 | O26: $1,385,694.95 | P26: $8,848.95 | Q26: $106,187.43 | R26: $7,505.85 | S26: $90,539.27 | T26: $1,343.10 | U26: $15,648.16 | V26: $1,384,351.84 | X26: 12 | Y26: 2024-04-01 | Z26: $1,385,694.95 | AA26: $8,848.95 | AB26: $106,187.43 | AC26: $7,505.85 | AD26: $90,539.27 | AE26: $1,343.10 | AF26: $15,648.16 | AG26: $1,384,351.84 | AK26: 9 | AL26: =MIN(AK26,Comparison!$F$14) -> 9.00
A27: 13 | B27: 2024-05-01 | C27: $1,384,351.84 | D27: $8,848.95 | E27: $115,036.38 | F27: $7,498.57 | G27: $98,037.84 | H27: $1,350.38 | I27: $16,998.54 | J27: $1,383,001.46 | M27: 13 | N27: 2024-05-01 | O27: $1,384,351.84 | P27: $8,848.95 | Q27: $115,036.38 | R27: $7,498.57 | S27: $98,037.84 | T27: $1,350.38 | U27: $16,998.54 | V27: $1,383,001.46 | X27: 13 | Y27: 2024-05-01 | Z27: $1,384,351.84 | AA27: $8,848.95 | AB27: $115,036.38 | AC27: $7,498.57 | AD27: $98,037.84 | AE27: $1,350.38 | AF27: $16,998.54 | AG27: $1,383,001.46 | AK27: 10 | AL27: =MIN(AK27,Comparison!$F$14) -> 10.00
A28: 14 | B28: 2024-06-01 | C28: $1,383,001.46 | D28: $8,848.95 | E28: $123,885.33 | F28: $7,491.26 | G28: $105,529.10 | H28: $1,357.69 | I28: $18,356.23 | J28: $1,381,643.77 | M28: 14 | N28: 2024-06-01 | O28: $1,383,001.46 | P28: $8,848.95 | Q28: $123,885.33 | R28: $7,491.26 | S28: $105,529.10 | T28: $1,357.69 | U28: $18,356.23 | V28: $1,381,643.77 | X28: 14 | Y28: 2024-06-01 | Z28: $1,383,001.46 | AA28: $8,848.95 | AB28: $123,885.33 | AC28: $7,491.26 | AD28: $105,529.10 | AE28: $1,357.69 | AF28: $18,356.23 | AG28: $1,381,643.77 | AK28: 11 | AL28: =MIN(AK28,Comparison!$F$14) -> 11.00
A29: 15 | B29: 2024-07-01 | C29: $1,381,643.77 | D29: $8,848.95 | E29: $132,734.28 | F29: $7,483.90 | G29: $113,013.01 | H29: $1,365.05 | I29: $19,721.28 | J29: $1,380,278.72 | M29: 15 | N29: 2024-07-01 | O29: $1,381,643.77 | P29: $8,848.95 | Q29: $132,734.28 | R29: $7,483.90 | S29: $113,013.01 | T29: $1,365.05 | U29: $19,721.28 | V29: $1,380,278.72 | X29: 15 | Y29: 2024-07-01 | Z29: $1,381,643.77 | AA29: $8,848.95 | AB29: $132,734.28 | AC29: $7,483.90 | AD29: $113,013.01 | AE29: $1,365.05 | AF29: $19,721.28 | AG29: $1,380,278.72 | AK29: 12 | AL29: =MIN(AK29,Comparison!$F$14) -> 12.00
A30: 16 | B30: 2024-08-01 | C30: $1,380,278.72 | D30: $8,848.95 | E30: $141,583.24 | F30: $7,476.51 | G30: $120,489.52 | H30: $1,372.44 | I30: $21,093.72 | J30: $1,378,906.28 | M30: 16 | N30: 2024-08-01 | O30: $1,380,278.72 | P30: $8,848.95 | Q30: $141,583.24 | R30: $7,476.51 | S30: $120,489.52 | T30: $1,372.44 | U30: $21,093.72 | V30: $1,378,906.28 | X30: 16 | Y30: 2024-08-01 | Z30: $1,380,278.72 | AA30: $8,848.95 | AB30: $141,583.24 | AC30: $7,476.51 | AD30: $120,489.52 | AE30: $1,372.44 | AF30: $21,093.72 | AG30: $1,378,906.28 | AK30: 13 | AL30: =MIN(AK30,Comparison!$F$14) -> 13.00
A31: 17 | B31: 2024-09-01 | C31: $1,378,906.28 | D31: $8,848.95 | E31: $150,432.19 | F31: $7,469.08 | G31: $127,958.59 | H31: $1,379.88 | I31: $22,473.60 | J31: $1,377,526.40 | M31: 17 | N31: 2024-09-01 | O31: $1,378,906.28 | P31: $8,848.95 | Q31: $150,432.19 | R31: $7,469.08 | S31: $127,958.59 | T31: $1,379.88 | U31: $22,473.60 | V31: $1,377,526.40 | X31: 17 | Y31: 2024-09-01 | Z31: $1,378,906.28 | AA31: $8,848.95 | AB31: $150,432.19 | AC31: $7,469.08 | AD31: $127,958.59 | AE31: $1,379.88 | AF31: $22,473.60 | AG31: $1,377,526.40 | AK31: 14 | AL31: =MIN(AK31,Comparison!$F$14) -> 14.00
A32: 18 | B32: 2024-10-01 | C32: $1,377,526.40 | D32: $8,848.95 | E32: $159,281.14 | F32: $7,461.60 | G32: $135,420.19 | H32: $1,387.35 | I32: $23,860.95 | J32: $1,376,139.05 | M32: 18 | N32: 2024-10-01 | O32: $1,377,526.40 | P32: $8,848.95 | Q32: $159,281.14 | R32: $7,461.60 | S32: $135,420.19 | T32: $1,387.35 | U32: $23,860.95 | V32: $1,376,139.05 | X32: 18 | Y32: 2024-10-01 | Z32: $1,377,526.40 | AA32: $8,848.95 | AB32: $159,281.14 | AC32: $7,461.60 | AD32: $135,420.19 | AE32: $1,387.35 | AF32: $23,860.95 | AG32: $1,376,139.05 | AK32: 15 | AL32: =MIN(AK32,Comparison!$F$14) -> 15.00
A33: 19 | B33: 2024-11-01 | C33: $1,376,139.05 | D33: $8,848.95 | E33: $168,130.09 | F33: $7,454.09 | G33: $142,874.28 | H33: $1,394.87 | I33: $25,255.82 | J33: $1,374,744.18 | M33: 19 | N33: 2024-11-01 | O33: $1,376,139.05 | P33: $8,848.95 | Q33: $168,130.09 | R33: $7,454.09 | S33: $142,874.28 | T33: $1,394.87 | U33: $25,255.82 | V33: $1,374,744.18 | X33: 19 | Y33: 2024-11-01 | Z33: $1,376,139.05 | AA33: $8,848.95 | AB33: $168,130.09 | AC33: $7,454.09 | AD33: $142,874.28 | AE33: $1,394.87 | AF33: $25,255.82 | AG33: $1,374,744.18 | AK33: 16 | AL33: =MIN(AK33,Comparison!$F$14) -> 16.00
A34: 20 | B34: 2024-12-01 | C34: $1,374,744.18 | D34: $8,848.95 | E34: $176,979.05 | F34: $7,446.53 | G34: $150,320.81 | H34: $1,402.42 | I34: $26,658.24 | J34: $1,373,341.76 | M34: 20 | N34: 2024-12-01 | O34: $1,374,744.18 | P34: $8,848.95 | Q34: $176,979.05 | R34: $7,446.53 | S34: $150,320.81 | T34: $1,402.42 | U34: $26,658.24 | V34: $1,373,341.76 | X34: 20 | Y34: 2024-12-01 | Z34: $1,374,744.18 | AA34: $8,848.95 | AB34: $176,979.05 | AC34: $7,446.53 | AD34: $150,320.81 | AE34: $1,402.42 | AF34: $26,658.24 | AG34: $1,373,341.76 | AK34: 17 | AL34: =MIN(AK34,Comparison!$F$14) -> 17.00
A35: 21 | B35: 2025-01-01 | C35: $1,373,341.76 | D35: $8,848.95 | E35: $185,828.00 | F35: $7,438.93 | G35: $157,759.74 | H35: $1,410.02 | I35: $28,068.25 | J35: $1,371,931.75 | M35: 21 | N35: 2025-01-01 | O35: $1,373,341.76 | P35: $8,848.95 | Q35: $185,828.00 | R35: $7,438.93 | S35: $157,759.74 | T35: $1,410.02 | U35: $28,068.25 | V35: $1,371,931.75 | X35: 21 | Y35: 2025-01-01 | Z35: $1,373,341.76 | AA35: $8,848.95 | AB35: $185,828.00 | AC35: $7,438.93 | AD35: $157,759.74 | AE35: $1,410.02 | AF35: $28,068.25 | AG35: $1,371,931.75 | AK35: 18 | AL35: =MIN(AK35,Comparison!$F$14) -> 18.00
A36: 22 | B36: 2025-02-01 | C36: $1,371,931.75 | D36: $8,848.95 | E36: $194,676.95 | F36: $7,431.30 | G36: $165,191.04 | H36: $1,417.66 | I36: $29,485.91 | J36: $1,370,514.09 | M36: 22 | N36: 2025-02-01 | O36: $1,371,931.75 | P36: $8,848.95 | Q36: $194,676.95 | R36: $7,431.30 | S36: $165,191.04 | T36: $1,417.66 | U36: $29,485.91 | V36: $1,370,514.09 | X36: 22 | Y36: 2025-02-01 | Z36: $1,371,931.75 | AA36: $8,848.95 | AB36: $194,676.95 | AC36: $7,431.30 | AD36: $165,191.04 | AE36: $1,417.66 | AF36: $29,485.91 | AG36: $1,370,514.09 | AK36: 19 | AL36: =MIN(AK36,Comparison!$F$14) -> 19.00
A37: 23 | B37: 2025-03-01 | C37: $1,370,514.09 | D37: $8,848.95 | E37: $203,525.90 | F37: $7,423.62 | G37: $172,614.66 | H37: $1,425.33 | I37: $30,911.24 | J37: $1,369,088.76 | M37: 23 | N37: 2025-03-01 | O37: $1,370,514.09 | P37: $8,848.95 | Q37: $203,525.90 | R37: $7,423.62 | S37: $172,614.66 | T37: $1,425.33 | U37: $30,911.24 | V37: $1,369,088.76 | X37: 23 | Y37: 2025-03-01 | Z37: $1,370,514.09 | AA37: $8,848.95 | AB37: $203,525.90 | AC37: $7,423.62 | AD37: $172,614.66 | AE37: $1,425.33 | AF37: $30,911.24 | AG37: $1,369,088.76 | AK37: 20 | AL37: =MIN(AK37,Comparison!$F$14) -> 20.00
A38: 24 | B38: 2025-04-01 | C38: $1,369,088.76 | D38: $8,848.95 | E38: $212,374.86 | F38: $7,415.90 | G38: $180,030.56 | H38: $1,433.05 | I38: $32,344.30 | J38: $1,367,655.70 | M38: 24 | N38: 2025-04-01 | O38: $1,369,088.76 | P38: $8,848.95 | Q38: $212,374.86 | R38: $7,415.90 | S38: $180,030.56 | T38: $1,433.05 | U38: $32,344.30 | V38: $1,367,655.70 | X38: 24 | Y38: 2025-04-01 | Z38: $1,369,088.76 | AA38: $8,848.95 | AB38: $212,374.86 | AC38: $7,415.90 | AD38: $180,030.56 | AE38: $1,433.05 | AF38: $32,344.30 | AG38: $1,367,655.70 | AK38: 21 | AL38: =MIN(AK38,Comparison!$F$14) -> 21.00
A39: 25 | B39: 2025-05-01 | C39: $1,367,655.70 | D39: $8,848.95 | E39: $221,223.81 | F39: $7,408.14 | G39: $187,438.69 | H39: $1,440.82 | I39: $33,785.12 | J39: $1,366,214.88 | M39: 25 | N39: 2025-05-01 | O39: $1,367,655.70 | P39: $8,848.95 | Q39: $221,223.81 | R39: $7,408.14 | S39: $187,438.69 | T39: $1,440.82 | U39: $33,785.12 | V39: $1,366,214.88 | X39: 25 | Y39: 2025-05-01 | Z39: $1,367,655.70 | AA39: $8,848.95 | AB39: $221,223.81 | AC39: $7,408.14 | AD39: $187,438.69 | AE39: $1,440.82 | AF39: $33,785.12 | AG39: $1,366,214.88 | AK39: 22 | AL39: =MIN(AK39,Comparison!$F$14) -> 22.00
A40: 26 | B40: 2025-06-01 | C40: $1,366,214.88 | D40: $8,848.95 | E40: $230,072.76 | F40: $7,400.33 | G40: $194,839.02 | H40: $1,448.62 | I40: $35,233.74 | J40: $1,364,766.26 | M40: 26 | N40: 2025-06-01 | O40: $1,366,214.88 | P40: $8,848.95 | Q40: $230,072.76 | R40: $7,400.33 | S40: $194,839.02 | T40: $1,448.62 | U40: $35,233.74 | V40: $1,364,766.26 | X40: 26 | Y40: 2025-06-01 | Z40: $1,366,214.88 | AA40: $8,848.95 | AB40: $230,072.76 | AC40: $7,400.33 | AD40: $194,839.02 | AE40: $1,448.62 | AF40: $35,233.74 | AG40: $1,364,766.26 | AK40: 23 | AL40: =MIN(AK40,Comparison!$F$14) -> 23.00
A41: 27 | B41: 2025-07-01 | C41: $1,364,766.26 | D41: $8,848.95 | E41: $238,921.71 | F41: $7,392.48 | G41: $202,231.51 | H41: $1,456.47 | I41: $36,690.21 | J41: $1,363,309.79 | M41: 27 | N41: 2025-07-01 | O41: $1,364,766.26 | P41: $8,848.95 | Q41: $238,921.71 | R41: $7,392.48 | S41: $202,231.51 | T41: $1,456.47 | U41: $36,690.21 | V41: $1,363,309.79 | X41: 27 | Y41: 2025-07-01 | Z41: $1,364,766.26 | AA41: $8,848.95 | AB41: $238,921.71 | AC41: $7,392.48 | AD41: $202,231.51 | AE41: $1,456.47 | AF41: $36,690.21 | AG41: $1,363,309.79 | AK41: 24 | AL41: =MIN(AK41,Comparison!$F$14) -> 24.00
A42: 28 | B42: 2025-08-01 | C42: $1,363,309.79 | D42: $8,848.95 | E42: $247,770.67 | F42: $7,384.59 | G42: $209,616.10 | H42: $1,464.36 | I42: $38,154.56 | J42: $1,361,845.44 | M42: 28 | N42: 2025-08-01 | O42: $1,363,309.79 | P42: $8,848.95 | Q42: $247,770.67 | R42: $7,384.59 | S42: $209,616.10 | T42: $1,464.36 | U42: $38,154.56 | V42: $1,361,845.44 | X42: 28 | Y42: 2025-08-01 | Z42: $1,363,309.79 | AA42: $8,848.95 | AB42: $247,770.67 | AC42: $7,384.59 | AD42: $209,616.10 | AE42: $1,464.36 | AF42: $38,154.56 | AG42: $1,361,845.44 | AK42: 25 | AL42: =MIN(AK42,Comparison!$F$14) -> 25.00
A43: 29 | B43: 2025-09-01 | C43: $1,361,845.44 | D43: $8,848.95 | E43: $256,619.62 | F43: $7,376.66 | G43: $216,992.76 | H43: $1,472.29 | I43: $39,626.85 | J43: $1,360,373.15 | M43: 29 | N43: 2025-09-01 | O43: $1,361,845.44 | P43: $8,848.95 | Q43: $256,619.62 | R43: $7,376.66 | S43: $216,992.76 | T43: $1,472.29 | U43: $39,626.85 | V43: $1,360,373.15 | X43: 29 | Y43: 2025-09-01 | Z43: $1,361,845.44 | AA43: $8,848.95 | AB43: $256,619.62 | AC43: $7,376.66 | AD43: $216,992.76 | AE43: $1,472.29 | AF43: $39,626.85 | AG43: $1,360,373.15 | AK43: 26 | AL43: =MIN(AK43,Comparison!$F$14) -> 26.00
A44: 30 | B44: 2025-10-01 | C44: $1,360,373.15 | D44: $8,848.95 | E44: $265,468.57 | F44: $7,368.69 | G44: $224,361.45 | H44: $1,480.26 | I44: $41,107.12 | J44: $1,358,892.88 | M44: 30 | N44: 2025-10-01 | O44: $1,360,373.15 | P44: $8,848.95 | Q44: $265,468.57 | R44: $7,368.69 | S44: $224,361.45 | T44: $1,480.26 | U44: $41,107.12 | V44: $1,358,892.88 | X44: 30 | Y44: 2025-10-01 | Z44: $1,360,373.15 | AA44: $8,848.95 | AB44: $265,468.57 | AC44: $7,368.69 | AD44: $224,361.45 | AE44: $1,480.26 | AF44: $41,107.12 | AG44: $1,358,892.88 | AK44: 27 | AL44: =MIN(AK44,Comparison!$F$14) -> 27.00
A45: 31 | B45: 2025-11-01 | C45: $1,358,892.88 | D45: $8,848.95 | E45: $274,317.52 | F45: $7,360.67 | G45: $231,722.12 | H45: $1,488.28 | I45: $42,595.40 | J45: $1,357,404.60 | M45: 31 | N45: 2025-11-01 | O45: $1,358,892.88 | P45: $8,848.95 | Q45: $274,317.52 | R45: $7,360.67 | S45: $231,722.12 | T45: $1,488.28 | U45: $42,595.40 | V45: $1,357,404.60 | X45: 31 | Y45: 2025-11-01 | Z45: $1,358,892.88 | AA45: $8,848.95 | AB45: $274,317.52 | AC45: $7,360.67 | AD45: $231,722.12 | AE45: $1,488.28 | AF45: $42,595.40 | AG45: $1,357,404.60 | AK45: 28 | AL45: =MIN(AK45,Comparison!$F$14) -> 28.00
A46: 32 | B46: 2025-12-01 | C46: $1,357,404.60 | D46: $8,848.95 | E46: $283,166.47 | F46: $7,352.61 | G46: $239,074.73 | H46: $1,496.34 | I46: $44,091.74 | J46: $1,355,908.26 | M46: 32 | N46: 2025-12-01 | O46: $1,357,404.60 | P46: $8,848.95 | Q46: $283,166.47 | R46: $7,352.61 | S46: $239,074.73 | T46: $1,496.34 | U46: $44,091.74 | V46: $1,355,908.26 | X46: 32 | Y46: 2025-12-01 | Z46: $1,357,404.60 | AA46: $8,848.95 | AB46: $283,166.47 | AC46: $7,352.61 | AD46: $239,074.73 | AE46: $1,496.34 | AF46: $44,091.74 | AG46: $1,355,908.26 | AK46: 29 | AL46: =MIN(AK46,Comparison!$F$14) -> 29.00
A47: 33 | B47: 2026-01-01 | C47: $1,355,908.26 | D47: $8,848.95 | E47: $292,015.43 | F47: $7,344.50 | G47: $246,419.23 | H47: $1,504.45 | I47: $45,596.19 | J47: $1,354,403.81 | M47: 33 | N47: 2026-01-01 | O47: $1,355,908.26 | P47: $8,848.95 | Q47: $292,015.43 | R47: $7,344.50 | S47: $246,419.23 | T47: $1,504.45 | U47: $45,596.19 | V47: $1,354,403.81 | X47: 33 | Y47: 2026-01-01 | Z47: $1,355,908.26 | AA47: $8,848.95 | AB47: $292,015.43 | AC47: $7,344.50 | AD47: $246,419.23 | AE47: $1,504.45 | AF47: $45,596.19 | AG47: $1,354,403.81 | AK47: 30 | AL47: =MIN(AK47,Comparison!$F$14) -> 30.00
A48: 34 | B48: 2026-02-01 | C48: $1,354,403.81 | D48: $8,848.95 | E48: $300,864.38 | F48: $7,336.35 | G48: $253,755.59 | H48: $1,512.60 | I48: $47,108.79 | J48: $1,352,891.21 | M48: 34 | N48: 2026-02-01 | O48: $1,354,403.81 | P48: $8,848.95 | Q48: $300,864.38 | R48: $7,336.35 | S48: $253,755.59 | T48: $1,512.60 | U48: $47,108.79 | V48: $1,352,891.21 | X48: 34 | Y48: 2026-02-01 | Z48: $1,354,403.81 | AA48: $8,848.95 | AB48: $300,864.38 | AC48: $7,336.35 | AD48: $253,755.59 | AE48: $1,512.60 | AF48: $47,108.79 | AG48: $1,352,891.21
A49: 35 | B49: 2026-03-01 | C49: $1,352,891.21 | D49: $8,848.95 | E49: $309,713.33 | F49: $7,328.16 | G49: $261,083.75 | H49: $1,520.79 | I49: $48,629.58 | J49: $1,351,370.42 | M49: 35 | N49: 2026-03-01 | O49: $1,352,891.21 | P49: $8,848.95 | Q49: $309,713.33 | R49: $7,328.16 | S49: $261,083.75 | T49: $1,520.79 | U49: $48,629.58 | V49: $1,351,370.42 | X49: 35 | Y49: 2026-03-01 | Z49: $1,352,891.21 | AA49: $8,848.95 | AB49: $309,713.33 | AC49: $7,328.16 | AD49: $261,083.75 | AE49: $1,520.79 | AF49: $48,629.58 | AG49: $1,351,370.42
A50: 36 | B50: 2026-04-01 | C50: $1,351,370.42 | D50: $8,848.95 | E50: $318,562.28 | F50: $7,319.92 | G50: $268,403.67 | H50: $1,529.03 | I50: $50,158.61 | J50: $1,349,841.39 | M50: 36 | N50: 2026-04-01 | O50: $1,351,370.42 | P50: $8,848.95 | Q50: $318,562.28 | R50: $7,319.92 | S50: $268,403.67 | T50: $1,529.03 | U50: $50,158.61 | V50: $1,349,841.39 | X50: 36 | Y50: 2026-04-01 | Z50: $1,351,370.42 | AA50: $8,848.95 | AB50: $318,562.28 | AC50: $7,319.92 | AD50: $268,403.67 | AE50: $1,529.03 | AF50: $50,158.61 | AG50: $1,349,841.39
A51: 37 | B51: 2026-05-01 | C51: $1,349,841.39 | D51: $8,848.95 | E51: $327,411.24 | F51: $7,311.64 | G51: $275,715.31 | H51: $1,537.31 | I51: $51,695.92 | J51: $1,348,304.08 | M51: 37 | N51: 2026-05-01 | O51: $1,349,841.39 | P51: $8,848.95 | Q51: $327,411.24 | R51: $7,311.64 | S51: $275,715.31 | T51: $1,537.31 | U51: $51,695.92 | V51: $1,348,304.08 | X51: 37 | Y51: 2026-05-01 | Z51: $1,349,841.39 | AA51: $8,848.95 | AB51: $327,411.24 | AC51: $7,311.64 | AD51: $275,715.31 | AE51: $1,537.31 | AF51: $51,695.92 | AG51: $1,348,304.08
A52: 38 | B52: 2026-06-01 | C52: $1,348,304.08 | D52: $8,848.95 | E52: $336,260.19 | F52: $7,303.31 | G52: $283,018.63 | H52: $1,545.64 | I52: $53,241.56 | J52: $1,346,758.44 | M52: 38 | N52: 2026-06-01 | O52: $1,348,304.08 | P52: $8,848.95 | Q52: $336,260.19 | R52: $7,303.31 | S52: $283,018.63 | T52: $1,545.64 | U52: $53,241.56 | V52: $1,346,758.44 | X52: 38 | Y52: 2026-06-01 | Z52: $1,348,304.08 | AA52: $8,848.95 | AB52: $336,260.19 | AC52: $7,303.31 | AD52: $283,018.63 | AE52: $1,545.64 | AF52: $53,241.56 | AG52: $1,346,758.44
A53: 39 | B53: 2026-07-01 | C53: $1,346,758.44 | D53: $8,848.95 | E53: $345,109.14 | F53: $7,294.94 | G53: $290,313.57 | H53: $1,554.01 | I53: $54,795.57 | J53: $1,345,204.43 | M53: 39 | N53: 2026-07-01 | O53: $1,346,758.44 | P53: $8,848.95 | Q53: $345,109.14 | R53: $7,294.94 | S53: $290,313.57 | T53: $1,554.01 | U53: $54,795.57 | V53: $1,345,204.43 | X53: 39 | Y53: 2026-07-01 | Z53: $1,346,758.44 | AA53: $8,848.95 | AB53: $345,109.14 | AC53: $7,294.94 | AD53: $290,313.57 | AE53: $1,554.01 | AF53: $54,795.57 | AG53: $1,345,204.43
A54: 40 | B54: 2026-08-01 | C54: $1,345,204.43 | D54: $8,848.95 | E54: $353,958.09 | F54: $7,286.52 | G54: $297,600.09 | H54: $1,562.43 | I54: $56,358.00 | J54: $1,343,642.00 | M54: 40 | N54: 2026-08-01 | O54: $1,345,204.43 | P54: $8,848.95 | Q54: $353,958.09 | R54: $7,286.52 | S54: $297,600.09 | T54: $1,562.43 | U54: $56,358.00 | V54: $1,343,642.00 | X54: 40 | Y54: 2026-08-01 | Z54: $1,345,204.43 | AA54: $8,848.95 | AB54: $353,958.09 | AC54: $7,286.52 | AD54: $297,600.09 | AE54: $1,562.43 | AF54: $56,358.00 | AG54: $1,343,642.00
A55: 41 | B55: 2026-09-01 | C55: $1,343,642.00 | D55: $8,848.95 | E55: $362,807.05 | F55: $7,278.06 | G55: $304,878.15 | H55: $1,570.89 | I55: $57,928.89 | J55: $1,342,071.11 | M55: 41 | N55: 2026-09-01 | O55: $1,343,642.00 | P55: $8,848.95 | Q55: $362,807.05 | R55: $7,278.06 | S55: $304,878.15 | T55: $1,570.89 | U55: $57,928.89 | V55: $1,342,071.11 | X55: 41 | Y55: 2026-09-01 | Z55: $1,343,642.00 | AA55: $8,848.95 | AB55: $362,807.05 | AC55: $7,278.06 | AD55: $304,878.15 | AE55: $1,570.89 | AF55: $57,928.89 | AG55: $1,342,071.11
A56: 42 | B56: 2026-10-01 | C56: $1,342,071.11 | D56: $8,848.95 | E56: $371,656.00 | F56: $7,269.55 | G56: $312,147.70 | H56: $1,579.40 | I56: $59,508.29 | J56: $1,340,491.71 | M56: 42 | N56: 2026-10-01 | O56: $1,342,071.11 | P56: $8,848.95 | Q56: $371,656.00 | R56: $7,269.55 | S56: $312,147.70 | T56: $1,579.40 | U56: $59,508.29 | V56: $1,340,491.71 | X56: 42 | Y56: 2026-10-01 | Z56: $1,342,071.11 | AA56: $8,848.95 | AB56: $371,656.00 | AC56: $7,269.55 | AD56: $312,147.70 | AE56: $1,579.40 | AF56: $59,508.29 | AG56: $1,340,491.71
A57: 43 | B57: 2026-11-01 | C57: $1,340,491.71 | D57: $8,848.95 | E57: $380,504.95 | F57: $7,261.00 | G57: $319,408.70 | H57: $1,587.96 | I57: $61,096.25 | J57: $1,338,903.75 | M57: 43 | N57: 2026-11-01 | O57: $1,340,491.71 | P57: $8,848.95 | Q57: $380,504.95 | R57: $7,261.00 | S57: $319,408.70 | T57: $1,587.96 | U57: $61,096.25 | V57: $1,338,903.75 | X57: 43 | Y57: 2026-11-01 | Z57: $1,340,491.71 | AA57: $8,848.95 | AB57: $380,504.95 | AC57: $7,261.00 | AD57: $319,408.70 | AE57: $1,587.96 | AF57: $61,096.25 | AG57: $1,338,903.75
A58: 44 | B58: 2026-12-01 | C58: $1,338,903.75 | D58: $8,848.95 | E58: $389,353.90 | F58: $7,252.40 | G58: $326,661.10 | H58: $1,596.56 | I58: $62,692.81 | J58: $1,337,307.19 | M58: 44 | N58: 2026-12-01 | O58: $1,338,903.75 | P58: $8,848.95 | Q58: $389,353.90 | R58: $7,252.40 | S58: $326,661.10 | T58: $1,596.56 | U58: $62,692.81 | V58: $1,337,307.19 | X58: 44 | Y58: 2026-12-01 | Z58: $1,338,903.75 | AA58: $8,848.95 | AB58: $389,353.90 | AC58: $7,252.40 | AD58: $326,661.10 | AE58: $1,596.56 | AF58: $62,692.81 | AG58: $1,337,307.19
A59: 45 | B59: 2027-01-01 | C59: $1,337,307.19 | D59: $8,848.95 | E59: $398,202.85 | F59: $7,243.75 | G59: $333,904.84 | H59: $1,605.21 | I59: $64,298.01 | J59: $1,335,701.99 | M59: 45 | N59: 2027-01-01 | O59: $1,337,307.19 | P59: $8,848.95 | Q59: $398,202.85 | R59: $7,243.75 | S59: $333,904.84 | T59: $1,605.21 | U59: $64,298.01 | V59: $1,335,701.99 | X59: 45 | Y59: 2027-01-01 | Z59: $1,337,307.19 | AA59: $8,848.95 | AB59: $398,202.85 | AC59: $7,243.75 | AD59: $333,904.84 | AE59: $1,605.21 | AF59: $64,298.01 | AG59: $1,335,701.99
A60: 46 | B60: 2027-02-01 | C60: $1,335,701.99 | D60: $8,848.95 | E60: $407,051.81 | F60: $7,235.05 | G60: $341,139.90 | H60: $1,613.90 | I60: $65,911.91 | J60: $1,334,088.09 | M60: 46 | N60: 2027-02-01 | O60: $1,335,701.99 | P60: $8,848.95 | Q60: $407,051.81 | R60: $7,235.05 | S60: $341,139.90 | T60: $1,613.90 | U60: $65,911.91 | V60: $1,334,088.09 | X60: 46 | Y60: 2027-02-01 | Z60: $1,335,701.99 | AA60: $8,848.95 | AB60: $407,051.81 | AC60: $7,235.05 | AD60: $341,139.90 | AE60: $1,613.90 | AF60: $65,911.91 | AG60: $1,334,088.09
A61: 47 | B61: 2027-03-01 | C61: $1,334,088.09 | D61: $8,848.95 | E61: $415,900.76 | F61: $7,226.31 | G61: $348,366.21 | H61: $1,622.64 | I61: $67,534.55 | J61: $1,332,465.45 | M61: 47 | N61: 2027-03-01 | O61: $1,334,088.09 | P61: $8,848.95 | Q61: $415,900.76 | R61: $7,226.31 | S61: $348,366.21 | T61: $1,622.64 | U61: $67,534.55 | V61: $1,332,465.45 | X61: 47 | Y61: 2027-03-01 | Z61: $1,334,088.09 | AA61: $8,848.95 | AB61: $415,900.76 | AC61: $7,226.31 | AD61: $348,366.21 | AE61: $1,622.64 | AF61: $67,534.55 | AG61: $1,332,465.45
A62: 48 | B62: 2027-04-01 | C62: $1,332,465.45 | D62: $8,848.95 | E62: $424,749.71 | F62: $7,217.52 | G62: $355,583.73 | H62: $1,631.43 | I62: $69,165.99 | J62: $1,330,834.01 | M62: 48 | N62: 2027-04-01 | O62: $1,332,465.45 | P62: $8,848.95 | Q62: $424,749.71 | R62: $7,217.52 | S62: $355,583.73 | T62: $1,631.43 | U62: $69,165.99 | V62: $1,330,834.01 | X62: 48 | Y62: 2027-04-01 | Z62: $1,332,465.45 | AA62: $8,848.95 | AB62: $424,749.71 | AC62: $7,217.52 | AD62: $355,583.73 | AE62: $1,631.43 | AF62: $69,165.99 | AG62: $1,330,834.01
A63: 49 | B63: 2027-05-01 | C63: $1,330,834.01 | D63: $8,848.95 | E63: $433,598.66 | F63: $7,208.68 | G63: $362,792.41 | H63: $1,640.27 | I63: $70,806.25 | J63: $1,329,193.75 | M63: 49 | N63: 2027-05-01 | O63: $1,330,834.01 | P63: $8,848.95 | Q63: $433,598.66 | R63: $7,208.68 | S63: $362,792.41 | T63: $1,640.27 | U63: $70,806.25 | V63: $1,329,193.75 | X63: 49 | Y63: 2027-05-01 | Z63: $1,330,834.01 | AA63: $8,848.95 | AB63: $433,598.66 | AC63: $7,208.68 | AD63: $362,792.41 | AE63: $1,640.27 | AF63: $70,806.25 | AG63: $1,329,193.75
A64: 50 | B64: 2027-06-01 | C64: $1,329,193.75 | D64: $8,848.95 | E64: $442,447.62 | F64: $7,199.80 | G64: $369,992.21 | H64: $1,649.15 | I64: $72,455.41 | J64: $1,327,544.59 | M64: 50 | N64: 2027-06-01 | O64: $1,329,193.75 | P64: $8,848.95 | Q64: $442,447.62 | R64: $7,199.80 | S64: $369,992.21 | T64: $1,649.15 | U64: $72,455.41 | V64: $1,327,544.59 | X64: 50 | Y64: 2027-06-01 | Z64: $1,329,193.75 | AA64: $8,848.95 | AB64: $442,447.62 | AC64: $7,199.80 | AD64: $369,992.21 | AE64: $1,649.15 | AF64: $72,455.41 | AG64: $1,327,544.59
A65: 51 | B65: 2027-07-01 | C65: $1,327,544.59 | D65: $8,848.95 | E65: $451,296.57 | F65: $7,190.87 | G65: $377,183.08 | H65: $1,658.09 | I65: $74,113.49 | J65: $1,325,886.51 | M65: 51 | N65: 2027-07-01 | O65: $1,327,544.59 | P65: $8,848.95 | Q65: $451,296.57 | R65: $7,190.87 | S65: $377,183.08 | T65: $1,658.09 | U65: $74,113.49 | V65: $1,325,886.51 | X65: 51 | Y65: 2027-07-01 | Z65: $1,327,544.59 | AA65: $8,848.95 | AB65: $451,296.57 | AC65: $7,190.87 | AD65: $377,183.08 | AE65: $1,658.09 | AF65: $74,113.49 | AG65: $1,325,886.51
A66: 52 | B66: 2027-08-01 | C66: $1,325,886.51 | D66: $8,848.95 | E66: $460,145.52 | F66: $7,181.89 | G66: $384,364.96 | H66: $1,667.07 | I66: $75,780.56 | J66: $1,324,219.44 | M66: 52 | N66: 2027-08-01 | O66: $1,325,886.51 | P66: $8,848.95 | Q66: $460,145.52 | R66: $7,181.89 | S66: $384,364.96 | T66: $1,667.07 | U66: $75,780.56 | V66: $1,324,219.44 | X66: 52 | Y66: 2027-08-01 | Z66: $1,325,886.51 | AA66: $8,848.95 | AB66: $460,145.52 | AC66: $7,181.89 | AD66: $384,364.96 | AE66: $1,667.07 | AF66: $75,780.56 | AG66: $1,324,219.44
A67: 53 | B67: 2027-09-01 | C67: $1,324,219.44 | D67: $8,848.95 | E67: $468,994.47 | F67: $7,172.86 | G67: $391,537.82 | H67: $1,676.10 | I67: $77,456.66 | J67: $1,322,543.34 | M67: 53 | N67: 2027-09-01 | O67: $1,324,219.44 | P67: $8,848.95 | Q67: $468,994.47 | R67: $7,172.86 | S67: $391,537.82 | T67: $1,676.10 | U67: $77,456.66 | V67: $1,322,543.34 | X67: 53 | Y67: 2027-09-01 | Z67: $1,324,219.44 | AA67: $8,848.95 | AB67: $468,994.47 | AC67: $7,172.86 | AD67: $391,537.82 | AE67: $1,676.10 | AF67: $77,456.66 | AG67: $1,322,543.34
A68: 54 | B68: 2027-10-01 | C68: $1,322,543.34 | D68: $8,848.95 | E68: $477,843.43 | F68: $7,163.78 | G68: $398,701.59 | H68: $1,685.18 | I68: $79,141.83 | J68: $1,320,858.17 | M68: 54 | N68: 2027-10-01 | O68: $1,322,543.34 | P68: $8,848.95 | Q68: $477,843.43 | R68: $7,163.78 | S68: $398,701.59 | T68: $1,685.18 | U68: $79,141.83 | V68: $1,320,858.17 | X68: 54 | Y68: 2027-10-01 | Z68: $1,322,543.34 | AA68: $8,848.95 | AB68: $477,843.43 | AC68: $7,163.78 | AD68: $398,701.59 | AE68: $1,685.18 | AF68: $79,141.83 | AG68: $1,320,858.17
A69: 55 | B69: 2027-11-01 | C69: $1,320,858.17 | D69: $8,848.95 | E69: $486,692.38 | F69: $7,154.65 | G69: $405,856.24 | H69: $1,694.30 | I69: $80,836.14 | J69: $1,319,163.86 | M69: 55 | N69: 2027-11-01 | O69: $1,320,858.17 | P69: $8,848.95 | Q69: $486,692.38 | R69: $7,154.65 | S69: $405,856.24 | T69: $1,694.30 | U69: $80,836.14 | V69: $1,319,163.86 | X69: 55 | Y69: 2027-11-01 | Z69: $1,320,858.17 | AA69: $8,848.95 | AB69: $486,692.38 | AC69: $7,154.65 | AD69: $405,856.24 | AE69: $1,694.30 | AF69: $80,836.14 | AG69: $1,319,163.86
A70: 56 | B70: 2027-12-01 | C70: $1,319,163.86 | D70: $8,848.95 | E70: $495,541.33 | F70: $7,145.47 | G70: $413,001.71 | H70: $1,703.48 | I70: $82,539.62 | J70: $1,317,460.38 | M70: 56 | N70: 2027-12-01 | O70: $1,319,163.86 | P70: $8,848.95 | Q70: $495,541.33 | R70: $7,145.47 | S70: $413,001.71 | T70: $1,703.48 | U70: $82,539.62 | V70: $1,317,460.38 | X70: 56 | Y70: 2027-12-01 | Z70: $1,319,163.86 | AA70: $8,848.95 | AB70: $495,541.33 | AC70: $7,145.47 | AD70: $413,001.71 | AE70: $1,703.48 | AF70: $82,539.62 | AG70: $1,317,460.38
A71: 57 | B71: 2028-01-01 | C71: $1,317,460.38 | D71: $8,848.95 | E71: $504,390.28 | F71: $7,136.24 | G71: $420,137.96 | H71: $1,712.71 | I71: $84,252.33 | J71: $1,315,747.67 | M71: 57 | N71: 2028-01-01 | O71: $1,317,460.38 | P71: $8,848.95 | Q71: $504,390.28 | R71: $7,136.24 | S71: $420,137.96 | T71: $1,712.71 | U71: $84,252.33 | V71: $1,315,747.67 | X71: 57 | Y71: 2028-01-01 | Z71: $1,317,460.38 | AA71: $8,848.95 | AB71: $504,390.28 | AC71: $7,136.24 | AD71: $420,137.96 | AE71: $1,712.71 | AF71: $84,252.33 | AG71: $1,315,747.67
A72: 58 | B72: 2028-02-01 | C72: $1,315,747.67 | D72: $8,848.95 | E72: $513,239.24 | F72: $7,126.97 | G72: $427,264.92 | H72: $1,721.99 | I72: $85,974.31 | J72: $1,314,025.69 | M72: 58 | N72: 2028-02-01 | O72: $1,315,747.67 | P72: $8,848.95 | Q72: $513,239.24 | R72: $7,126.97 | S72: $427,264.92 | T72: $1,721.99 | U72: $85,974.31 | V72: $1,314,025.69 | X72: 58 | Y72: 2028-02-01 | Z72: $1,315,747.67 | AA72: $8,848.95 | AB72: $513,239.24 | AC72: $7,126.97 | AD72: $427,264.92 | AE72: $1,721.99 | AF72: $85,974.31 | AG72: $1,314,025.69
A73: 59 | B73: 2028-03-01 | C73: $1,314,025.69 | D73: $8,848.95 | E73: $522,088.19 | F73: $7,117.64 | G73: $434,382.56 | H73: $1,731.31 | I73: $87,705.62 | J73: $1,312,294.38 | M73: 59 | N73: 2028-03-01 | O73: $1,314,025.69 | P73: $8,848.95 | Q73: $522,088.19 | R73: $7,117.64 | S73: $434,382.56 | T73: $1,731.31 | U73: $87,705.62 | V73: $1,312,294.38 | X73: 59 | Y73: 2028-03-01 | Z73: $1,314,025.69 | AA73: $8,848.95 | AB73: $522,088.19 | AC73: $7,117.64 | AD73: $434,382.56 | AE73: $1,731.31 | AF73: $87,705.62 | AG73: $1,312,294.38
A74: 60 | B74: 2028-04-01 | C74: $1,312,294.38 | D74: $8,848.95 | E74: $530,937.14 | F74: $7,108.26 | G74: $441,490.82 | H74: $1,740.69 | I74: $89,446.32 | J74: $1,310,553.68 | M74: 60 | N74: 2028-04-01 | O74: $1,312,294.38 | P74: $8,848.95 | Q74: $530,937.14 | R74: $7,108.26 | S74: $441,490.82 | T74: $1,740.69 | U74: $89,446.32 | V74: $1,310,553.68 | X74: 60 | Y74: 2028-04-01 | Z74: $1,312,294.38 | AA74: $8,848.95 | AB74: $530,937.14 | AC74: $7,108.26 | AD74: $441,490.82 | AE74: $1,740.69 | AF74: $89,446.32 | AG74: $1,310,553.68
A75: 61 | B75: 2028-05-01 | C75: $1,310,553.68 | D75: $8,848.95 | E75: $539,786.09 | F75: $7,098.83 | G75: $448,589.66 | H75: $1,750.12 | I75: $91,196.44 | J75: $1,308,803.56 | M75: 61 | N75: 2028-05-01 | O75: $1,310,553.68 | P75: $8,848.95 | Q75: $539,786.09 | R75: $7,098.83 | S75: $448,589.66 | T75: $1,750.12 | U75: $91,196.44 | V75: $1,308,803.56 | X75: 61 | Y75: 2028-05-01 | Z75: $1,310,553.68 | AA75: $8,848.95 | AB75: $539,786.09 | AC75: $7,098.83 | AD75: $448,589.66 | AE75: $1,750.12 | AF75: $91,196.44 | AG75: $1,308,803.56
A76: 62 | B76: 2028-06-01 | C76: $1,308,803.56 | D76: $8,848.95 | E76: $548,635.04 | F76: $7,089.35 | G76: $455,679.01 | H76: $1,759.60 | I76: $92,956.04 | J76: $1,307,043.96 | M76: 62 | N76: 2028-06-01 | O76: $1,308,803.56 | P76: $8,848.95 | Q76: $548,635.04 | R76: $7,089.35 | S76: $455,679.01 | T76: $1,759.60 | U76: $92,956.04 | V76: $1,307,043.96 | X76: 62 | Y76: 2028-06-01 | Z76: $1,308,803.56 | AA76: $8,848.95 | AB76: $548,635.04 | AC76: $7,089.35 | AD76: $455,679.01 | AE76: $1,759.60 | AF76: $92,956.04 | AG76: $1,307,043.96
A77: 63 | B77: 2028-07-01 | C77: $1,307,043.96 | D77: $8,848.95 | E77: $557,484.00 | F77: $7,079.82 | G77: $462,758.83 | H77: $1,769.13 | I77: $94,725.17 | J77: $1,305,274.83 | M77: 63 | N77: 2028-07-01 | O77: $1,307,043.96 | P77: $8,848.95 | Q77: $557,484.00 | R77: $7,079.82 | S77: $462,758.83 | T77: $1,769.13 | U77: $94,725.17 | V77: $1,305,274.83 | X77: 63 | Y77: 2028-07-01 | Z77: $1,307,043.96 | AA77: $8,848.95 | AB77: $557,484.00 | AC77: $7,079.82 | AD77: $462,758.83 | AE77: $1,769.13 | AF77: $94,725.17 | AG77: $1,305,274.83
A78: 64 | B78: 2028-08-01 | C78: $1,305,274.83 | D78: $8,848.95 | E78: $566,332.95 | F78: $7,070.24 | G78: $469,829.07 | H78: $1,778.71 | I78: $96,503.88 | J78: $1,303,496.12 | M78: 64 | N78: 2028-08-01 | O78: $1,305,274.83 | P78: $8,848.95 | Q78: $566,332.95 | R78: $7,070.24 | S78: $469,829.07 | T78: $1,778.71 | U78: $96,503.88 | V78: $1,303,496.12 | X78: 64 | Y78: 2028-08-01 | Z78: $1,305,274.83 | AA78: $8,848.95 | AB78: $566,332.95 | AC78: $7,070.24 | AD78: $469,829.07 | AE78: $1,778.71 | AF78: $96,503.88 | AG78: $1,303,496.12
A79: 65 | B79: 2028-09-01 | C79: $1,303,496.12 | D79: $8,848.95 | E79: $575,181.90 | F79: $7,060.60 | G79: $476,889.67 | H79: $1,788.35 | I79: $98,292.23 | J79: $1,301,707.77 | M79: 65 | N79: 2028-09-01 | O79: $1,303,496.12 | P79: $8,848.95 | Q79: $575,181.90 | R79: =$B$3*O79/12 -> $7,060.60 | S79: $476,889.67 | T79: =P79-R79 -> $1,788.35 | U79: $98,292.23 | V79: =O79-T79 -> $1,301,707.77 | X79: 65 | Y79: 2028-09-01 | Z79: $1,303,496.12 | AA79: $8,848.95 | AB79: $575,181.90 | AC79: =$B$3*Z79/12 -> $7,060.60 | AD79: $476,889.67 | AE79: =AA79-AC79 -> $1,788.35 | AF79: $98,292.23 | AG79: =Z79-AE79 -> $1,301,707.77
A80: =IF($O80<=0,"",M80) -> 66 | B80: =IF(ISNUMBER(A80),EOMONTH(B79,0)+1,"") -> 2028-10-01 | C80: =IF($O80<=0,"",O80) -> $1,301,707.77 | D80: =IF($O80<=0,"",P80) -> $8,848.95 | E80: =IF($O80<=0,"",Q80) -> $584,030.85 | F80: =IF($O80<=0,"",R80) -> $7,050.92 | G80: =IF($O80<=0,"",S80) -> $483,940.59 | H80: =IF($O80<=0,"",T80) -> $1,798.04 | I80: =IF($O80<=0,"",U80) -> $100,090.26 | J80: =IF($O80<=0,"",V80) -> $1,299,909.74 | M80: 66 | N80: 2028-10-01 | O80: =V79 -> $1,301,707.77 | P80: $8,848.95 | Q80: =Q79+P80 -> $584,030.85 | R80: $7,050.92 | S80: =S79+R80 -> $483,940.59 | T80: $1,798.04 | U80: =U79+T80 -> $100,090.26 | V80: $1,299,909.74 | X80: 66 | Y80: 2028-10-01 | Z80: =AG79 -> $1,301,707.77 | AA80: =E$2 -> $8,848.95 | AB80: $584,030.85 | AC80: $7,050.92 | AD80: $483,940.59 | AE80: $1,798.04 | AF80: $100,090.26 | AG80: $1,299,909.74
A81: 67 | B81: 2028-11-01 | C81: $1,299,909.74 | D81: $8,848.95 | E81: $592,879.81 | F81: $7,041.18 | G81: $490,981.77 | H81: $1,807.77 | I81: $101,898.04 | J81: $1,298,101.96 | M81: 67 | N81: =EOMONTH(N80,0)+1 -> 2028-11-01 | O81: $1,299,909.74 | P81: =IF(N81>B$9,MIN(MAX(E$2,F$2),O81*(1+B$3/12)),E$2) -> $8,848.95 | Q81: $592,879.81 | R81: $7,041.18 | S81: $490,981.77 | T81: $1,807.77 | U81: $101,898.04 | V81: $1,298,101.96 | X81: 67 | Y81: =EOMONTH(Y80,0)+1 -> 2028-11-01 | Z81: $1,299,909.74 | AA81: $8,848.95 | AB81: =AB80+AA81 -> $592,879.81 | AC81: $7,041.18 | AD81: =AD80+AC81 -> $490,981.77 | AE81: $1,807.77 | AF81: =AF80+AE81 -> $101,898.04 | AG81: $1,298,101.96
A82: 68 | B82: 2028-12-01 | C82: $1,298,101.96 | D82: $8,848.95 | E82: $601,728.76 | F82: $7,031.39 | G82: $498,013.15 | H82: $1,817.57 | I82: $103,715.60 | J82: $1,296,284.40 | M82: 68 | N82: 2028-12-01 | O82: $1,298,101.96 | P82: $8,848.95 | Q82: $601,728.76 | R82: $7,031.39 | S82: $498,013.15 | T82: $1,817.57 | U82: $103,715.60 | V82: $1,296,284.40 | X82: 68 | Y82: 2028-12-01 | Z82: $1,298,101.96 | AA82: $8,848.95 | AB82: $601,728.76 | AC82: $7,031.39 | AD82: $498,013.15 | AE82: $1,817.57 | AF82: $103,715.60 | AG82: $1,296,284.40
A83: 69 | B83: 2029-01-01 | C83: $1,296,284.40 | D83: $8,848.95 | E83: $610,577.71 | F83: $7,021.54 | G83: $505,034.69 | H83: $1,827.41 | I83: $105,543.02 | J83: $1,294,456.98 | M83: 69 | N83: 2029-01-01 | O83: $1,296,284.40 | P83: $8,848.95 | Q83: $610,577.71 | R83: $7,021.54 | S83: $505,034.69 | T83: $1,827.41 | U83: $105,543.02 | V83: $1,294,456.98 | X83: 69 | Y83: 2029-01-01 | Z83: $1,296,284.40 | AA83: $8,848.95 | AB83: $610,577.71 | AC83: $7,021.54 | AD83: $505,034.69 | AE83: $1,827.41 | AF83: $105,543.02 | AG83: $1,294,456.98
A84: 70 | B84: 2029-02-01 | C84: $1,294,456.98 | D84: $8,848.95 | E84: $619,426.66 | F84: $7,011.64 | G84: $512,046.34 | H84: $1,837.31 | I84: $107,380.33 | J84: $1,292,619.67 | M84: 70 | N84: 2029-02-01 | O84: $1,294,456.98 | P84: $8,848.95 | Q84: $619,426.66 | R84: $7,011.64 | S84: $512,046.34 | T84: $1,837.31 | U84: $107,380.33 | V84: $1,292,619.67 | X84: 70 | Y84: 2029-02-01 | Z84: $1,294,456.98 | AA84: $8,848.95 | AB84: $619,426.66 | AC84: $7,011.64 | AD84: $512,046.34 | AE84: $1,837.31 | AF84: $107,380.33 | AG84: $1,292,619.67
A85: 71 | B85: 2029-03-01 | C85: $1,292,619.67 | D85: $8,848.95 | E85: $628,275.62 | F85: $7,001.69 | G85: $519,048.03 | H85: $1,847.26 | I85: $109,227.59 | J85: $1,290,772.41 | M85: 71 | N85: 2029-03-01 | O85: $1,292,619.67 | P85: $8,848.95 | Q85: $628,275.62 | R85: $7,001.69 | S85: $519,048.03 | T85: $1,847.26 | U85: $109,227.59 | V85: $1,290,772.41 | X85: 71 | Y85: 2029-03-01 | Z85: $1,292,619.67 | AA85: $8,848.95 | AB85: $628,275.62 | AC85: $7,001.69 | AD85: $519,048.03 | AE85: $1,847.26 | AF85: $109,227.59 | AG85: $1,290,772.41
A86: 72 | B86: 2029-04-01 | C86: $1,290,772.41 | D86: $8,848.95 | E86: $637,124.57 | F86: $6,991.68 | G86: $526,039.71 | H86: $1,857.27 | I86: $111,084.86 | J86: $1,288,915.14 | M86: 72 | N86: 2029-04-01 | O86: $1,290,772.41 | P86: $8,848.95 | Q86: $637,124.57 | R86: $6,991.68 | S86: $526,039.71 | T86: $1,857.27 | U86: $111,084.86 | V86: $1,288,915.14 | X86: 72 | Y86: 2029-04-01 | Z86: $1,290,772.41 | AA86: $8,848.95 | AB86: $637,124.57 | AC86: $6,991.68 | AD86: $526,039.71 | AE86: $1,857.27 | AF86: $111,084.86 | AG86: $1,288,915.14
A87: 73 | B87: 2029-05-01 | C87: $1,288,915.14 | D87: $8,848.95 | E87: $645,973.52 | F87: $6,981.62 | G87: $533,021.33 | H87: $1,867.33 | I87: $112,952.19 | J87: $1,287,047.81 | M87: 73 | N87: 2029-05-01 | O87: $1,288,915.14 | P87: $8,848.95 | Q87: $645,973.52 | R87: $6,981.62 | S87: $533,021.33 | T87: $1,867.33 | U87: $112,952.19 | V87: $1,287,047.81 | X87: 73 | Y87: 2029-05-01 | Z87: $1,288,915.14 | AA87: $8,848.95 | AB87: $645,973.52 | AC87: $6,981.62 | AD87: $533,021.33 | AE87: $1,867.33 | AF87: $112,952.19 | AG87: $1,287,047.81
A88: 74 | B88: 2029-06-01 | C88: $1,287,047.81 | D88: $8,848.95 | E88: $654,822.47 | F88: $6,971.51 | G88: $539,992.84 | H88: $1,877.44 | I88: $114,829.63 | J88: $1,285,170.37 | M88: 74 | N88: 2029-06-01 | O88: $1,287,047.81 | P88: $8,848.95 | Q88: $654,822.47 | R88: $6,971.51 | S88: $539,992.84 | T88: $1,877.44 | U88: $114,829.63 | V88: $1,285,170.37 | X88: 74 | Y88: 2029-06-01 | Z88: $1,287,047.81 | AA88: $8,848.95 | AB88: $654,822.47 | AC88: $6,971.51 | AD88: $539,992.84 | AE88: $1,877.44 | AF88: $114,829.63 | AG88: $1,285,170.37
A89: 75 | B89: 2029-07-01 | C89: $1,285,170.37 | D89: $8,848.95 | E89: $663,671.42 | F89: $6,961.34 | G89: $546,954.18 | H89: $1,887.61 | I89: $116,717.24 | J89: $1,283,282.76 | M89: 75 | N89: 2029-07-01 | O89: $1,285,170.37 | P89: $8,848.95 | Q89: $663,671.42 | R89: $6,961.34 | S89: $546,954.18 | T89: $1,887.61 | U89: $116,717.24 | V89: $1,283,282.76 | X89: 75 | Y89: 2029-07-01 | Z89: $1,285,170.37 | AA89: $8,848.95 | AB89: $663,671.42 | AC89: $6,961.34 | AD89: $546,954.18 | AE89: $1,887.61 | AF89: $116,717.24 | AG89: $1,283,282.76
A90: 76 | B90: 2029-08-01 | C90: $1,283,282.76 | D90: $8,848.95 | E90: $672,520.38 | F90: $6,951.11 | G90: $553,905.30 | H90: $1,897.84 | I90: $118,615.08 | J90: $1,281,384.92 | M90: 76 | N90: 2029-08-01 | O90: $1,283,282.76 | P90: $8,848.95 | Q90: $672,520.38 | R90: $6,951.11 | S90: $553,905.30 | T90: $1,897.84 | U90: $118,615.08 | V90: $1,281,384.92 | X90: 76 | Y90: 2029-08-01 | Z90: $1,283,282.76 | AA90: $8,848.95 | AB90: $672,520.38 | AC90: $6,951.11 | AD90: $553,905.30 | AE90: $1,897.84 | AF90: $118,615.08 | AG90: $1,281,384.92
A91: 77 | B91: 2029-09-01 | C91: $1,281,384.92 | D91: $8,848.95 | E91: $681,369.33 | F91: $6,940.83 | G91: $560,846.13 | H91: $1,908.12 | I91: $120,523.20 | J91: $1,279,476.80 | M91: 77 | N91: 2029-09-01 | O91: $1,281,384.92 | P91: $8,848.95 | Q91: $681,369.33 | R91: $6,940.83 | S91: $560,846.13 | T91: $1,908.12 | U91: $120,523.20 | V91: $1,279,476.80 | X91: 77 | Y91: 2029-09-01 | Z91: $1,281,384.92 | AA91: $8,848.95 | AB91: $681,369.33 | AC91: $6,940.83 | AD91: $560,846.13 | AE91: $1,908.12 | AF91: $120,523.20 | AG91: $1,279,476.80
A92: 78 | B92: 2029-10-01 | C92: $1,279,476.80 | D92: $8,848.95 | E92: $690,218.28 | F92: $6,930.50 | G92: $567,776.63 | H92: $1,918.45 | I92: $122,441.65 | J92: $1,277,558.35 | M92: 78 | N92: 2029-10-01 | O92: $1,279,476.80 | P92: $8,848.95 | Q92: $690,218.28 | R92: $6,930.50 | S92: $567,776.63 | T92: $1,918.45 | U92: $122,441.65 | V92: $1,277,558.35 | X92: 78 | Y92: 2029-10-01 | Z92: $1,279,476.80 | AA92: $8,848.95 | AB92: $690,218.28 | AC92: $6,930.50 | AD92: $567,776.63 | AE92: $1,918.45 | AF92: $122,441.65 | AG92: $1,277,558.35
A93: 79 | B93: 2029-11-01 | C93: $1,277,558.35 | D93: $8,848.95 | E93: $699,067.23 | F93: $6,920.11 | G93: $574,696.74 | H93: $1,928.84 | I93: $124,370.49 | J93: $1,275,629.51 | M93: 79 | N93: 2029-11-01 | O93: $1,277,558.35 | P93: $8,848.95 | Q93: $699,067.23 | R93: $6,920.11 | S93: $574,696.74 | T93: $1,928.84 | U93: $124,370.49 | V93: $1,275,629.51 | X93: 79 | Y93: 2029-11-01 | Z93: $1,277,558.35 | AA93: $8,848.95 | AB93: $699,067.23 | AC93: $6,920.11 | AD93: $574,696.74 | AE93: $1,928.84 | AF93: $124,370.49 | AG93: $1,275,629.51
A94: 80 | B94: 2029-12-01 | C94: $1,275,629.51 | D94: $8,848.95 | E94: $707,916.19 | F94: $6,909.66 | G94: $581,606.40 | H94: $1,939.29 | I94: $126,309.79 | J94: $1,273,690.21 | M94: 80 | N94: 2029-12-01 | O94: $1,275,629.51 | P94: $8,848.95 | Q94: $707,916.19 | R94: $6,909.66 | S94: $581,606.40 | T94: $1,939.29 | U94: $126,309.79 | V94: $1,273,690.21 | X94: 80 | Y94: 2029-12-01 | Z94: $1,275,629.51 | AA94: $8,848.95 | AB94: $707,916.19 | AC94: $6,909.66 | AD94: $581,606.40 | AE94: $1,939.29 | AF94: $126,309.79 | AG94: $1,273,690.21
A95: 81 | B95: 2030-01-01 | C95: $1,273,690.21 | D95: $8,848.95 | E95: $716,765.14 | F95: $6,899.16 | G95: $588,505.55 | H95: $1,949.80 | I95: $128,259.58 | J95: $1,271,740.42 | M95: 81 | N95: 2030-01-01 | O95: $1,273,690.21 | P95: $8,848.95 | Q95: $716,765.14 | R95: $6,899.16 | S95: $588,505.55 | T95: $1,949.80 | U95: $128,259.58 | V95: $1,271,740.42 | X95: 81 | Y95: 2030-01-01 | Z95: $1,273,690.21 | AA95: $8,848.95 | AB95: $716,765.14 | AC95: $6,899.16 | AD95: $588,505.55 | AE95: $1,949.80 | AF95: $128,259.58 | AG95: $1,271,740.42
A96: 82 | B96: 2030-02-01 | C96: $1,271,740.42 | D96: $8,848.95 | E96: $725,614.09 | F96: $6,888.59 | G96: $595,394.15 | H96: $1,960.36 | I96: $130,219.94 | J96: $1,269,780.06 | M96: 82 | N96: 2030-02-01 | O96: $1,271,740.42 | P96: $8,848.95 | Q96: $725,614.09 | R96: $6,888.59 | S96: $595,394.15 | T96: $1,960.36 | U96: $130,219.94 | V96: $1,269,780.06 | X96: 82 | Y96: 2030-02-01 | Z96: $1,271,740.42 | AA96: $8,848.95 | AB96: $725,614.09 | AC96: $6,888.59 | AD96: $595,394.15 | AE96: $1,960.36 | AF96: $130,219.94 | AG96: $1,269,780.06
A97: 83 | B97: 2030-03-01 | C97: $1,269,780.06 | D97: $8,848.95 | E97: $734,463.04 | F97: $6,877.98 | G97: $602,272.12 | H97: $1,970.98 | I97: $132,190.92 | J97: $1,267,809.08 | M97: 83 | N97: 2030-03-01 | O97: $1,269,780.06 | P97: $8,848.95 | Q97: $734,463.04 | R97: $6,877.98 | S97: $602,272.12 | T97: $1,970.98 | U97: $132,190.92 | V97: $1,267,809.08 | X97: 83 | Y97: 2030-03-01 | Z97: $1,269,780.06 | AA97: $8,848.95 | AB97: $734,463.04 | AC97: $6,877.98 | AD97: $602,272.12 | AE97: $1,970.98 | AF97: $132,190.92 | AG97: $1,267,809.08
A98: 84 | B98: 2030-04-01 | C98: $1,267,809.08 | D98: $8,848.95 | E98: $743,312.00 | F98: $6,867.30 | G98: $609,139.42 | H98: $1,981.65 | I98: $134,172.57 | J98: $1,265,827.43 | M98: 84 | N98: 2030-04-01 | O98: $1,267,809.08 | P98: $8,848.95 | Q98: $743,312.00 | R98: $6,867.30 | S98: $609,139.42 | T98: $1,981.65 | U98: $134,172.57 | V98: $1,265,827.43 | X98: 84 | Y98: 2030-04-01 | Z98: $1,267,809.08 | AA98: $8,848.95 | AB98: $743,312.00 | AC98: $6,867.30 | AD98: $609,139.42 | AE98: $1,981.65 | AF98: $134,172.57 | AG98: $1,265,827.43
A99: 85 | B99: 2030-05-01 | C99: $1,265,827.43 | D99: $8,848.95 | E99: $752,160.95 | F99: $6,856.57 | G99: $615,995.99 | H99: $1,992.39 | I99: $136,164.96 | J99: $1,263,835.04 | M99: 85 | N99: 2030-05-01 | O99: $1,265,827.43 | P99: $8,848.95 | Q99: $752,160.95 | R99: $6,856.57 | S99: $615,995.99 | T99: $1,992.39 | U99: $136,164.96 | V99: $1,263,835.04 | X99: 85 | Y99: 2030-05-01 | Z99: $1,265,827.43 | AA99: $8,848.95 | AB99: $752,160.95 | AC99: $6,856.57 | AD99: $615,995.99 | AE99: $1,992.39 | AF99: $136,164.96 | AG99: $1,263,835.04
A100: 86 | B100: 2030-06-01 | C100: $1,263,835.04 | D100: $8,848.95 | E100: $761,009.90 | F100: $6,845.77 | G100: $622,841.76 | H100: $2,003.18 | I100: $138,168.14 | J100: $1,261,831.86 | M100: 86 | N100: 2030-06-01 | O100: $1,263,835.04 | P100: $8,848.95 | Q100: $761,009.90 | R100: $6,845.77 | S100: $622,841.76 | T100: $2,003.18 | U100: $138,168.14 | V100: $1,261,831.86 | X100: 86 | Y100: 2030-06-01 | Z100: $1,263,835.04 | AA100: $8,848.95 | AB100: $761,009.90 | AC100: $6,845.77 | AD100: $622,841.76 | AE100: $2,003.18 | AF100: $138,168.14 | AG100: $1,261,831.86
A101: 87 | B101: 2030-07-01 | C101: $1,261,831.86 | D101: $8,848.95 | E101: $769,858.85 | F101: $6,834.92 | G101: $629,676.68 | H101: $2,014.03 | I101: $140,182.17 | J101: $1,259,817.83 | M101: 87 | N101: 2030-07-01 | O101: $1,261,831.86 | P101: $8,848.95 | Q101: $769,858.85 | R101: $6,834.92 | S101: $629,676.68 | T101: $2,014.03 | U101: $140,182.17 | V101: $1,259,817.83 | X101: 87 | Y101: 2030-07-01 | Z101: $1,261,831.86 | AA101: $8,848.95 | AB101: $769,858.85 | AC101: $6,834.92 | AD101: $629,676.68 | AE101: $2,014.03 | AF101: $140,182.17 | AG101: $1,259,817.83
A102: 88 | B102: 2030-08-01 | C102: $1,259,817.83 | D102: $8,848.95 | E102: $778,707.80 | F102: $6,824.01 | G102: $636,500.70 | H102: $2,024.94 | I102: $142,207.11 | J102: $1,257,792.89 | M102: 88 | N102: 2030-08-01 | O102: $1,259,817.83 | P102: $8,848.95 | Q102: $778,707.80 | R102: $6,824.01 | S102: $636,500.70 | T102: $2,024.94 | U102: $142,207.11 | V102: $1,257,792.89 | X102: 88 | Y102: 2030-08-01 | Z102: $1,259,817.83 | AA102: $8,848.95 | AB102: $778,707.80 | AC102: $6,824.01 | AD102: $636,500.70 | AE102: $2,024.94 | AF102: $142,207.11 | AG102: $1,257,792.89
A103: 89 | B103: 2030-09-01 | C103: $1,257,792.89 | D103: $8,848.95 | E103: $787,556.76 | F103: $6,813.04 | G103: $643,313.74 | H103: $2,035.91 | I103: $144,243.02 | J103: $1,255,756.98 | M103: 89 | N103: 2030-09-01 | O103: $1,257,792.89 | P103: $8,848.95 | Q103: $787,556.76 | R103: $6,813.04 | S103: $643,313.74 | T103: $2,035.91 | U103: $144,243.02 | V103: $1,255,756.98 | X103: 89 | Y103: 2030-09-01 | Z103: $1,257,792.89 | AA103: $8,848.95 | AB103: $787,556.76 | AC103: $6,813.04 | AD103: $643,313.74 | AE103: $2,035.91 | AF103: $144,243.02 | AG103: $1,255,756.98
A104: 90 | B104: 2030-10-01 | C104: $1,255,756.98 | D104: $8,848.95 | E104: $796,405.71 | F104: $6,802.02 | G104: $650,115.76 | H104: $2,046.94 | I104: $146,289.95 | J104: $1,253,710.05 | M104: 90 | N104: 2030-10-01 | O104: $1,255,756.98 | P104: $8,848.95 | Q104: $796,405.71 | R104: $6,802.02 | S104: $650,115.76 | T104: $2,046.94 | U104: $146,289.95 | V104: $1,253,710.05 | X104: 90 | Y104: 2030-10-01 | Z104: $1,255,756.98 | AA104: $8,848.95 | AB104: $796,405.71 | AC104: $6,802.02 | AD104: $650,115.76 | AE104: $2,046.94 | AF104: $146,289.95 | AG104: $1,253,710.05
A105: 91 | B105: 2030-11-01 | C105: $1,253,710.05 | D105: $8,848.95 | E105: $805,254.66 | F105: $6,790.93 | G105: $656,906.69 | H105: $2,058.02 | I105: $148,347.97 | J105: $1,251,652.03 | M105: 91 | N105: 2030-11-01 | O105: $1,253,710.05 | P105: $8,848.95 | Q105: $805,254.66 | R105: $6,790.93 | S105: $656,906.69 | T105: $2,058.02 | U105: $148,347.97 | V105: $1,251,652.03 | X105: 91 | Y105: 2030-11-01 | Z105: $1,253,710.05 | AA105: $8,848.95 | AB105: $805,254.66 | AC105: $6,790.93 | AD105: $656,906.69 | AE105: $2,058.02 | AF105: $148,347.97 | AG105: $1,251,652.03
A106: 92 | B106: 2030-12-01 | C106: $1,251,652.03 | D106: $8,848.95 | E106: $814,103.61 | F106: $6,779.78 | G106: $663,686.47 | H106: $2,069.17 | I106: $150,417.14 | J106: $1,249,582.86 | M106: 92 | N106: 2030-12-01 | O106: $1,251,652.03 | P106: $8,848.95 | Q106: $814,103.61 | R106: $6,779.78 | S106: $663,686.47 | T106: $2,069.17 | U106: $150,417.14 | V106: $1,249,582.86 | X106: 92 | Y106: 2030-12-01 | Z106: $1,251,652.03 | AA106: $8,848.95 | AB106: $814,103.61 | AC106: $6,779.78 | AD106: $663,686.47 | AE106: $2,069.17 | AF106: $150,417.14 | AG106: $1,249,582.86
A107: 93 | B107: 2031-01-01 | C107: $1,249,582.86 | D107: $8,848.95 | E107: $822,952.57 | F107: $6,768.57 | G107: $670,455.04 | H107: $2,080.38 | I107: $152,497.52 | J107: $1,247,502.48 | M107: 93 | N107: 2031-01-01 | O107: $1,249,582.86 | P107: $8,848.95 | Q107: $822,952.57 | R107: $6,768.57 | S107: $670,455.04 | T107: $2,080.38 | U107: $152,497.52 | V107: $1,247,502.48 | X107: 93 | Y107: 2031-01-01 | Z107: $1,249,582.86 | AA107: $8,848.95 | AB107: $822,952.57 | AC107: $6,768.57 | AD107: $670,455.04 | AE107: $2,080.38 | AF107: $152,497.52 | AG107: $1,247,502.48
A108: 94 | B108: 2031-02-01 | C108: $1,247,502.48 | D108: $8,848.95 | E108: $831,801.52 | F108: $6,757.31 | G108: $677,212.35 | H108: $2,091.65 | I108: $154,589.17 | J108: $1,245,410.83 | M108: 94 | N108: 2031-02-01 | O108: $1,247,502.48 | P108: $8,848.95 | Q108: $831,801.52 | R108: $6,757.31 | S108: $677,212.35 | T108: $2,091.65 | U108: $154,589.17 | V108: $1,245,410.83 | X108: 94 | Y108: 2031-02-01 | Z108: $1,247,502.48 | AA108: $8,848.95 | AB108: $831,801.52 | AC108: $6,757.31 | AD108: $677,212.35 | AE108: $2,091.65 | AF108: $154,589.17 | AG108: $1,245,410.83
A109: 95 | B109: 2031-03-01 | C109: $1,245,410.83 | D109: $8,848.95 | E109: $840,650.47 | F109: $6,745.98 | G109: $683,958.32 | H109: $2,102.98 | I109: $156,692.15 | J109: $1,243,307.85 | M109: 95 | N109: 2031-03-01 | O109: $1,245,410.83 | P109: $8,848.95 | Q109: $840,650.47 | R109: $6,745.98 | S109: $683,958.32 | T109: $2,102.98 | U109: $156,692.15 | V109: $1,243,307.85 | X109: 95 | Y109: 2031-03-01 | Z109: $1,245,410.83 | AA109: $8,848.95 | AB109: $840,650.47 | AC109: $6,745.98 | AD109: $683,958.32 | AE109: $2,102.98 | AF109: $156,692.15 | AG109: $1,243,307.85
A110: 96 | B110: 2031-04-01 | C110: $1,243,307.85 | D110: $8,848.95 | E110: $849,499.42 | F110: $6,734.58 | G110: $690,692.91 | H110: $2,114.37 | I110: $158,806.52 | J110: $1,241,193.48 | M110: 96 | N110: 2031-04-01 | O110: $1,243,307.85 | P110: $8,848.95 | Q110: $849,499.42 | R110: $6,734.58 | S110: $690,692.91 | T110: $2,114.37 | U110: $158,806.52 | V110: $1,241,193.48 | X110: 96 | Y110: 2031-04-01 | Z110: $1,243,307.85 | AA110: $8,848.95 | AB110: $849,499.42 | AC110: $6,734.58 | AD110: $690,692.91 | AE110: $2,114.37 | AF110: $158,806.52 | AG110: $1,241,193.48
A111: 97 | B111: 2031-05-01 | C111: $1,241,193.48 | D111: $8,848.95 | E111: $858,348.38 | F111: $6,723.13 | G111: $697,416.04 | H111: $2,125.82 | I111: $160,932.34 | J111: $1,239,067.66 | M111: 97 | N111: 2031-05-01 | O111: $1,241,193.48 | P111: $8,848.95 | Q111: $858,348.38 | R111: $6,723.13 | S111: $697,416.04 | T111: $2,125.82 | U111: $160,932.34 | V111: $1,239,067.66 | X111: 97 | Y111: 2031-05-01 | Z111: $1,241,193.48 | AA111: $8,848.95 | AB111: $858,348.38 | AC111: $6,723.13 | AD111: $697,416.04 | AE111: $2,125.82 | AF111: $160,932.34 | AG111: $1,239,067.66
A112: 98 | B112: 2031-06-01 | C112: $1,239,067.66 | D112: $8,848.95 | E112: $867,197.33 | F112: $6,711.62 | G112: $704,127.66 | H112: $2,137.34 | I112: $163,069.67 | J112: $1,236,930.33 | M112: 98 | N112: 2031-06-01 | O112: $1,239,067.66 | P112: $8,848.95 | Q112: $867,197.33 | R112: $6,711.62 | S112: $704,127.66 | T112: $2,137.34 | U112: $163,069.67 | V112: $1,236,930.33 | X112: 98 | Y112: 2031-06-01 | Z112: $1,239,067.66 | AA112: $8,848.95 | AB112: $867,197.33 | AC112: $6,711.62 | AD112: $704,127.66 | AE112: $2,137.34 | AF112: $163,069.67 | AG112: $1,236,930.33
A113: 99 | B113: 2031-07-01 | C113: $1,236,930.33 | D113: $8,848.95 | E113: $876,046.28 | F113: $6,700.04 | G113: $710,827.70 | H113: $2,148.91 | I113: $165,218.59 | J113: $1,234,781.41 | M113: 99 | N113: 2031-07-01 | O113: $1,236,930.33 | P113: $8,848.95 | Q113: $876,046.28 | R113: $6,700.04 | S113: $710,827.70 | T113: $2,148.91 | U113: $165,218.59 | V113: $1,234,781.41 | X113: 99 | Y113: 2031-07-01 | Z113: $1,236,930.33 | AA113: $8,848.95 | AB113: $876,046.28 | AC113: $6,700.04 | AD113: $710,827.70 | AE113: $2,148.91 | AF113: $165,218.59 | AG113: $1,234,781.41
A114: 100 | B114: 2031-08-01 | C114: $1,234,781.41 | D114: $8,848.95 | E114: $884,895.23 | F114: $6,688.40 | G114: $717,516.09 | H114: $2,160.55 | I114: $167,379.14 | J114: $1,232,620.86 | M114: 100 | N114: 2031-08-01 | O114: $1,234,781.41 | P114: $8,848.95 | Q114: $884,895.23 | R114: $6,688.40 | S114: $717,516.09 | T114: $2,160.55 | U114: $167,379.14 | V114: $1,232,620.86 | X114: 100 | Y114: 2031-08-01 | Z114: $1,234,781.41 | AA114: $8,848.95 | AB114: $884,895.23 | AC114: $6,688.40 | AD114: $717,516.09 | AE114: $2,160.55 | AF114: $167,379.14 | AG114: $1,232,620.86
A115: 101 | B115: 2031-09-01 | C115: $1,232,620.86 | D115: $8,848.95 | E115: $893,744.19 | F115: $6,676.70 | G115: $724,192.79 | H115: $2,172.26 | I115: $169,551.39 | J115: $1,230,448.61 | M115: 101 | N115: 2031-09-01 | O115: $1,232,620.86 | P115: $8,848.95 | Q115: $893,744.19 | R115: $6,676.70 | S115: $724,192.79 | T115: $2,172.26 | U115: $169,551.39 | V115: $1,230,448.61 | X115: 101 | Y115: 2031-09-01 | Z115: $1,232,620.86 | AA115: $8,848.95 | AB115: $893,744.19 | AC115: $6,676.70 | AD115: $724,192.79 | AE115: $2,172.26 | AF115: $169,551.39 | AG115: $1,230,448.61
A116: 102 | B116: 2031-10-01 | C116: $1,230,448.61 | D116: $8,848.95 | E116: $902,593.14 | F116: $6,664.93 | G116: $730,857.72 | H116: $2,184.02 | I116: $171,735.42 | J116: $1,228,264.58 | M116: 102 | N116: 2031-10-01 | O116: $1,230,448.61 | P116: $8,848.95 | Q116: $902,593.14 | R116: $6,664.93 | S116: $730,857.72 | T116: $2,184.02 | U116: $171,735.42 | V116: $1,228,264.58 | X116: 102 | Y116: 2031-10-01 | Z116: $1,230,448.61 | AA116: $8,848.95 | AB116: $902,593.14 | AC116: $6,664.93 | AD116: $730,857.72 | AE116: $2,184.02 | AF116: $171,735.42 | AG116: $1,228,264.58
A117: 103 | B117: 2031-11-01 | C117: $1,228,264.58 | D117: $8,848.95 | E117: $911,442.09 | F117: $6,653.10 | G117: $737,510.82 | H117: $2,195.85 | I117: $173,931.27 | J117: $1,226,068.73 | M117: 103 | N117: 2031-11-01 | O117: $1,228,264.58 | P117: $8,848.95 | Q117: $911,442.09 | R117: $6,653.10 | S117: $737,510.82 | T117: $2,195.85 | U117: $173,931.27 | V117: $1,226,068.73 | X117: 103 | Y117: 2031-11-01 | Z117: $1,228,264.58 | AA117: $8,848.95 | AB117: $911,442.09 | AC117: $6,653.10 | AD117: $737,510.82 | AE117: $2,195.85 | AF117: $173,931.27 | AG117: $1,226,068.73
A118: 104 | B118: 2031-12-01 | C118: $1,226,068.73 | D118: $8,848.95 | E118: $920,291.04 | F118: $6,641.21 | G118: $744,152.03 | H118: $2,207.75 | I118: $176,139.02 | J118: $1,223,860.98 | M118: 104 | N118: 2031-12-01 | O118: $1,226,068.73 | P118: $8,848.95 | Q118: $920,291.04 | R118: $6,641.21 | S118: $744,152.03 | T118: $2,207.75 | U118: $176,139.02 | V118: $1,223,860.98 | X118: 104 | Y118: 2031-12-01 | Z118: $1,226,068.73 | AA118: $8,848.95 | AB118: $920,291.04 | AC118: $6,641.21 | AD118: $744,152.03 | AE118: $2,207.75 | AF118: $176,139.02 | AG118: $1,223,860.98
A119: 105 | B119: 2032-01-01 | C119: $1,223,860.98 | D119: $8,848.95 | E119: $929,139.99 | F119: $6,629.25 | G119: $750,781.27 | H119: $2,219.71 | I119: $178,358.72 | J119: $1,221,641.28 | M119: 105 | N119: 2032-01-01 | O119: $1,223,860.98 | P119: $8,848.95 | Q119: $929,139.99 | R119: $6,629.25 | S119: $750,781.27 | T119: $2,219.71 | U119: $178,358.72 | V119: $1,221,641.28 | X119: 105 | Y119: 2032-01-01 | Z119: $1,223,860.98 | AA119: $8,848.95 | AB119: $929,139.99 | AC119: $6,629.25 | AD119: $750,781.27 | AE119: $2,219.71 | AF119: $178,358.72 | AG119: $1,221,641.28
A120: 106 | B120: 2032-02-01 | C120: $1,221,641.28 | D120: $8,848.95 | E120: $937,988.95 | F120: $6,617.22 | G120: $757,398.50 | H120: $2,231.73 | I120: $180,590.45 | J120: $1,219,409.55 | M120: 106 | N120: 2032-02-01 | O120: $1,221,641.28 | P120: $8,848.95 | Q120: $937,988.95 | R120: $6,617.22 | S120: $757,398.50 | T120: $2,231.73 | U120: $180,590.45 | V120: $1,219,409.55 | X120: 106 | Y120: 2032-02-01 | Z120: $1,221,641.28 | AA120: $8,848.95 | AB120: $937,988.95 | AC120: $6,617.22 | AD120: $757,398.50 | AE120: $2,231.73 | AF120: $180,590.45 | AG120: $1,219,409.55
A121: 107 | B121: 2032-03-01 | C121: $1,219,409.55 | D121: $8,848.95 | E121: $946,837.90 | F121: $6,605.14 | G121: $764,003.63 | H121: $2,243.82 | I121: $182,834.27 | J121: $1,217,165.73 | M121: 107 | N121: 2032-03-01 | O121: $1,219,409.55 | P121: $8,848.95 | Q121: $946,837.90 | R121: $6,605.14 | S121: $764,003.63 | T121: $2,243.82 | U121: $182,834.27 | V121: $1,217,165.73 | X121: 107 | Y121: 2032-03-01 | Z121: $1,219,409.55 | AA121: $8,848.95 | AB121: $946,837.90 | AC121: $6,605.14 | AD121: $764,003.63 | AE121: $2,243.82 | AF121: $182,834.27 | AG121: $1,217,165.73
A122: 108 | B122: 2032-04-01 | C122: $1,217,165.73 | D122: $8,848.95 | E122: $955,686.85 | F122: $6,592.98 | G122: $770,596.61 | H122: $2,255.97 | I122: $185,090.24 | J122: $1,214,909.76 | M122: 108 | N122: 2032-04-01 | O122: $1,217,165.73 | P122: $8,848.95 | Q122: $955,686.85 | R122: $6,592.98 | S122: $770,596.61 | T122: $2,255.97 | U122: $185,090.24 | V122: $1,214,909.76 | X122: 108 | Y122: 2032-04-01 | Z122: $1,217,165.73 | AA122: $8,848.95 | AB122: $955,686.85 | AC122: $6,592.98 | AD122: $770,596.61 | AE122: $2,255.97 | AF122: $185,090.24 | AG122: $1,214,909.76
A123: 109 | B123: 2032-05-01 | C123: $1,214,909.76 | D123: $8,848.95 | E123: $964,535.80 | F123: $6,580.76 | G123: $777,177.37 | H123: $2,268.19 | I123: $187,358.43 | J123: $1,212,641.57 | M123: 109 | N123: 2032-05-01 | O123: $1,214,909.76 | P123: $8,848.95 | Q123: $964,535.80 | R123: $6,580.76 | S123: $777,177.37 | T123: $2,268.19 | U123: $187,358.43 | V123: $1,212,641.57 | X123: 109 | Y123: 2032-05-01 | Z123: $1,214,909.76 | AA123: $8,848.95 | AB123: $964,535.80 | AC123: $6,580.76 | AD123: $777,177.37 | AE123: $2,268.19 | AF123: $187,358.43 | AG123: $1,212,641.57
A124: 110 | B124: 2032-06-01 | C124: $1,212,641.57 | D124: $8,848.95 | E124: $973,384.76 | F124: $6,568.48 | G124: $783,745.85 | H124: $2,280.48 | I124: $189,638.91 | J124: $1,210,361.09 | M124: 110 | N124: 2032-06-01 | O124: $1,212,641.57 | P124: $8,848.95 | Q124: $973,384.76 | R124: $6,568.48 | S124: $783,745.85 | T124: $2,280.48 | U124: $189,638.91 | V124: $1,210,361.09 | X124: 110 | Y124: 2032-06-01 | Z124: $1,212,641.57 | AA124: $8,848.95 | AB124: $973,384.76 | AC124: $6,568.48 | AD124: $783,745.85 | AE124: $2,280.48 | AF124: $189,638.91 | AG124: $1,210,361.09
A125: 111 | B125: 2032-07-01 | C125: $1,210,361.09 | D125: $8,848.95 | E125: $982,233.71 | F125: $6,556.12 | G125: $790,301.97 | H125: $2,292.83 | I125: $191,931.74 | J125: $1,208,068.26 | M125: 111 | N125: 2032-07-01 | O125: $1,210,361.09 | P125: $8,848.95 | Q125: $982,233.71 | R125: $6,556.12 | S125: $790,301.97 | T125: $2,292.83 | U125: $191,931.74 | V125: $1,208,068.26 | X125: 111 | Y125: 2032-07-01 | Z125: $1,210,361.09 | AA125: $8,848.95 | AB125: $982,233.71 | AC125: $6,556.12 | AD125: $790,301.97 | AE125: $2,292.83 | AF125: $191,931.74 | AG125: $1,208,068.26
A126: 112 | B126: 2032-08-01 | C126: $1,208,068.26 | D126: $8,848.95 | E126: $991,082.66 | F126: $6,543.70 | G126: $796,845.68 | H126: $2,305.25 | I126: $194,236.99 | J126: $1,205,763.01 | M126: 112 | N126: 2032-08-01 | O126: $1,208,068.26 | P126: $8,848.95 | Q126: $991,082.66 | R126: $6,543.70 | S126: $796,845.68 | T126: $2,305.25 | U126: $194,236.99 | V126: $1,205,763.01 | X126: 112 | Y126: 2032-08-01 | Z126: $1,208,068.26 | AA126: $8,848.95 | AB126: $991,082.66 | AC126: $6,543.70 | AD126: $796,845.68 | AE126: $2,305.25 | AF126: $194,236.99 | AG126: $1,205,763.01
A127: 113 | B127: 2032-09-01 | C127: $1,205,763.01 | D127: $8,848.95 | E127: $999,931.61 | F127: $6,531.22 | G127: $803,376.89 | H127: $2,317.74 | I127: $196,554.72 | J127: $1,203,445.28 | M127: 113 | N127: 2032-09-01 | O127: $1,205,763.01 | P127: $8,848.95 | Q127: $999,931.61 | R127: $6,531.22 | S127: $803,376.89 | T127: $2,317.74 | U127: $196,554.72 | V127: $1,203,445.28 | X127: 113 | Y127: 2032-09-01 | Z127: $1,205,763.01 | AA127: $8,848.95 | AB127: $999,931.61 | AC127: $6,531.22 | AD127: $803,376.89 | AE127: $2,317.74 | AF127: $196,554.72 | AG127: $1,203,445.28
A128: 114 | B128: 2032-10-01 | C128: $1,203,445.28 | D128: $8,848.95 | E128: $1,008,780.57 | F128: $6,518.66 | G128: $809,895.55 | H128: $2,330.29 | I128: $198,885.01 | J128: $1,201,114.99 | M128: 114 | N128: 2032-10-01 | O128: $1,203,445.28 | P128: $8,848.95 | Q128: $1,008,780.57 | R128: $6,518.66 | S128: $809,895.55 | T128: $2,330.29 | U128: $198,885.01 | V128: $1,201,114.99 | X128: 114 | Y128: 2032-10-01 | Z128: $1,203,445.28 | AA128: $8,848.95 | AB128: $1,008,780.57 | AC128: $6,518.66 | AD128: $809,895.55 | AE128: $2,330.29 | AF128: $198,885.01 | AG128: $1,201,114.99
A129: 115 | B129: 2032-11-01 | C129: $1,201,114.99 | D129: $8,848.95 | E129: $1,017,629.52 | F129: $6,506.04 | G129: $816,401.59 | H129: $2,342.91 | I129: $201,227.92 | J129: $1,198,772.08 | M129: 115 | N129: 2032-11-01 | O129: $1,201,114.99 | P129: $8,848.95 | Q129: $1,017,629.52 | R129: $6,506.04 | S129: $816,401.59 | T129: $2,342.91 | U129: $201,227.92 | V129: $1,198,772.08 | X129: 115 | Y129: 2032-11-01 | Z129: $1,201,114.99 | AA129: $8,848.95 | AB129: $1,017,629.52 | AC129: $6,506.04 | AD129: $816,401.59 | AE129: $2,342.91 | AF129: $201,227.92 | AG129: $1,198,772.08
A130: 116 | B130: 2032-12-01 | C130: $1,198,772.08 | D130: $8,848.95 | E130: $1,026,478.47 | F130: $6,493.35 | G130: $822,894.94 | H130: $2,355.60 | I130: $203,583.53 | J130: $1,196,416.47 | M130: 116 | N130: 2032-12-01 | O130: $1,198,772.08 | P130: $8,848.95 | Q130: $1,026,478.47 | R130: $6,493.35 | S130: $822,894.94 | T130: $2,355.60 | U130: $203,583.53 | V130: $1,196,416.47 | X130: 116 | Y130: 2032-12-01 | Z130: $1,198,772.08 | AA130: $8,848.95 | AB130: $1,026,478.47 | AC130: $6,493.35 | AD130: $822,894.94 | AE130: $2,355.60 | AF130: $203,583.53 | AG130: $1,196,416.47
A131: 117 | B131: 2033-01-01 | C131: $1,196,416.47 | D131: $8,848.95 | E131: $1,035,327.42 | F131: $6,480.59 | G131: $829,375.53 | H131: $2,368.36 | I131: $205,951.89 | J131: $1,194,048.11 | M131: 117 | N131: 2033-01-01 | O131: $1,196,416.47 | P131: $8,848.95 | Q131: $1,035,327.42 | R131: $6,480.59 | S131: $829,375.53 | T131: $2,368.36 | U131: $205,951.89 | V131: $1,194,048.11 | X131: 117 | Y131: 2033-01-01 | Z131: $1,196,416.47 | AA131: $8,848.95 | AB131: $1,035,327.42 | AC131: $6,480.59 | AD131: $829,375.53 | AE131: $2,368.36 | AF131: $205,951.89 | AG131: $1,194,048.11
A132: 118 | B132: 2033-02-01 | C132: $1,194,048.11 | D132: $8,848.95 | E132: $1,044,176.37 | F132: $6,467.76 | G132: $835,843.29 | H132: $2,381.19 | I132: $208,333.08 | J132: $1,191,666.92 | M132: 118 | N132: 2033-02-01 | O132: $1,194,048.11 | P132: $8,848.95 | Q132: $1,044,176.37 | R132: $6,467.76 | S132: $835,843.29 | T132: $2,381.19 | U132: $208,333.08 | V132: $1,191,666.92 | X132: 118 | Y132: 2033-02-01 | Z132: $1,194,048.11 | AA132: $8,848.95 | AB132: $1,044,176.37 | AC132: $6,467.76 | AD132: $835,843.29 | AE132: $2,381.19 | AF132: $208,333.08 | AG132: $1,191,666.92
A133: 119 | B133: 2033-03-01 | C133: $1,191,666.92 | D133: $8,848.95 | E133: $1,053,025.33 | F133: $6,454.86 | G133: $842,298.15 | H133: $2,394.09 | I133: $210,727.17 | J133: $1,189,272.83 | M133: 119 | N133: 2033-03-01 | O133: $1,191,666.92 | P133: $8,848.95 | Q133: $1,053,025.33 | R133: $6,454.86 | S133: $842,298.15 | T133: $2,394.09 | U133: $210,727.17 | V133: $1,189,272.83 | X133: 119 | Y133: 2033-03-01 | Z133: $1,191,666.92 | AA133: $8,848.95 | AB133: $1,053,025.33 | AC133: $6,454.86 | AD133: $842,298.15 | AE133: $2,394.09 | AF133: $210,727.17 | AG133: $1,189,272.83
A134: 120 | B134: 2033-04-01 | C134: $1,189,272.83 | D134: $8,848.95 | E134: $1,061,874.28 | F134: $6,441.89 | G134: $848,740.05 | H134: $2,407.06 | I134: $213,134.23 | J134: $1,186,865.77 | M134: 120 | N134: 2033-04-01 | O134: $1,189,272.83 | P134: $8,848.95 | Q134: $1,061,874.28 | R134: $6,441.89 | S134: $848,740.05 | T134: $2,407.06 | U134: $213,134.23 | V134: $1,186,865.77 | X134: 120 | Y134: 2033-04-01 | Z134: $1,189,272.83 | AA134: $8,848.95 | AB134: $1,061,874.28 | AC134: $6,441.89 | AD134: $848,740.05 | AE134: $2,407.06 | AF134: $213,134.23 | AG134: $1,186,865.77
A135: 121 | B135: 2033-05-01 | C135: $1,186,865.77 | D135: $8,848.95 | E135: $1,070,723.23 | F135: $6,428.86 | G135: $855,168.90 | H135: $2,420.10 | I135: $215,554.33 | J135: $1,184,445.67 | M135: 121 | N135: 2033-05-01 | O135: $1,186,865.77 | P135: $8,848.95 | Q135: $1,070,723.23 | R135: $6,428.86 | S135: $855,168.90 | T135: $2,420.10 | U135: $215,554.33 | V135: $1,184,445.67 | X135: 121 | Y135: 2033-05-01 | Z135: $1,186,865.77 | AA135: $8,848.95 | AB135: $1,070,723.23 | AC135: $6,428.86 | AD135: $855,168.90 | AE135: $2,420.10 | AF135: $215,554.33 | AG135: $1,184,445.67
A136: 122 | B136: 2033-06-01 | C136: $1,184,445.67 | D136: $8,848.95 | E136: $1,079,572.18 | F136: $6,415.75 | G136: $861,584.65 | H136: $2,433.20 | I136: $217,987.53 | J136: $1,182,012.47 | M136: 122 | N136: 2033-06-01 | O136: $1,184,445.67 | P136: $8,848.95 | Q136: $1,079,572.18 | R136: $6,415.75 | S136: $861,584.65 | T136: $2,433.20 | U136: $217,987.53 | V136: $1,182,012.47 | X136: 122 | Y136: 2033-06-01 | Z136: $1,184,445.67 | AA136: $8,848.95 | AB136: $1,079,572.18 | AC136: $6,415.75 | AD136: $861,584.65 | AE136: $2,433.20 | AF136: $217,987.53 | AG136: $1,182,012.47
A137: 123 | B137: 2033-07-01 | C137: $1,182,012.47 | D137: $8,848.95 | E137: $1,088,421.14 | F137: $6,402.57 | G137: $867,987.22 | H137: $2,446.38 | I137: $220,433.92 | J137: $1,179,566.08 | M137: 123 | N137: 2033-07-01 | O137: $1,182,012.47 | P137: $8,848.95 | Q137: $1,088,421.14 | R137: $6,402.57 | S137: $867,987.22 | T137: $2,446.38 | U137: $220,433.92 | V137: $1,179,566.08 | X137: 123 | Y137: 2033-07-01 | Z137: $1,182,012.47 | AA137: $8,848.95 | AB137: $1,088,421.14 | AC137: $6,402.57 | AD137: $867,987.22 | AE137: $2,446.38 | AF137: $220,433.92 | AG137: $1,179,566.08
A138: 124 | B138: 2033-08-01 | C138: $1,179,566.08 | D138: $8,848.95 | E138: $1,097,270.09 | F138: $6,389.32 | G138: $874,376.54 | H138: $2,459.64 | I138: $222,893.55 | J138: $1,177,106.45 | M138: 124 | N138: 2033-08-01 | O138: $1,179,566.08 | P138: $8,848.95 | Q138: $1,097,270.09 | R138: $6,389.32 | S138: $874,376.54 | T138: $2,459.64 | U138: $222,893.55 | V138: $1,177,106.45 | X138: 124 | Y138: 2033-08-01 | Z138: $1,179,566.08 | AA138: $8,848.95 | AB138: $1,097,270.09 | AC138: $6,389.32 | AD138: $874,376.54 | AE138: $2,459.64 | AF138: $222,893.55 | AG138: $1,177,106.45
A139: 125 | B139: 2033-09-01 | C139: $1,177,106.45 | D139: $8,848.95 | E139: $1,106,119.04 | F139: $6,375.99 | G139: $880,752.53 | H139: $2,472.96 | I139: $225,366.51 | J139: $1,174,633.49 | M139: 125 | N139: 2033-09-01 | O139: $1,177,106.45 | P139: $8,848.95 | Q139: $1,106,119.04 | R139: $6,375.99 | S139: $880,752.53 | T139: $2,472.96 | U139: $225,366.51 | V139: $1,174,633.49 | X139: 125 | Y139: 2033-09-01 | Z139: $1,177,106.45 | AA139: $8,848.95 | AB139: $1,106,119.04 | AC139: $6,375.99 | AD139: $880,752.53 | AE139: $2,472.96 | AF139: $225,366.51 | AG139: $1,174,633.49
A140: 126 | B140: 2033-10-01 | C140: $1,174,633.49 | D140: $8,848.95 | E140: $1,114,967.99 | F140: $6,362.60 | G140: $887,115.13 | H140: $2,486.35 | I140: $227,852.87 | J140: $1,172,147.13 | M140: 126 | N140: 2033-10-01 | O140: $1,174,633.49 | P140: $8,848.95 | Q140: $1,114,967.99 | R140: $6,362.60 | S140: $887,115.13 | T140: $2,486.35 | U140: $227,852.87 | V140: $1,172,147.13 | X140: 126 | Y140: 2033-10-01 | Z140: $1,174,633.49 | AA140: $8,848.95 | AB140: $1,114,967.99 | AC140: $6,362.60 | AD140: $887,115.13 | AE140: $2,486.35 | AF140: $227,852.87 | AG140: $1,172,147.13
A141: 127 | B141: 2033-11-01 | C141: $1,172,147.13 | D141: $8,848.95 | E141: $1,123,816.95 | F141: $6,349.13 | G141: $893,464.26 | H141: $2,499.82 | I141: $230,352.69 | J141: $1,169,647.31 | M141: 127 | N141: 2033-11-01 | O141: $1,172,147.13 | P141: $8,848.95 | Q141: $1,123,816.95 | R141: $6,349.13 | S141: $893,464.26 | T141: $2,499.82 | U141: $230,352.69 | V141: $1,169,647.31 | X141: 127 | Y141: 2033-11-01 | Z141: $1,172,147.13 | AA141: $8,848.95 | AB141: $1,123,816.95 | AC141: $6,349.13 | AD141: $893,464.26 | AE141: $2,499.82 | AF141: $230,352.69 | AG141: $1,169,647.31
A142: 128 | B142: 2033-12-01 | C142: $1,169,647.31 | D142: $8,848.95 | E142: $1,132,665.90 | F142: $6,335.59 | G142: $899,799.85 | H142: $2,513.36 | I142: $232,866.05 | J142: $1,167,133.95 | M142: 128 | N142: 2033-12-01 | O142: $1,169,647.31 | P142: $8,848.95 | Q142: $1,132,665.90 | R142: $6,335.59 | S142: $899,799.85 | T142: $2,513.36 | U142: $232,866.05 | V142: $1,167,133.95 | X142: 128 | Y142: 2033-12-01 | Z142: $1,169,647.31 | AA142: $8,848.95 | AB142: $1,132,665.90 | AC142: $6,335.59 | AD142: $899,799.85 | AE142: $2,513.36 | AF142: $232,866.05 | AG142: $1,167,133.95
A143: 129 | B143: 2034-01-01 | C143: $1,167,133.95 | D143: $8,848.95 | E143: $1,141,514.85 | F143: $6,321.98 | G143: $906,121.82 | H143: $2,526.98 | I143: $235,393.03 | J143: $1,164,606.97 | M143: 129 | N143: 2034-01-01 | O143: $1,167,133.95 | P143: $8,848.95 | Q143: $1,141,514.85 | R143: =$B$3*O143/12 -> $6,321.98 | S143: $906,121.82 | T143: =P143-R143 -> $2,526.98 | U143: $235,393.03 | V143: =O143-T143 -> $1,164,606.97 | X143: 129 | Y143: 2034-01-01 | Z143: $1,167,133.95 | AA143: $8,848.95 | AB143: $1,141,514.85 | AC143: =$B$3*Z143/12 -> $6,321.98 | AD143: $906,121.82 | AE143: =AA143-AC143 -> $2,526.98 | AF143: $235,393.03 | AG143: =Z143-AE143 -> $1,164,606.97
A144: =IF($O144<=0,"",M144) -> 130 | B144: =IF(ISNUMBER(A144),EOMONTH(B143,0)+1,"") -> 2034-02-01 | C144: =IF($O144<=0,"",O144) -> $1,164,606.97 | D144: =IF($O144<=0,"",P144) -> $8,848.95 | E144: =IF($O144<=0,"",Q144) -> $1,150,363.80 | F144: =IF($O144<=0,"",R144) -> $6,308.29 | G144: =IF($O144<=0,"",S144) -> $912,430.11 | H144: =IF($O144<=0,"",T144) -> $2,540.66 | I144: =IF($O144<=0,"",U144) -> $237,933.69 | J144: =IF($O144<=0,"",V144) -> $1,162,066.31 | M144: 130 | N144: 2034-02-01 | O144: =V143 -> $1,164,606.97 | P144: $8,848.95 | Q144: =Q143+P144 -> $1,150,363.80 | R144: $6,308.29 | S144: =S143+R144 -> $912,430.11 | T144: $2,540.66 | U144: =U143+T144 -> $237,933.69 | V144: $1,162,066.31 | X144: 130 | Y144: 2034-02-01 | Z144: =AG143 -> $1,164,606.97 | AA144: =E$2 -> $8,848.95 | AB144: $1,150,363.80 | AC144: $6,308.29 | AD144: $912,430.11 | AE144: $2,540.66 | AF144: $237,933.69 | AG144: $1,162,066.31
A145: 131 | B145: 2034-03-01 | C145: $1,162,066.31 | D145: $8,848.95 | E145: $1,159,212.76 | F145: $6,294.53 | G145: $918,724.64 | H145: $2,554.43 | I145: $240,488.12 | J145: $1,159,511.88 | M145: 131 | N145: =EOMONTH(N144,0)+1 -> 2034-03-01 | O145: $1,162,066.31 | P145: =IF(N145>B$9,MIN(MAX(E$2,F$2),O145*(1+B$3/12)),E$2) -> $8,848.95 | Q145: $1,159,212.76 | R145: $6,294.53 | S145: $918,724.64 | T145: $2,554.43 | U145: $240,488.12 | V145: $1,159,511.88 | X145: 131 | Y145: =EOMONTH(Y144,0)+1 -> 2034-03-01 | Z145: $1,162,066.31 | AA145: $8,848.95 | AB145: =AB144+AA145 -> $1,159,212.76 | AC145: $6,294.53 | AD145: =AD144+AC145 -> $918,724.64 | AE145: $2,554.43 | AF145: =AF144+AE145 -> $240,488.12 | AG145: $1,159,511.88
A146: 132 | B146: 2034-04-01 | C146: $1,159,511.88 | D146: $8,848.95 | E146: $1,168,061.71 | F146: $6,280.69 | G146: $925,005.33 | H146: $2,568.26 | I146: $243,056.38 | J146: $1,156,943.62 | M146: 132 | N146: 2034-04-01 | O146: $1,159,511.88 | P146: $8,848.95 | Q146: $1,168,061.71 | R146: $6,280.69 | S146: $925,005.33 | T146: $2,568.26 | U146: $243,056.38 | V146: $1,156,943.62 | X146: 132 | Y146: 2034-04-01 | Z146: $1,159,511.88 | AA146: $8,848.95 | AB146: $1,168,061.71 | AC146: $6,280.69 | AD146: $925,005.33 | AE146: $2,568.26 | AF146: $243,056.38 | AG146: $1,156,943.62
A147: 133 | B147: 2034-05-01 | C147: $1,156,943.62 | D147: $8,848.95 | E147: $1,176,910.66 | F147: $6,266.78 | G147: $931,272.10 | H147: $2,582.17 | I147: $245,638.56 | J147: $1,154,361.44 | M147: 133 | N147: 2034-05-01 | O147: $1,156,943.62 | P147: $8,848.95 | Q147: $1,176,910.66 | R147: $6,266.78 | S147: $931,272.10 | T147: $2,582.17 | U147: $245,638.56 | V147: $1,154,361.44 | X147: 133 | Y147: 2034-05-01 | Z147: $1,156,943.62 | AA147: $8,848.95 | AB147: $1,176,910.66 | AC147: $6,266.78 | AD147: $931,272.10 | AE147: $2,582.17 | AF147: $245,638.56 | AG147: $1,154,361.44
A148: 134 | B148: 2034-06-01 | C148: $1,154,361.44 | D148: $8,848.95 | E148: $1,185,759.61 | F148: $6,252.79 | G148: $937,524.89 | H148: $2,596.16 | I148: $248,234.72 | J148: $1,151,765.28 | M148: 134 | N148: 2034-06-01 | O148: $1,154,361.44 | P148: $8,848.95 | Q148: $1,185,759.61 | R148: $6,252.79 | S148: $937,524.89 | T148: $2,596.16 | U148: $248,234.72 | V148: $1,151,765.28 | X148: 134 | Y148: 2034-06-01 | Z148: $1,154,361.44 | AA148: $8,848.95 | AB148: $1,185,759.61 | AC148: $6,252.79 | AD148: $937,524.89 | AE148: $2,596.16 | AF148: $248,234.72 | AG148: $1,151,765.28
A149: 135 | B149: 2034-07-01 | C149: $1,151,765.28 | D149: $8,848.95 | E149: $1,194,608.56 | F149: $6,238.73 | G149: $943,763.62 | H149: $2,610.22 | I149: $250,844.94 | J149: $1,149,155.06 | M149: 135 | N149: 2034-07-01 | O149: $1,151,765.28 | P149: $8,848.95 | Q149: $1,194,608.56 | R149: $6,238.73 | S149: $943,763.62 | T149: $2,610.22 | U149: $250,844.94 | V149: $1,149,155.06 | X149: 135 | Y149: 2034-07-01 | Z149: $1,151,765.28 | AA149: $8,848.95 | AB149: $1,194,608.56 | AC149: $6,238.73 | AD149: $943,763.62 | AE149: $2,610.22 | AF149: $250,844.94 | AG149: $1,149,155.06
A150: 136 | B150: 2034-08-01 | C150: $1,149,155.06 | D150: $8,848.95 | E150: $1,203,457.52 | F150: $6,224.59 | G150: $949,988.21 | H150: $2,624.36 | I150: $253,469.30 | J150: $1,146,530.70 | M150: 136 | N150: 2034-08-01 | O150: $1,149,155.06 | P150: $8,848.95 | Q150: $1,203,457.52 | R150: $6,224.59 | S150: $949,988.21 | T150: $2,624.36 | U150: $253,469.30 | V150: $1,146,530.70 | X150: 136 | Y150: 2034-08-01 | Z150: $1,149,155.06 | AA150: $8,848.95 | AB150: $1,203,457.52 | AC150: $6,224.59 | AD150: $949,988.21 | AE150: $2,624.36 | AF150: $253,469.30 | AG150: $1,146,530.70
A151: 137 | B151: 2034-09-01 | C151: $1,146,530.70 | D151: $8,848.95 | E151: $1,212,306.47 | F151: $6,210.37 | G151: $956,198.59 | H151: $2,638.58 | I151: $256,107.88 | J151: $1,143,892.12 | M151: 137 | N151: 2034-09-01 | O151: $1,146,530.70 | P151: $8,848.95 | Q151: $1,212,306.47 | R151: $6,210.37 | S151: $956,198.59 | T151: $2,638.58 | U151: $256,107.88 | V151: $1,143,892.12 | X151: 137 | Y151: 2034-09-01 | Z151: $1,146,530.70 | AA151: $8,848.95 | AB151: $1,212,306.47 | AC151: $6,210.37 | AD151: $956,198.59 | AE151: $2,638.58 | AF151: $256,107.88 | AG151: $1,143,892.12
A152: 138 | B152: 2034-10-01 | C152: $1,143,892.12 | D152: $8,848.95 | E152: $1,221,155.42 | F152: $6,196.08 | G152: $962,394.67 | H152: $2,652.87 | I152: $258,760.75 | J152: $1,141,239.25 | M152: 138 | N152: 2034-10-01 | O152: $1,143,892.12 | P152: $8,848.95 | Q152: $1,221,155.42 | R152: $6,196.08 | S152: $962,394.67 | T152: $2,652.87 | U152: $258,760.75 | V152: $1,141,239.25 | X152: 138 | Y152: 2034-10-01 | Z152: $1,143,892.12 | AA152: $8,848.95 | AB152: $1,221,155.42 | AC152: $6,196.08 | AD152: $962,394.67 | AE152: $2,652.87 | AF152: $258,760.75 | AG152: $1,141,239.25
A153: 139 | B153: 2034-11-01 | C153: $1,141,239.25 | D153: $8,848.95 | E153: $1,230,004.37 | F153: $6,181.71 | G153: $968,576.38 | H153: $2,667.24 | I153: $261,427.99 | J153: $1,138,572.01 | M153: 139 | N153: 2034-11-01 | O153: $1,141,239.25 | P153: $8,848.95 | Q153: $1,230,004.37 | R153: $6,181.71 | S153: $968,576.38 | T153: $2,667.24 | U153: $261,427.99 | V153: $1,138,572.01 | X153: 139 | Y153: 2034-11-01 | Z153: $1,141,239.25 | AA153: $8,848.95 | AB153: $1,230,004.37 | AC153: $6,181.71 | AD153: $968,576.38 | AE153: $2,667.24 | AF153: $261,427.99 | AG153: $1,138,572.01
A154: 140 | B154: 2034-12-01 | C154: $1,138,572.01 | D154: $8,848.95 | E154: $1,238,853.33 | F154: $6,167.27 | G154: $974,743.65 | H154: $2,681.69 | I154: $264,109.68 | J154: $1,135,890.32 | M154: 140 | N154: 2034-12-01 | O154: $1,138,572.01 | P154: $8,848.95 | Q154: $1,238,853.33 | R154: $6,167.27 | S154: $974,743.65 | T154: $2,681.69 | U154: $264,109.68 | V154: $1,135,890.32 | X154: 140 | Y154: 2034-12-01 | Z154: $1,138,572.01 | AA154: $8,848.95 | AB154: $1,238,853.33 | AC154: $6,167.27 | AD154: $974,743.65 | AE154: $2,681.69 | AF154: $264,109.68 | AG154: $1,135,890.32
A155: 141 | B155: 2035-01-01 | C155: $1,135,890.32 | D155: $8,848.95 | E155: $1,247,702.28 | F155: $6,152.74 | G155: $980,896.39 | H155: $2,696.21 | I155: $266,805.89 | J155: $1,133,194.11 | M155: 141 | N155: 2035-01-01 | O155: $1,135,890.32 | P155: $8,848.95 | Q155: $1,247,702.28 | R155: $6,152.74 | S155: $980,896.39 | T155: $2,696.21 | U155: $266,805.89 | V155: $1,133,194.11 | X155: 141 | Y155: 2035-01-01 | Z155: $1,135,890.32 | AA155: $8,848.95 | AB155: $1,247,702.28 | AC155: $6,152.74 | AD155: $980,896.39 | AE155: $2,696.21 | AF155: $266,805.89 | AG155: $1,133,194.11
A156: 142 | B156: 2035-02-01 | C156: $1,133,194.11 | D156: $8,848.95 | E156: $1,256,551.23 | F156: $6,138.13 | G156: $987,034.52 | H156: $2,710.82 | I156: $269,516.71 | J156: $1,130,483.29 | M156: 142 | N156: 2035-02-01 | O156: $1,133,194.11 | P156: $8,848.95 | Q156: $1,256,551.23 | R156: $6,138.13 | S156: $987,034.52 | T156: $2,710.82 | U156: $269,516.71 | V156: $1,130,483.29 | X156: 142 | Y156: 2035-02-01 | Z156: $1,133,194.11 | AA156: $8,848.95 | AB156: $1,256,551.23 | AC156: $6,138.13 | AD156: $987,034.52 | AE156: $2,710.82 | AF156: $269,516.71 | AG156: $1,130,483.29
A157: 143 | B157: 2035-03-01 | C157: $1,130,483.29 | D157: $8,848.95 | E157: $1,265,400.18 | F157: $6,123.45 | G157: $993,157.97 | H157: $2,725.50 | I157: $272,242.21 | J157: $1,127,757.79 | M157: 143 | N157: 2035-03-01 | O157: $1,130,483.29 | P157: $8,848.95 | Q157: $1,265,400.18 | R157: $6,123.45 | S157: $993,157.97 | T157: $2,725.50 | U157: $272,242.21 | V157: $1,127,757.79 | X157: 143 | Y157: 2035-03-01 | Z157: $1,130,483.29 | AA157: $8,848.95 | AB157: $1,265,400.18 | AC157: $6,123.45 | AD157: $993,157.97 | AE157: $2,725.50 | AF157: $272,242.21 | AG157: $1,127,757.79
A158: 144 | B158: 2035-04-01 | C158: $1,127,757.79 | D158: $8,848.95 | E158: $1,274,249.14 | F158: $6,108.69 | G158: $999,266.66 | H158: $2,740.26 | I158: $274,982.47 | J158: $1,125,017.53 | M158: 144 | N158: 2035-04-01 | O158: $1,127,757.79 | P158: $8,848.95 | Q158: $1,274,249.14 | R158: $6,108.69 | S158: $999,266.66 | T158: $2,740.26 | U158: $274,982.47 | V158: $1,125,017.53 | X158: 144 | Y158: 2035-04-01 | Z158: $1,127,757.79 | AA158: $8,848.95 | AB158: $1,274,249.14 | AC158: $6,108.69 | AD158: $999,266.66 | AE158: $2,740.26 | AF158: $274,982.47 | AG158: $1,125,017.53
A159: 145 | B159: 2035-05-01 | C159: $1,125,017.53 | D159: $8,848.95 | E159: $1,283,098.09 | F159: $6,093.84 | G159: $1,005,360.51 | H159: $2,755.11 | I159: $277,737.58 | J159: $1,122,262.42 | M159: 145 | N159: 2035-05-01 | O159: $1,125,017.53 | P159: $8,848.95 | Q159: $1,283,098.09 | R159: $6,093.84 | S159: $1,005,360.51 | T159: $2,755.11 | U159: $277,737.58 | V159: $1,122,262.42 | X159: 145 | Y159: 2035-05-01 | Z159: $1,125,017.53 | AA159: $8,848.95 | AB159: $1,283,098.09 | AC159: $6,093.84 | AD159: $1,005,360.51 | AE159: $2,755.11 | AF159: $277,737.58 | AG159: $1,122,262.42
A160: 146 | B160: 2035-06-01 | C160: $1,122,262.42 | D160: $8,848.95 | E160: $1,291,947.04 | F160: $6,078.92 | G160: $1,011,439.43 | H160: $2,770.03 | I160: $280,507.61 | J160: $1,119,492.39 | M160: 146 | N160: 2035-06-01 | O160: $1,122,262.42 | P160: $8,848.95 | Q160: $1,291,947.04 | R160: $6,078.92 | S160: $1,011,439.43 | T160: $2,770.03 | U160: $280,507.61 | V160: $1,119,492.39 | X160: 146 | Y160: 2035-06-01 | Z160: $1,122,262.42 | AA160: $8,848.95 | AB160: $1,291,947.04 | AC160: $6,078.92 | AD160: $1,011,439.43 | AE160: $2,770.03 | AF160: $280,507.61 | AG160: $1,119,492.39
A161: 147 | B161: 2035-07-01 | C161: $1,119,492.39 | D161: $8,848.95 | E161: $1,300,795.99 | F161: $6,063.92 | G161: $1,017,503.34 | H161: $2,785.04 | I161: $283,292.65 | J161: $1,116,707.35 | M161: 147 | N161: 2035-07-01 | O161: $1,119,492.39 | P161: $8,848.95 | Q161: $1,300,795.99 | R161: $6,063.92 | S161: $1,017,503.34 | T161: $2,785.04 | U161: $283,292.65 | V161: $1,116,707.35 | X161: 147 | Y161: 2035-07-01 | Z161: $1,119,492.39 | AA161: $8,848.95 | AB161: $1,300,795.99 | AC161: $6,063.92 | AD161: $1,017,503.34 | AE161: $2,785.04 | AF161: $283,292.65 | AG161: $1,116,707.35
A162: 148 | B162: 2035-08-01 | C162: $1,116,707.35 | D162: $8,848.95 | E162: $1,309,644.94 | F162: $6,048.83 | G162: $1,023,552.18 | H162: $2,800.12 | I162: $286,092.77 | J162: $1,113,907.23 | M162: 148 | N162: 2035-08-01 | O162: $1,116,707.35 | P162: $8,848.95 | Q162: $1,309,644.94 | R162: $6,048.83 | S162: $1,023,552.18 | T162: $2,800.12 | U162: $286,092.77 | V162: $1,113,907.23 | X162: 148 | Y162: 2035-08-01 | Z162: $1,116,707.35 | AA162: $8,848.95 | AB162: $1,309,644.94 | AC162: $6,048.83 | AD162: $1,023,552.18 | AE162: $2,800.12 | AF162: $286,092.77 | AG162: $1,113,907.23
A163: 149 | B163: 2035-09-01 | C163: $1,113,907.23 | D163: $8,848.95 | E163: $1,318,493.90 | F163: $6,033.66 | G163: $1,029,585.84 | H163: $2,815.29 | I163: $288,908.06 | J163: $1,111,091.94 | M163: 149 | N163: 2035-09-01 | O163: $1,113,907.23 | P163: $8,848.95 | Q163: $1,318,493.90 | R163: $6,033.66 | S163: $1,029,585.84 | T163: $2,815.29 | U163: $288,908.06 | V163: $1,111,091.94 | X163: 149 | Y163: 2035-09-01 | Z163: $1,113,907.23 | AA163: $8,848.95 | AB163: $1,318,493.90 | AC163: $6,033.66 | AD163: $1,029,585.84 | AE163: $2,815.29 | AF163: $288,908.06 | AG163: $1,111,091.94
A164: 150 | B164: 2035-10-01 | C164: $1,111,091.94 | D164: $8,848.95 | E164: $1,327,342.85 | F164: $6,018.41 | G164: $1,035,604.25 | H164: $2,830.54 | I164: $291,738.59 | J164: $1,108,261.41 | M164: 150 | N164: 2035-10-01 | O164: $1,111,091.94 | P164: $8,848.95 | Q164: $1,327,342.85 | R164: $6,018.41 | S164: $1,035,604.25 | T164: $2,830.54 | U164: $291,738.59 | V164: $1,108,261.41 | X164: 150 | Y164: 2035-10-01 | Z164: $1,111,091.94 | AA164: $8,848.95 | AB164: $1,327,342.85 | AC164: $6,018.41 | AD164: $1,035,604.25 | AE164: $2,830.54 | AF164: $291,738.59 | AG164: $1,108,261.41
A165: 151 | B165: 2035-11-01 | C165: $1,108,261.41 | D165: $8,848.95 | E165: $1,336,191.80 | F165: $6,003.08 | G165: $1,041,607.34 | H165: $2,845.87 | I165: $294,584.46 | J165: $1,105,415.54 | M165: 151 | N165: 2035-11-01 | O165: $1,108,261.41 | P165: $8,848.95 | Q165: $1,336,191.80 | R165: $6,003.08 | S165: $1,041,607.34 | T165: $2,845.87 | U165: $294,584.46 | V165: $1,105,415.54 | X165: 151 | Y165: 2035-11-01 | Z165: $1,108,261.41 | AA165: $8,848.95 | AB165: $1,336,191.80 | AC165: $6,003.08 | AD165: $1,041,607.34 | AE165: $2,845.87 | AF165: $294,584.46 | AG165: $1,105,415.54
A166: 152 | B166: 2035-12-01 | C166: $1,105,415.54 | D166: $8,848.95 | E166: $1,345,040.75 | F166: $5,987.67 | G166: $1,047,595.01 | H166: $2,861.28 | I166: $297,445.75 | J166: $1,102,554.25 | M166: 152 | N166: 2035-12-01 | O166: $1,105,415.54 | P166: $8,848.95 | Q166: $1,345,040.75 | R166: $5,987.67 | S166: $1,047,595.01 | T166: $2,861.28 | U166: $297,445.75 | V166: $1,102,554.25 | X166: 152 | Y166: 2035-12-01 | Z166: $1,105,415.54 | AA166: $8,848.95 | AB166: $1,345,040.75 | AC166: $5,987.67 | AD166: $1,047,595.01 | AE166: $2,861.28 | AF166: $297,445.75 | AG166: $1,102,554.25
A167: 153 | B167: 2036-01-01 | C167: $1,102,554.25 | D167: $8,848.95 | E167: $1,353,889.71 | F167: $5,972.17 | G167: $1,053,567.17 | H167: $2,876.78 | I167: $300,322.53 | J167: $1,099,677.47 | M167: 153 | N167: 2036-01-01 | O167: $1,102,554.25 | P167: $8,848.95 | Q167: $1,353,889.71 | R167: $5,972.17 | S167: $1,053,567.17 | T167: $2,876.78 | U167: $300,322.53 | V167: $1,099,677.47 | X167: 153 | Y167: 2036-01-01 | Z167: $1,102,554.25 | AA167: $8,848.95 | AB167: $1,353,889.71 | AC167: $5,972.17 | AD167: $1,053,567.17 | AE167: $2,876.78 | AF167: $300,322.53 | AG167: $1,099,677.47
A168: 154 | B168: 2036-02-01 | C168: $1,099,677.47 | D168: $8,848.95 | E168: $1,362,738.66 | F168: $5,956.59 | G168: $1,059,523.76 | H168: $2,892.37 | I168: $303,214.90 | J168: $1,096,785.10 | M168: 154 | N168: 2036-02-01 | O168: $1,099,677.47 | P168: $8,848.95 | Q168: $1,362,738.66 | R168: $5,956.59 | S168: $1,059,523.76 | T168: $2,892.37 | U168: $303,214.90 | V168: $1,096,785.10 | X168: 154 | Y168: 2036-02-01 | Z168: $1,099,677.47 | AA168: $8,848.95 | AB168: $1,362,738.66 | AC168: $5,956.59 | AD168: $1,059,523.76 | AE168: $2,892.37 | AF168: $303,214.90 | AG168: $1,096,785.10
A169: 155 | B169: 2036-03-01 | C169: $1,096,785.10 | D169: $8,848.95 | E169: $1,371,587.61 | F169: $5,940.92 | G169: $1,065,464.68 | H169: $2,908.03 | I169: $306,122.93 | J169: $1,093,877.07 | M169: 155 | N169: 2036-03-01 | O169: $1,096,785.10 | P169: $8,848.95 | Q169: $1,371,587.61 | R169: $5,940.92 | S169: $1,065,464.68 | T169: $2,908.03 | U169: $306,122.93 | V169: $1,093,877.07 | X169: 155 | Y169: 2036-03-01 | Z169: $1,096,785.10 | AA169: $8,848.95 | AB169: $1,371,587.61 | AC169: $5,940.92 | AD169: $1,065,464.68 | AE169: $2,908.03 | AF169: $306,122.93 | AG169: $1,093,877.07
A170: 156 | B170: 2036-04-01 | C170: $1,093,877.07 | D170: $8,848.95 | E170: $1,380,436.56 | F170: $5,925.17 | G170: $1,071,389.85 | H170: $2,923.78 | I170: $309,046.72 | J170: $1,090,953.28 | M170: 156 | N170: 2036-04-01 | O170: $1,093,877.07 | P170: $8,848.95 | Q170: $1,380,436.56 | R170: $5,925.17 | S170: $1,071,389.85 | T170: $2,923.78 | U170: $309,046.72 | V170: $1,090,953.28 | X170: 156 | Y170: 2036-04-01 | Z170: $1,093,877.07 | AA170: $8,848.95 | AB170: $1,380,436.56 | AC170: $5,925.17 | AD170: $1,071,389.85 | AE170: $2,923.78 | AF170: $309,046.72 | AG170: $1,090,953.28
A171: 157 | B171: 2036-05-01 | C171: $1,090,953.28 | D171: $8,848.95 | E171: $1,389,285.52 | F171: $5,909.33 | G171: $1,077,299.18 | H171: $2,939.62 | I171: $311,986.34 | J171: $1,088,013.66 | M171: 157 | N171: 2036-05-01 | O171: $1,090,953.28 | P171: $8,848.95 | Q171: $1,389,285.52 | R171: $5,909.33 | S171: $1,077,299.18 | T171: $2,939.62 | U171: $311,986.34 | V171: $1,088,013.66 | X171: 157 | Y171: 2036-05-01 | Z171: $1,090,953.28 | AA171: $8,848.95 | AB171: $1,389,285.52 | AC171: $5,909.33 | AD171: $1,077,299.18 | AE171: $2,939.62 | AF171: $311,986.34 | AG171: $1,088,013.66
A172: 158 | B172: 2036-06-01 | C172: $1,088,013.66 | D172: $8,848.95 | E172: $1,398,134.47 | F172: $5,893.41 | G172: $1,083,192.58 | H172: $2,955.54 | I172: $314,941.88 | J172: $1,085,058.12 | M172: 158 | N172: 2036-06-01 | O172: $1,088,013.66 | P172: $8,848.95 | Q172: $1,398,134.47 | R172: $5,893.41 | S172: $1,083,192.58 | T172: $2,955.54 | U172: $314,941.88 | V172: $1,085,058.12 | X172: 158 | Y172: 2036-06-01 | Z172: $1,088,013.66 | AA172: $8,848.95 | AB172: $1,398,134.47 | AC172: $5,893.41 | AD172: $1,083,192.58 | AE172: $2,955.54 | AF172: $314,941.88 | AG172: $1,085,058.12
A173: 159 | B173: 2036-07-01 | C173: $1,085,058.12 | D173: $8,848.95 | E173: $1,406,983.42 | F173: $5,877.40 | G173: $1,089,069.98 | H173: $2,971.55 | I173: $317,913.44 | J173: $1,082,086.56 | M173: 159 | N173: 2036-07-01 | O173: $1,085,058.12 | P173: $8,848.95 | Q173: $1,406,983.42 | R173: $5,877.40 | S173: $1,089,069.98 | T173: $2,971.55 | U173: $317,913.44 | V173: $1,082,086.56 | X173: 159 | Y173: 2036-07-01 | Z173: $1,085,058.12 | AA173: $8,848.95 | AB173: $1,406,983.42 | AC173: $5,877.40 | AD173: $1,089,069.98 | AE173: $2,971.55 | AF173: $317,913.44 | AG173: $1,082,086.56
A174: 160 | B174: 2036-08-01 | C174: $1,082,086.56 | D174: $8,848.95 | E174: $1,415,832.37 | F174: $5,861.30 | G174: $1,094,931.28 | H174: $2,987.65 | I174: $320,901.09 | J174: $1,079,098.91 | M174: 160 | N174: 2036-08-01 | O174: $1,082,086.56 | P174: $8,848.95 | Q174: $1,415,832.37 | R174: $5,861.30 | S174: $1,094,931.28 | T174: $2,987.65 | U174: $320,901.09 | V174: $1,079,098.91 | X174: 160 | Y174: 2036-08-01 | Z174: $1,082,086.56 | AA174: $8,848.95 | AB174: $1,415,832.37 | AC174: $5,861.30 | AD174: $1,094,931.28 | AE174: $2,987.65 | AF174: $320,901.09 | AG174: $1,079,098.91
A175: 161 | B175: 2036-09-01 | C175: $1,079,098.91 | D175: $8,848.95 | E175: $1,424,681.32 | F175: $5,845.12 | G175: $1,100,776.40 | H175: $3,003.83 | I175: $323,904.92 | J175: $1,076,095.08 | M175: 161 | N175: 2036-09-01 | O175: $1,079,098.91 | P175: $8,848.95 | Q175: $1,424,681.32 | R175: $5,845.12 | S175: $1,100,776.40 | T175: $3,003.83 | U175: $323,904.92 | V175: $1,076,095.08 | X175: 161 | Y175: 2036-09-01 | Z175: $1,079,098.91 | AA175: $8,848.95 | AB175: $1,424,681.32 | AC175: $5,845.12 | AD175: $1,100,776.40 | AE175: $3,003.83 | AF175: $323,904.92 | AG175: $1,076,095.08
A176: 162 | B176: 2036-10-01 | C176: $1,076,095.08 | D176: $8,848.95 | E176: $1,433,530.28 | F176: $5,828.85 | G176: $1,106,605.25 | H176: $3,020.10 | I176: $326,925.02 | J176: $1,073,074.98 | M176: 162 | N176: 2036-10-01 | O176: $1,076,095.08 | P176: $8,848.95 | Q176: $1,433,530.28 | R176: $5,828.85 | S176: $1,106,605.25 | T176: $3,020.10 | U176: $326,925.02 | V176: $1,073,074.98 | X176: 162 | Y176: 2036-10-01 | Z176: $1,076,095.08 | AA176: $8,848.95 | AB176: $1,433,530.28 | AC176: $5,828.85 | AD176: $1,106,605.25 | AE176: $3,020.10 | AF176: $326,925.02 | AG176: $1,073,074.98
A177: 163 | B177: 2036-11-01 | C177: $1,073,074.98 | D177: $8,848.95 | E177: $1,442,379.23 | F177: $5,812.49 | G177: $1,112,417.74 | H177: $3,036.46 | I177: $329,961.49 | J177: $1,070,038.51 | M177: 163 | N177: 2036-11-01 | O177: $1,073,074.98 | P177: $8,848.95 | Q177: $1,442,379.23 | R177: $5,812.49 | S177: $1,112,417.74 | T177: $3,036.46 | U177: $329,961.49 | V177: $1,070,038.51 | X177: 163 | Y177: 2036-11-01 | Z177: $1,073,074.98 | AA177: $8,848.95 | AB177: $1,442,379.23 | AC177: $5,812.49 | AD177: $1,112,417.74 | AE177: $3,036.46 | AF177: $329,961.49 | AG177: $1,070,038.51
A178: 164 | B178: 2036-12-01 | C178: $1,070,038.51 | D178: $8,848.95 | E178: $1,451,228.18 | F178: $5,796.04 | G178: $1,118,213.78 | H178: $3,052.91 | I178: $333,014.40 | J178: $1,066,985.60 | M178: 164 | N178: 2036-12-01 | O178: $1,070,038.51 | P178: $8,848.95 | Q178: $1,451,228.18 | R178: $5,796.04 | S178: $1,118,213.78 | T178: $3,052.91 | U178: $333,014.40 | V178: $1,066,985.60 | X178: 164 | Y178: 2036-12-01 | Z178: $1,070,038.51 | AA178: $8,848.95 | AB178: $1,451,228.18 | AC178: $5,796.04 | AD178: $1,118,213.78 | AE178: $3,052.91 | AF178: $333,014.40 | AG178: $1,066,985.60
A179: 165 | B179: 2037-01-01 | C179: $1,066,985.60 | D179: $8,848.95 | E179: $1,460,077.13 | F179: $5,779.51 | G179: $1,123,993.29 | H179: $3,069.45 | I179: $336,083.85 | J179: $1,063,916.15 | M179: 165 | N179: 2037-01-01 | O179: $1,066,985.60 | P179: $8,848.95 | Q179: $1,460,077.13 | R179: $5,779.51 | S179: $1,123,993.29 | T179: $3,069.45 | U179: $336,083.85 | V179: $1,063,916.15 | X179: 165 | Y179: 2037-01-01 | Z179: $1,066,985.60 | AA179: $8,848.95 | AB179: $1,460,077.13 | AC179: $5,779.51 | AD179: $1,123,993.29 | AE179: $3,069.45 | AF179: $336,083.85 | AG179: $1,063,916.15
A180: 166 | B180: 2037-02-01 | C180: $1,063,916.15 | D180: $8,848.95 | E180: $1,468,926.09 | F180: $5,762.88 | G180: $1,129,756.17 | H180: $3,086.07 | I180: $339,169.92 | J180: $1,060,830.08 | M180: 166 | N180: 2037-02-01 | O180: $1,063,916.15 | P180: $8,848.95 | Q180: $1,468,926.09 | R180: $5,762.88 | S180: $1,129,756.17 | T180: $3,086.07 | U180: $339,169.92 | V180: $1,060,830.08 | X180: 166 | Y180: 2037-02-01 | Z180: $1,063,916.15 | AA180: $8,848.95 | AB180: $1,468,926.09 | AC180: $5,762.88 | AD180: $1,129,756.17 | AE180: $3,086.07 | AF180: $339,169.92 | AG180: $1,060,830.08
A181: 167 | B181: 2037-03-01 | C181: $1,060,830.08 | D181: $8,848.95 | E181: $1,477,775.04 | F181: $5,746.16 | G181: $1,135,502.33 | H181: $3,102.79 | I181: $342,272.71 | J181: $1,057,727.29 | M181: 167 | N181: 2037-03-01 | O181: $1,060,830.08 | P181: $8,848.95 | Q181: $1,477,775.04 | R181: $5,746.16 | S181: $1,135,502.33 | T181: $3,102.79 | U181: $342,272.71 | V181: $1,057,727.29 | X181: 167 | Y181: 2037-03-01 | Z181: $1,060,830.08 | AA181: $8,848.95 | AB181: $1,477,775.04 | AC181: $5,746.16 | AD181: $1,135,502.33 | AE181: $3,102.79 | AF181: $342,272.71 | AG181: $1,057,727.29
A182: 168 | B182: 2037-04-01 | C182: $1,057,727.29 | D182: $8,848.95 | E182: $1,486,623.99 | F182: $5,729.36 | G182: $1,141,231.69 | H182: $3,119.60 | I182: $345,392.30 | J182: $1,054,607.70 | M182: 168 | N182: 2037-04-01 | O182: $1,057,727.29 | P182: $8,848.95 | Q182: $1,486,623.99 | R182: $5,729.36 | S182: $1,141,231.69 | T182: $3,119.60 | U182: $345,392.30 | V182: $1,054,607.70 | X182: 168 | Y182: 2037-04-01 | Z182: $1,057,727.29 | AA182: $8,848.95 | AB182: $1,486,623.99 | AC182: $5,729.36 | AD182: $1,141,231.69 | AE182: $3,119.60 | AF182: $345,392.30 | AG182: $1,054,607.70
A183: 169 | B183: 2037-05-01 | C183: $1,054,607.70 | D183: $8,848.95 | E183: $1,495,472.94 | F183: $5,712.46 | G183: $1,146,944.15 | H183: $3,136.49 | I183: $348,528.80 | J183: $1,051,471.20 | M183: 169 | N183: 2037-05-01 | O183: $1,054,607.70 | P183: $8,848.95 | Q183: $1,495,472.94 | R183: $5,712.46 | S183: $1,146,944.15 | T183: $3,136.49 | U183: $348,528.80 | V183: $1,051,471.20 | X183: 169 | Y183: 2037-05-01 | Z183: $1,054,607.70 | AA183: $8,848.95 | AB183: $1,495,472.94 | AC183: $5,712.46 | AD183: $1,146,944.15 | AE183: $3,136.49 | AF183: $348,528.80 | AG183: $1,051,471.20
A184: 170 | B184: 2037-06-01 | C184: $1,051,471.20 | D184: $8,848.95 | E184: $1,504,321.90 | F184: $5,695.47 | G184: $1,152,639.61 | H184: $3,153.48 | I184: $351,682.28 | J184: $1,048,317.72 | M184: 170 | N184: 2037-06-01 | O184: $1,051,471.20 | P184: $8,848.95 | Q184: $1,504,321.90 | R184: $5,695.47 | S184: $1,152,639.61 | T184: $3,153.48 | U184: $351,682.28 | V184: $1,048,317.72 | X184: 170 | Y184: 2037-06-01 | Z184: $1,051,471.20 | AA184: $8,848.95 | AB184: $1,504,321.90 | AC184: $5,695.47 | AD184: $1,152,639.61 | AE184: $3,153.48 | AF184: $351,682.28 | AG184: $1,048,317.72
A185: 171 | B185: 2037-07-01 | C185: $1,048,317.72 | D185: $8,848.95 | E185: $1,513,170.85 | F185: $5,678.39 | G185: $1,158,318.00 | H185: $3,170.56 | I185: $354,852.85 | J185: $1,045,147.15 | M185: 171 | N185: 2037-07-01 | O185: $1,048,317.72 | P185: $8,848.95 | Q185: $1,513,170.85 | R185: $5,678.39 | S185: $1,158,318.00 | T185: $3,170.56 | U185: $354,852.85 | V185: $1,045,147.15 | X185: 171 | Y185: 2037-07-01 | Z185: $1,048,317.72 | AA185: $8,848.95 | AB185: $1,513,170.85 | AC185: $5,678.39 | AD185: $1,158,318.00 | AE185: $3,170.56 | AF185: $354,852.85 | AG185: $1,045,147.15
A186: 172 | B186: 2037-08-01 | C186: $1,045,147.15 | D186: $8,848.95 | E186: $1,522,019.80 | F186: $5,661.21 | G186: $1,163,979.22 | H186: $3,187.74 | I186: $358,040.58 | J186: $1,041,959.42 | M186: 172 | N186: 2037-08-01 | O186: $1,045,147.15 | P186: $8,848.95 | Q186: $1,522,019.80 | R186: $5,661.21 | S186: $1,163,979.22 | T186: $3,187.74 | U186: $358,040.58 | V186: $1,041,959.42 | X186: 172 | Y186: 2037-08-01 | Z186: $1,045,147.15 | AA186: $8,848.95 | AB186: $1,522,019.80 | AC186: $5,661.21 | AD186: $1,163,979.22 | AE186: $3,187.74 | AF186: $358,040.58 | AG186: $1,041,959.42
A187: 173 | B187: 2037-09-01 | C187: $1,041,959.42 | D187: $8,848.95 | E187: $1,530,868.75 | F187: $5,643.95 | G187: $1,169,623.16 | H187: $3,205.01 | I187: $361,245.59 | J187: $1,038,754.41 | M187: 173 | N187: 2037-09-01 | O187: $1,041,959.42 | P187: $8,848.95 | Q187: $1,530,868.75 | R187: $5,643.95 | S187: $1,169,623.16 | T187: $3,205.01 | U187: $361,245.59 | V187: $1,038,754.41 | X187: 173 | Y187: 2037-09-01 | Z187: $1,041,959.42 | AA187: $8,848.95 | AB187: $1,530,868.75 | AC187: $5,643.95 | AD187: $1,169,623.16 | AE187: $3,205.01 | AF187: $361,245.59 | AG187: $1,038,754.41
A188: 174 | B188: 2037-10-01 | C188: $1,038,754.41 | D188: $8,848.95 | E188: $1,539,717.71 | F188: $5,626.59 | G188: $1,175,249.75 | H188: $3,222.37 | I188: $364,467.96 | J188: $1,035,532.04 | M188: 174 | N188: 2037-10-01 | O188: $1,038,754.41 | P188: $8,848.95 | Q188: $1,539,717.71 | R188: $5,626.59 | S188: $1,175,249.75 | T188: $3,222.37 | U188: $364,467.96 | V188: $1,035,532.04 | X188: 174 | Y188: 2037-10-01 | Z188: $1,038,754.41 | AA188: $8,848.95 | AB188: $1,539,717.71 | AC188: $5,626.59 | AD188: $1,175,249.75 | AE188: $3,222.37 | AF188: $364,467.96 | AG188: $1,035,532.04
A189: 175 | B189: 2037-11-01 | C189: $1,035,532.04 | D189: $8,848.95 | E189: $1,548,566.66 | F189: $5,609.13 | G189: $1,180,858.88 | H189: $3,239.82 | I189: $367,707.78 | J189: $1,032,292.22 | M189: 175 | N189: 2037-11-01 | O189: $1,035,532.04 | P189: $8,848.95 | Q189: $1,548,566.66 | R189: $5,609.13 | S189: $1,180,858.88 | T189: $3,239.82 | U189: $367,707.78 | V189: $1,032,292.22 | X189: 175 | Y189: 2037-11-01 | Z189: $1,035,532.04 | AA189: $8,848.95 | AB189: $1,548,566.66 | AC189: $5,609.13 | AD189: $1,180,858.88 | AE189: $3,239.82 | AF189: $367,707.78 | AG189: $1,032,292.22
A190: 176 | B190: 2037-12-01 | C190: $1,032,292.22 | D190: $8,848.95 | E190: $1,557,415.61 | F190: $5,591.58 | G190: $1,186,450.46 | H190: $3,257.37 | I190: $370,965.15 | J190: $1,029,034.85 | M190: 176 | N190: 2037-12-01 | O190: $1,032,292.22 | P190: $8,848.95 | Q190: $1,557,415.61 | R190: $5,591.58 | S190: $1,186,450.46 | T190: $3,257.37 | U190: $370,965.15 | V190: $1,029,034.85 | X190: 176 | Y190: 2037-12-01 | Z190: $1,032,292.22 | AA190: $8,848.95 | AB190: $1,557,415.61 | AC190: $5,591.58 | AD190: $1,186,450.46 | AE190: $3,257.37 | AF190: $370,965.15 | AG190: $1,029,034.85
A191: 177 | B191: 2038-01-01 | C191: $1,029,034.85 | D191: $8,848.95 | E191: $1,566,264.56 | F191: $5,573.94 | G191: $1,192,024.40 | H191: $3,275.01 | I191: $374,240.16 | J191: $1,025,759.84 | M191: 177 | N191: 2038-01-01 | O191: $1,029,034.85 | P191: $8,848.95 | Q191: $1,566,264.56 | R191: $5,573.94 | S191: $1,192,024.40 | T191: $3,275.01 | U191: $374,240.16 | V191: $1,025,759.84 | X191: 177 | Y191: 2038-01-01 | Z191: $1,029,034.85 | AA191: $8,848.95 | AB191: $1,566,264.56 | AC191: $5,573.94 | AD191: $1,192,024.40 | AE191: $3,275.01 | AF191: $374,240.16 | AG191: $1,025,759.84
A192: 178 | B192: 2038-02-01 | C192: $1,025,759.84 | D192: $8,848.95 | E192: $1,575,113.51 | F192: $5,556.20 | G192: $1,197,580.60 | H192: $3,292.75 | I192: $377,532.91 | J192: $1,022,467.09 | M192: 178 | N192: 2038-02-01 | O192: $1,025,759.84 | P192: $8,848.95 | Q192: $1,575,113.51 | R192: $5,556.20 | S192: $1,197,580.60 | T192: $3,292.75 | U192: $377,532.91 | V192: $1,022,467.09 | X192: 178 | Y192: 2038-02-01 | Z192: $1,025,759.84 | AA192: $8,848.95 | AB192: $1,575,113.51 | AC192: $5,556.20 | AD192: $1,197,580.60 | AE192: $3,292.75 | AF192: $377,532.91 | AG192: $1,022,467.09
A193: 179 | B193: 2038-03-01 | C193: $1,022,467.09 | D193: $8,848.95 | E193: $1,583,962.47 | F193: $5,538.36 | G193: $1,203,118.97 | H193: $3,310.59 | I193: $380,843.50 | J193: $1,019,156.50 | M193: 179 | N193: 2038-03-01 | O193: $1,022,467.09 | P193: $8,848.95 | Q193: $1,583,962.47 | R193: $5,538.36 | S193: $1,203,118.97 | T193: $3,310.59 | U193: $380,843.50 | V193: $1,019,156.50 | X193: 179 | Y193: 2038-03-01 | Z193: $1,022,467.09 | AA193: $8,848.95 | AB193: $1,583,962.47 | AC193: $5,538.36 | AD193: $1,203,118.97 | AE193: $3,310.59 | AF193: $380,843.50 | AG193: $1,019,156.50
A194: 180 | B194: 2038-04-01 | C194: $1,019,156.50 | D194: $8,848.95 | E194: $1,592,811.42 | F194: $5,520.43 | G194: $1,208,639.40 | H194: $3,328.52 | I194: $384,172.02 | J194: $1,015,827.98 | M194: 180 | N194: 2038-04-01 | O194: $1,019,156.50 | P194: $8,848.95 | Q194: $1,592,811.42 | R194: $5,520.43 | S194: $1,208,639.40 | T194: $3,328.52 | U194: $384,172.02 | V194: $1,015,827.98 | X194: 180 | Y194: 2038-04-01 | Z194: $1,019,156.50 | AA194: $8,848.95 | AB194: $1,592,811.42 | AC194: $5,520.43 | AD194: $1,208,639.40 | AE194: $3,328.52 | AF194: $384,172.02 | AG194: $1,015,827.98
A195: 181 | B195: 2038-05-01 | C195: $1,015,827.98 | D195: $8,848.95 | E195: $1,601,660.37 | F195: $5,502.40 | G195: $1,214,141.80 | H195: $3,346.55 | I195: $387,518.57 | J195: $1,012,481.43 | M195: 181 | N195: 2038-05-01 | O195: $1,015,827.98 | P195: $8,848.95 | Q195: $1,601,660.37 | R195: $5,502.40 | S195: $1,214,141.80 | T195: $3,346.55 | U195: $387,518.57 | V195: $1,012,481.43 | X195: 181 | Y195: 2038-05-01 | Z195: $1,015,827.98 | AA195: $8,848.95 | AB195: $1,601,660.37 | AC195: $5,502.40 | AD195: $1,214,141.80 | AE195: $3,346.55 | AF195: $387,518.57 | AG195: $1,012,481.43
A196: 182 | B196: 2038-06-01 | C196: $1,012,481.43 | D196: $8,848.95 | E196: $1,610,509.32 | F196: $5,484.27 | G196: $1,219,626.07 | H196: $3,364.68 | I196: $390,883.25 | J196: $1,009,116.75 | M196: 182 | N196: 2038-06-01 | O196: $1,012,481.43 | P196: $8,848.95 | Q196: $1,610,509.32 | R196: $5,484.27 | S196: $1,219,626.07 | T196: $3,364.68 | U196: $390,883.25 | V196: $1,009,116.75 | X196: 182 | Y196: 2038-06-01 | Z196: $1,012,481.43 | AA196: $8,848.95 | AB196: $1,610,509.32 | AC196: $5,484.27 | AD196: $1,219,626.07 | AE196: $3,364.68 | AF196: $390,883.25 | AG196: $1,009,116.75
A197: 183 | B197: 2038-07-01 | C197: $1,009,116.75 | D197: $8,848.95 | E197: $1,619,358.28 | F197: $5,466.05 | G197: $1,225,092.12 | H197: $3,382.90 | I197: $394,266.15 | J197: $1,005,733.85 | M197: 183 | N197: 2038-07-01 | O197: $1,009,116.75 | P197: $8,848.95 | Q197: $1,619,358.28 | R197: $5,466.05 | S197: $1,225,092.12 | T197: $3,382.90 | U197: $394,266.15 | V197: $1,005,733.85 | X197: 183 | Y197: 2038-07-01 | Z197: $1,009,116.75 | AA197: $8,848.95 | AB197: $1,619,358.28 | AC197: $5,466.05 | AD197: $1,225,092.12 | AE197: $3,382.90 | AF197: $394,266.15 | AG197: $1,005,733.85
A198: 184 | B198: 2038-08-01 | C198: $1,005,733.85 | D198: $8,848.95 | E198: $1,628,207.23 | F198: $5,447.72 | G198: $1,230,539.85 | H198: $3,401.23 | I198: $397,667.38 | J198: $1,002,332.62 | M198: 184 | N198: 2038-08-01 | O198: $1,005,733.85 | P198: $8,848.95 | Q198: $1,628,207.23 | R198: $5,447.72 | S198: $1,230,539.85 | T198: $3,401.23 | U198: $397,667.38 | V198: $1,002,332.62 | X198: 184 | Y198: 2038-08-01 | Z198: $1,005,733.85 | AA198: $8,848.95 | AB198: $1,628,207.23 | AC198: $5,447.72 | AD198: $1,230,539.85 | AE198: $3,401.23 | AF198: $397,667.38 | AG198: $1,002,332.62
A199: 185 | B199: 2038-09-01 | C199: $1,002,332.62 | D199: $8,848.95 | E199: $1,637,056.18 | F199: $5,429.30 | G199: $1,235,969.15 | H199: $3,419.65 | I199: $401,087.03 | J199: $998,912.97 | M199: 185 | N199: 2038-09-01 | O199: $1,002,332.62 | P199: $8,848.95 | Q199: $1,637,056.18 | R199: $5,429.30 | S199: $1,235,969.15 | T199: $3,419.65 | U199: $401,087.03 | V199: $998,912.97 | X199: 185 | Y199: 2038-09-01 | Z199: $1,002,332.62 | AA199: $8,848.95 | AB199: $1,637,056.18 | AC199: $5,429.30 | AD199: $1,235,969.15 | AE199: $3,419.65 | AF199: $401,087.03 | AG199: $998,912.97
A200: 186 | B200: 2038-10-01 | C200: $998,912.97 | D200: $8,848.95 | E200: $1,645,905.13 | F200: $5,410.78 | G200: $1,241,379.93 | H200: $3,438.17 | I200: $404,525.21 | J200: $995,474.79 | M200: 186 | N200: 2038-10-01 | O200: $998,912.97 | P200: $8,848.95 | Q200: $1,645,905.13 | R200: $5,410.78 | S200: $1,241,379.93 | T200: $3,438.17 | U200: $404,525.21 | V200: $995,474.79 | X200: 186 | Y200: 2038-10-01 | Z200: $998,912.97 | AA200: $8,848.95 | AB200: $1,645,905.13 | AC200: $5,410.78 | AD200: $1,241,379.93 | AE200: $3,438.17 | AF200: $404,525.21 | AG200: $995,474.79
A201: 187 | B201: 2038-11-01 | C201: $995,474.79 | D201: $8,848.95 | E201: $1,654,754.09 | F201: $5,392.16 | G201: $1,246,772.08 | H201: $3,456.80 | I201: $407,982.00 | J201: $992,018.00 | M201: 187 | N201: 2038-11-01 | O201: $995,474.79 | P201: $8,848.95 | Q201: $1,654,754.09 | R201: $5,392.16 | S201: $1,246,772.08 | T201: $3,456.80 | U201: $407,982.00 | V201: $992,018.00 | X201: 187 | Y201: 2038-11-01 | Z201: $995,474.79 | AA201: $8,848.95 | AB201: $1,654,754.09 | AC201: $5,392.16 | AD201: $1,246,772.08 | AE201: $3,456.80 | AF201: $407,982.00 | AG201: $992,018.00
A202: 188 | B202: 2038-12-01 | C202: $992,018.00 | D202: $8,848.95 | E202: $1,663,603.04 | F202: $5,373.43 | G202: $1,252,145.51 | H202: $3,475.52 | I202: $411,457.53 | J202: $988,542.47 | M202: 188 | N202: 2038-12-01 | O202: $992,018.00 | P202: $8,848.95 | Q202: $1,663,603.04 | R202: $5,373.43 | S202: $1,252,145.51 | T202: $3,475.52 | U202: $411,457.53 | V202: $988,542.47 | X202: 188 | Y202: 2038-12-01 | Z202: $992,018.00 | AA202: $8,848.95 | AB202: $1,663,603.04 | AC202: $5,373.43 | AD202: $1,252,145.51 | AE202: $3,475.52 | AF202: $411,457.53 | AG202: $988,542.47
A203: 189 | B203: 2039-01-01 | C203: $988,542.47 | D203: $8,848.95 | E203: $1,672,451.99 | F203: $5,354.61 | G203: $1,257,500.12 | H203: $3,494.35 | I203: $414,951.87 | J203: $985,048.13 | M203: 189 | N203: 2039-01-01 | O203: $988,542.47 | P203: $8,848.95 | Q203: $1,672,451.99 | R203: $5,354.61 | S203: $1,257,500.12 | T203: $3,494.35 | U203: $414,951.87 | V203: $985,048.13 | X203: 189 | Y203: 2039-01-01 | Z203: $988,542.47 | AA203: $8,848.95 | AB203: $1,672,451.99 | AC203: $5,354.61 | AD203: $1,257,500.12 | AE203: $3,494.35 | AF203: $414,951.87 | AG203: $985,048.13
... 171 more rows
